Ref No,Fund Type,Dept,Cost Centre Description    ,Description    ,Creditor Name    ,GL Code Net Amount,Payment date        
2,Revenue,CAHD,Central - Commissioned Services,Permanent Residential,1 St Georges House,13333.52, 08-Feb-2022
3,Revenue,CAHD,Central - Commissioned Services,Fees & Charges Income - General,1 St Georges House,-425.60, 08-Feb-2022
4,Revenue,CAHD,Early Years High Needs Support,Other Private Contractors,100 Acre Wood Day Nursery,822.00, 22-Feb-2022
5,Revenue,CAHD,CSC - LAC Housing Support Grants,Grants to Voluntary Bodies,1625 Independent People,3343.00, 14-Feb-2022
6,Revenue,CAHD,Supporting People Programme,Grants to Voluntary Bodies,1625 Independent People,15167.00, 01-Feb-2022
7,Revenue,CAHD,South - Commissioned Services,Permanent Residential,2Nd Floor Building,5630.76, 08-Feb-2022
8,Revenue,CAHD,South - Commissioned Services,Fees & Charges Income - General,2Nd Floor Building,-425.60, 08-Feb-2022
9,Revenue,CAHD,South - Commissioned Services,Permanent Residential,2Nd Floor Building,2806.12, 08-Feb-2022
10,Revenue,CAHD,South - Commissioned Services,Fees & Charges Income - General,2Nd Floor Building,-425.60, 08-Feb-2022
11,Revenue,CAHD,Other Alternative Provision Services,Other Private Contractors,3 A Tutors Ltd,2115.00, 07-Feb-2022
12,Revenue,CAHD,Central - Commissioned Services,Other Small Contracts,3 Trees Community Support Ltd,7662.50, 02-Feb-2022
13,Revenue,CAHD,Central - Commissioned Services,Supported Living,3 Trees Community Support Ltd,2990.17, 02-Feb-2022
14,Revenue,CAHD,Central - Commissioned Services,Other Small Contracts,3 Trees Community Support Ltd,7595.29, 03-Feb-2022
15,Revenue,CAHD,Central - Commissioned Services,Supported Living,3 Trees Community Support Ltd,3008.17, 03-Feb-2022
16,Revenue,CAHD,Central - Commissioned Services,Other Small Contracts,3 Trees Community Support Ltd,7595.29, 10-Feb-2022
17,Revenue,CAHD,Central - Commissioned Services,Supported Living,3 Trees Community Support Ltd,3008.17, 10-Feb-2022
18,Revenue,CAHD,Central - Commissioned Services,Other Small Contracts,3 Trees Community Support Ltd,7595.29, 17-Feb-2022
19,Revenue,CAHD,Central - Commissioned Services,Supported Living,3 Trees Community Support Ltd,3008.17, 17-Feb-2022
20,Revenue,CAHD,Covid - ASC - Infection Control,Grants to Voluntary Bodies,5Th Floor Harlech Court,1230.13, 18-Feb-2022
21,Revenue,CAHD,South - Commissioned Services,Permanent Residential,5Th Floor Harlech Court,11933.40, 08-Feb-2022
22,Revenue,CAHD,South - Commissioned Services,Fees & Charges Income - General,5Th Floor Harlech Court,-425.60, 08-Feb-2022
23,Revenue,CAHD,South - Commissioned Services,Permanent Residential,5Th Floor Harlech Court,17391.48, 08-Feb-2022
24,Revenue,CAHD,South - Commissioned Services,Fees & Charges Income - General,5Th Floor Harlech Court,-425.60, 08-Feb-2022
25,Revenue,CAHD,South - Commissioned Services,Permanent Residential,5Th Floor Harlech Court,18290.84, 08-Feb-2022
26,Revenue,CAHD,South - Commissioned Services,Fees & Charges Income - General,5Th Floor Harlech Court,-425.60, 08-Feb-2022
27,Revenue,CAHD,S28A cases,Permanent Residential,5Th Floor Harlech Court,11378.60, 08-Feb-2022
28,Revenue,CAHD,S28A cases,Fees & Charges Income - General,5Th Floor Harlech Court,-388.80, 08-Feb-2022
29,Revenue,CAHD,ASC Rapid Testing Fund,Grants to Voluntary Bodies,5Th Floor Harlech Court,874.06, 18-Feb-2022
30,Revenue,CAHD,Covid  - Workforce capacity,Grants to Voluntary Bodies,5Th Floor Harlech Court,2420.68, 04-Feb-2022
31,Revenue,CAHD,Covid  - Workforce capacity,Grants to Voluntary Bodies,5Th Floor Harlech Court,4635.26, 18-Feb-2022
32,Revenue,CAHD,North - Community based support,Permanent Residential,5Th Floor Harlech Court,12498.56, 08-Feb-2022
33,Revenue,CAHD,North - Community based support,Fees & Charges Income - General,5Th Floor Harlech Court,-529.60, 08-Feb-2022
34,Revenue,CAHD,Central - Commissioned Services,Permanent Residential,5Th Floor Harlech Court,14891.36, 08-Feb-2022
35,Revenue,CAHD,Central - Commissioned Services,Fees & Charges Income - General,5Th Floor Harlech Court,-425.60, 08-Feb-2022
36,Revenue,CAHD,North - Community based support,Permanent Residential,5Th Floor Harlech Court,9071.12, 08-Feb-2022
37,Revenue,CAHD,North - Community based support,Permanent Residential,5Th Floor Harlech Court,10537.24, 08-Feb-2022
38,Revenue,CAHD,North - Community based support,Fees & Charges Income - General,5Th Floor Harlech Court,-425.60, 08-Feb-2022
39,Revenue,CAHD,Early Years Development,Training Expenses,"A Brown, TT Training",1100.00, 25-Feb-2022
40,Revenue,CAHD,Central - Commissioned Services,Non Residential Care Income,A4E Management Ltd,-108.14, 04-Feb-2022
41,Revenue,CAHD,Central - Commissioned Services,Non Residential Care Income,A4E Management Ltd,-108.14, 18-Feb-2022
42,Revenue,CAHD,EARLY YEARS DISABILITY  ACCES FUND,Preventative Assistance,Abacus Pre School @ Mangotsfield,1230.00, 10-Feb-2022
43,Revenue,CAHD,Early Years Inclusion Fund,Other Public Bodies,Abacus Pre-School,900.00, 15-Feb-2022
44,Revenue,CAHD,EARLY YEARS DISABILITY  ACCES FUND,Preventative Assistance,Abacus Pre-School @ Stoke Gifford,615.00, 10-Feb-2022
45,Revenue,CAHD,Early Years Inclusion Fund,Other Public Bodies,Abbeywood Tots Day Nursery Ltd Flying Start,3600.00, 16-Feb-2022
46,Revenue,CAHD,Early Years Inclusion Fund,Other Public Bodies,Abbeywood Tots Day Nursery Ltd Flying Start,3950.00, 24-Feb-2022
47,Revenue,CAHD,CSC - Asylum Seekers - Unaccompanied,Supported Living,Individual,548.57, 25-Feb-2022
48,Revenue,CAHD,South - Commissioned Services,Permanent Nursing,Acacia House,3085.88, 08-Feb-2022
49,Revenue,CAHD,South - Commissioned Services,Fees & Charges Income - General,Acacia House,-1043.64, 08-Feb-2022
50,Revenue,CAHD,Central - Commissioned Services,Permanent Nursing,Acacia House,3587.76, 08-Feb-2022
51,Revenue,CAHD,School Improvement and Support,Training Expenses,ACAS,1720.00, 23-Feb-2022
52,Revenue,CAHD,Central - Commissioned Services,Permanent Residential,Acer House Care Home.,3800.00, 08-Feb-2022
53,Revenue,CAHD,Central - Commissioned Services,Fees & Charges Income - General,Acer House Care Home.,-1060.72, 08-Feb-2022
54,Revenue,CAHD,Covid - ASC - Infection Control,Grants to Voluntary Bodies,Acorn Care Providers,670.98, 18-Feb-2022
55,Revenue,CAHD,MH Purchasing - Younger,Permanent Residential,Acorn Care Providers,6528.84, 08-Feb-2022
56,Revenue,CAHD,Jointly Funded H&SC Packages,Permanent Residential,Acorn Care Providers,3515.52, 08-Feb-2022
57,Revenue,CAHD,MH Purchasing - Younger,Permanent Residential,Acorn Care Providers,6411.00, 08-Feb-2022
58,Revenue,CAHD,Section 117 Placements MH Younger,Permanent Residential,Acorn Care Providers,5605.08, 08-Feb-2022
59,Revenue,CAHD,Jointly Funded H&SC Packages,Permanent Residential,Acorn Care Providers,2366.36, 08-Feb-2022
60,Revenue,CAHD,North - S117,Permanent Residential,Acorn Care Providers,4067.36, 08-Feb-2022
61,Revenue,CAHD,Jointly Funded H&SC Packages,Permanent Residential,Acorn Care Providers,2193.40, 08-Feb-2022
62,Revenue,CAHD,Covid  - Workforce capacity,Grants to Voluntary Bodies,Acorn Care Providers,751.25, 04-Feb-2022
63,Revenue,CAHD,Training - Adult Services,Training Expenses,Acorn Health & Safety Limited,620.00, 10-Feb-2022
64,Revenue,CAHD,Training - Adult Services,Training Expenses,Acorn Health & Safety Limited,477.00, 02-Feb-2022
65,Revenue,CAHD,Training Budget - Children`s Social Serv,Training Expenses,Acorn Health & Safety Limited,449.00, 10-Feb-2022
66,Revenue,CAHD,Training - Adult Services,Training Expenses,Acorn Health & Safety Limited,477.00, 17-Feb-2022
67,Revenue,CAHD,Training - Adult Services,Training Expenses,Acorn Health & Safety Limited,750.00, 17-Feb-2022
68,Revenue,CAHD,CSC - Agency Fostering,Foster Parent Allowances,Action for Children,3715.35, 18-Feb-2022
69,Revenue,CAHD,CSC - Agency Fostering,Foster Parent Allowances,Action for Children,3715.35, 18-Feb-2022
70,Revenue,CAHD,CSC - Agency Fostering,Foster Parent Allowances,Action for Children,3897.01, 18-Feb-2022
71,Revenue,CAHD,CSC - Professional Fees Foster Carers,Band 3 Foster Care,Individual,723.00, 11-Feb-2022
72,Revenue,CAHD,South - Commissioned Services,Other Small Contracts,Advantedge Commercial Finance Limited,1883.63, 08-Feb-2022
73,Revenue,CAHD,South - Commissioned Services,Other Small Contracts,Advantedge Commercial Finance Limited,1282.26, 08-Feb-2022
74,Revenue,CAHD,South - Commissioned Services,Other Small Contracts,Advantedge Commercial Finance Limited,636.16, 07-Feb-2022
75,Revenue,CAHD,South - Commissioned Services,Other Small Contracts,Advantedge Commercial Finance Limited,566.58, 08-Feb-2022
76,Revenue,CAHD,South - Commissioned Services,Other Small Contracts,Advantedge Commercial Finance Limited,720.65, 08-Feb-2022
77,Revenue,CAHD,Central - Commissioned Services,Other Small Contracts,Advantedge Commercial Finance Limited,2485.00, 08-Feb-2022
78,Revenue,CAHD,South - Commissioned Services,Other Small Contracts,Advantedge Commercial Finance Limited,2494.94, 08-Feb-2022
79,Revenue,CAHD,South - Commissioned Services,Other Small Contracts,Advantedge Commercial Finance Limited,2504.88, 21-Feb-2022
80,Revenue,CAHD,South - Commissioned Services,Other Small Contracts,Advantedge Commercial Finance Limited,1272.32, 21-Feb-2022
81,Revenue,CAHD,South - Commissioned Services,Other Small Contracts,Advantedge Commercial Finance Limited,1983.03, 21-Feb-2022
82,Revenue,CAHD,South - Commissioned Services,Other Small Contracts,Advantedge Commercial Finance Limited,1172.92, 21-Feb-2022
83,Revenue,CAHD,South - Commissioned Services,Other Small Contracts,Advantedge Commercial Finance Limited,556.64, 21-Feb-2022
84,Revenue,CAHD,Covid  - Workforce capacity,Grants to Voluntary Bodies,Advantedge Commercial Finance Limited,1419.02, 04-Feb-2022
85,Revenue,CAHD,Central - Commissioned Services,Day Care / Social Activities,Age Concern,559.36, 08-Feb-2022
86,Revenue,CAHD,Extra Care Housing,Private & Voluntary Home Care,Agincare UK Limited,25182.31, 01-Feb-2022
87,Revenue,CAHD,Extra Care Housing,Private & Voluntary Home Care,Agincare UK Limited,12116.29, 01-Feb-2022
88,Revenue,CAHD,Extra Care Housing,Private & Voluntary Home Care,Agincare UK Limited,30860.93, 04-Feb-2022
89,Revenue,CAHD,Extra Care Housing,Private & Voluntary Home Care,Agincare UK Limited,5458.37, 07-Feb-2022
90,Revenue,CAHD,Extra Care Housing,Private & Voluntary Home Care,Agincare UK Limited,5458.37, 14-Feb-2022
91,Revenue,CAHD,Extra Care Housing,Private & Voluntary Home Care,Agincare UK Limited,5458.37, 21-Feb-2022
92,Revenue,CAHD,Extra Care Housing,Private & Voluntary Home Care,Agincare UK Limited,5458.37, 28-Feb-2022
93,Revenue,CAHD,South - Commissioned Services,Day Care / Social Activities,Agincare UK Limited,512.53, 03-Feb-2022
94,Revenue,CAHD,South - Commissioned Services,Day Care / Social Activities,Agincare UK Limited,512.53, 10-Feb-2022
95,Revenue,CAHD,South - Commissioned Services,Day Care / Social Activities,Agincare UK Limited,512.53, 17-Feb-2022
96,Revenue,CAHD,Extra Care Housing,Private & Voluntary Home Care,Agincare UK Limited,1854.76, 08-Feb-2022
97,Revenue,CAHD,Covid - ASC - Infection Control,Grants to Voluntary Bodies,Agincare UK Limited,1282.54, 18-Feb-2022
98,Revenue,CAHD,Covid - ASC - Infection Control,Grants to Voluntary Bodies,Agincare UK Limited,3037.61, 18-Feb-2022
99,Revenue,CAHD,North - Community based support,Other Small Contracts,Agincare UK Limited,5709.01, 10-Feb-2022
100,Revenue,CAHD,South - Commissioned Services,Other Small Contracts,Agincare UK Limited,4224.63, 10-Feb-2022
101,Revenue,CAHD,Central - Commissioned Services,Other Small Contracts,Agincare UK Limited,7758.45, 10-Feb-2022
102,Revenue,CAHD,North - Community based support,Other Small Contracts,Agincare UK Limited,5709.01, 17-Feb-2022
103,Revenue,CAHD,South - Commissioned Services,Other Small Contracts,Agincare UK Limited,4224.63, 17-Feb-2022
104,Revenue,CAHD,Central - Commissioned Services,Other Small Contracts,Agincare UK Limited,7758.45, 17-Feb-2022
105,Revenue,CAHD,ASC Rapid Testing Fund,Grants to Voluntary Bodies,Agincare UK Limited,940.84, 18-Feb-2022
106,Revenue,CAHD,ASC Rapid Testing Fund,Grants to Voluntary Bodies,Agincare UK Limited,2228.30, 18-Feb-2022
107,Revenue,CAHD,Extra Care Housing,Private & Voluntary Home Care,Agincare UK Limited,2438.73, 03-Feb-2022
108,Revenue,CAHD,Extra Care Housing,Private & Voluntary Home Care,Agincare UK Limited,702.31, 08-Feb-2022
109,Revenue,CAHD,Covid - Vaccines,Grants to Voluntary Bodies,Agincare UK Limited,812.32, 18-Feb-2022
110,Revenue,CAHD,Statemented Support Payments to OLAs,Other L.A.s - General,Air Balloon Hill Primary School,801.92, 23-Feb-2022
111,Revenue,CAHD,CSC - Adoption Support Fund,Post Adoption,Individual,600.00, 07-Feb-2022
112,Revenue,CAHD,Central - Commissioned Services,Other Small Contracts,AliMo Care Ltd,200.49, 14-Feb-2022
113,Revenue,CAHD,South - Commissioned Services,Other Small Contracts,AliMo Care Ltd,728.61, 14-Feb-2022
114,Revenue,CAHD,North - Community based support,Other Small Contracts,AliMo Care Ltd,141.81, 14-Feb-2022
115,Revenue,CAHD,South - Commissioned Services,Other Small Contracts,AliMo Care Ltd,638.63, 03-Feb-2022
116,Revenue,CAHD,South - Commissioned Services,Other Small Contracts,AliMo Care Ltd,638.63, 10-Feb-2022
117,Revenue,CAHD,South - Commissioned Services,Other Small Contracts,AliMo Care Ltd,638.63, 17-Feb-2022
118,Revenue,CAHD,Covid  - Workforce capacity,Grants to Voluntary Bodies,Alina Homecare Services Limited,4120.23, 07-Feb-2022
119,Revenue,CAHD,Reset and Recovery,Other Supplies & Services,Individual,500.00, 02-Feb-2022
120,Revenue,CAHD,CSC - Age Related Allowances,Foster Parent Allowances,Individual,354.00, 18-Feb-2022
121,Revenue,CAHD,CSC - Professional Fees Foster Carers,Band 3 Foster Care,Individual,482.00, 18-Feb-2022
122,Revenue,CAHD,CSC - Age Related Allowances,Foster Parent Allowances,Individual,354.00, 25-Feb-2022
123,Revenue,CAHD,CSC - Age Related Allowances,Day Care / Social Activities,Individual,133.00, 25-Feb-2022
124,Revenue,CAHD,CSC - Professional Fees Foster Carers,Band 3 Foster Care,Individual,482.00, 25-Feb-2022
125,Revenue,CAHD,South - Commissioned Services,Permanent Nursing,Allambie Court,2734.44, 08-Feb-2022
126,Revenue,CAHD,South - Commissioned Services,Fees & Charges Income - General,Allambie Court,-803.00, 08-Feb-2022
127,Revenue,CAHD,Drug and Alcohol Programme,Other Small Contracts,Alveston Pharmacy,600.00, 01-Feb-2022
128,Revenue,CAHD,Central - Commissioned Services,Permanent Residential,Alvony House Residential Care Home,3000.00, 08-Feb-2022
129,Revenue,CAHD,Central - Commissioned Services,Fees & Charges Income - General,Alvony House Residential Care Home,-693.24, 08-Feb-2022
130,Revenue,CAHD,CSC - Residential Placements,Permanent Residential,Amberleigh Care Ltd,16771.00, 09-Feb-2022
131,Revenue,CAHD,Early Years Inclusion Fund,Other Public Bodies,Ambourne House Day Nursery,2150.00, 15-Feb-2022
132,Revenue,CAHD,CSC - Agency Fostering,Foster Parent Allowances,Amicus Foster Care Ltd,4879.00, 04-Feb-2022
133,Revenue,CAHD,CSC - Agency Fostering,Foster Parent Allowances,Amicus Foster Care Ltd,4879.00, 04-Feb-2022
134,Revenue,CAHD,CSC - Agency Fostering,Foster Parent Allowances,Amicus Foster Care Ltd,4796.44, 04-Feb-2022
135,Revenue,CAHD,CAHC - Complaints & Advocacy Service,Complaints External Expenses,Amy Weir & Associates Ltd,2187.50, 16-Feb-2022
136,Revenue,CAHD,Supporting People Programme,Grants to Voluntary Bodies,Anchor Hanover Group,1039.00, 01-Feb-2022
137,Revenue,CAHD,Supporting People Programme,Grants to Voluntary Bodies,Anchor Hanover Group,847.00, 01-Feb-2022
138,Revenue,CAHD,Covid  - Workforce capacity,Grants to Voluntary Bodies,Angel Care Support Limited,2575.14, 18-Feb-2022
139,Revenue,CAHD,Social Lettings Agency,Rent,Individual,822.73, 18-Feb-2022
140,Revenue,CAHD,Social Lettings Agency,Fees & Charges Income - General,Individual,-65.82, 18-Feb-2022
141,Revenue,CAHD,Social Lettings Agency,Rent,Individual,822.73, 02-Feb-2022
142,Revenue,CAHD,Social Lettings Agency,Fees & Charges Income - General,Individual,-65.82, 02-Feb-2022
143,Revenue,CAHD,Independent Special Placements - Pre 16,Other Private Contractors,Appleford School,7183.00, 03-Feb-2022
144,Revenue,CAHD,"Strategy, Advice and Public Protection",Radio Pager/Mobile Phones,Applied Satellite Technology Systems Ltd,828.83, 25-Feb-2022
145,Revenue,CAHD,Schools Specific Grant Income,Other Public Bodies,Archbishop McGrath Catholic High School,500.00, 24-Feb-2022
146,Revenue,CAHD,Schools Specific Grant Income,Other Public Bodies,Archbishop McGrath Catholic High School,500.00, 24-Feb-2022
147,Revenue,CAHD,Schools Specific Grant Income,Other Public Bodies,Archbishop McGrath Catholic High School,4000.00, 24-Feb-2022
148,Revenue,CAHD,Younger MH non-res purchasing,Respite Care,Archcare Rehab Limited,0.00, 08-Feb-2022
149,Revenue,CAHD,Younger MH non-res purchasing,Supported Living,Archcare Rehab Limited,2002.44, 08-Feb-2022
150,Revenue,CAHD,One You South Glos,Drugs & Medical Supplies,Asda Stores Limited,506.35, 01-Feb-2022
151,Revenue,CAHD,South - Commissioned Services,Permanent Residential,Ash Lea House,5551.92, 08-Feb-2022
152,Revenue,CAHD,South - Commissioned Services,Fees & Charges Income - General,Ash Lea House,-425.60, 08-Feb-2022
153,Revenue,CAHD,North - Community based support,Permanent Residential,Ash View House,7099.52, 08-Feb-2022
154,Revenue,CAHD,North - Community based support,Fees & Charges Income - General,Ash View House,-425.60, 08-Feb-2022
155,Revenue,CAHD,North - Community based support,Permanent Residential,Ash View House,7120.00, 08-Feb-2022
156,Revenue,CAHD,North - Community based support,Fees & Charges Income - General,Ash View House,-425.60, 08-Feb-2022
157,Revenue,CAHD,South - Commissioned Services,Permanent Residential,Ash View House,6903.04, 08-Feb-2022
158,Revenue,CAHD,South - Commissioned Services,Fees & Charges Income - General,Ash View House,-425.60, 08-Feb-2022
159,Revenue,CAHD,South - S117,Permanent Residential,Ash View House,6983.64, 08-Feb-2022
160,Revenue,CAHD,South - Commissioned Services,Permanent Residential,Ash View House,5655.48, 08-Feb-2022
161,Revenue,CAHD,South - Commissioned Services,Fees & Charges Income - General,Ash View House,-376.80, 08-Feb-2022
162,Revenue,CAHD,Jointly Funded H&SC Packages,Permanent Residential,Ash View House,1160.84, 08-Feb-2022
163,Revenue,CAHD,S117 Placements PCT,Permanent Residential,Ash View House,7884.72, 08-Feb-2022
164,Revenue,CAHD,Section 117 Placements MH Younger,Permanent Residential,Ash View House,5135.96, 08-Feb-2022
165,Revenue,CAHD,Jointly Funded H&SC Packages,Permanent Residential,Ash View House,2204.28, 08-Feb-2022
166,Revenue,CAHD,Covid  - Workforce capacity,Grants to Voluntary Bodies,Ash View House,5836.99, 08-Feb-2022
167,Revenue,CAHD,Supporting People Programme,Grants to Voluntary Bodies,Aspects and Milestones Trust,3441.00, 01-Feb-2022
168,Revenue,CAHD,Supporting People Programme,Grants to Voluntary Bodies,Aspects and Milestones Trust,1725.00, 01-Feb-2022
169,Revenue,CAHD,18-25 Year Olds,Other Small Contracts,Aspirations,3110.12, 07-Feb-2022
170,Revenue,CAHD,18-25 Year Olds,Supported Living,Aspirations,361.86, 07-Feb-2022
171,Revenue,CAHD,Central - Commissioned Services,Other Small Contracts,Aspirations,144.00, 07-Feb-2022
172,Revenue,CAHD,South - Commissioned Services,Day Care / Social Activities,Aspirations,1506.12, 07-Feb-2022
173,Revenue,CAHD,South - Commissioned Services,Other Small Contracts,Aspirations,3300.72, 07-Feb-2022
174,Revenue,CAHD,South - Commissioned Services,Supported Living,Aspirations,14833.31, 07-Feb-2022
175,Revenue,CAHD,North - Community based support,Supported Living,Aspirations,2327.04, 07-Feb-2022
176,Revenue,CAHD,North - Community based support,Other Small Contracts,Aspirations,3444.44, 03-Feb-2022
177,Revenue,CAHD,South - Commissioned Services,Other Small Contracts,Aspirations,1477.72, 03-Feb-2022
178,Revenue,CAHD,South - Commissioned Services,Supported Living,Aspirations,14344.68, 03-Feb-2022
179,Revenue,CAHD,Central - Commissioned Services,Other Small Contracts,Aspirations,3079.04, 03-Feb-2022
180,Revenue,CAHD,18-25 Year Olds,Other Small Contracts,Aspirations,4051.53, 03-Feb-2022
181,Revenue,CAHD,North - Community based support,Other Small Contracts,Aspirations,3444.44, 10-Feb-2022
182,Revenue,CAHD,South - Commissioned Services,Other Small Contracts,Aspirations,1477.72, 10-Feb-2022
183,Revenue,CAHD,South - Commissioned Services,Supported Living,Aspirations,14344.68, 10-Feb-2022
184,Revenue,CAHD,Central - Commissioned Services,Other Small Contracts,Aspirations,3079.04, 10-Feb-2022
185,Revenue,CAHD,18-25 Year Olds,Other Small Contracts,Aspirations,4051.53, 10-Feb-2022
186,Revenue,CAHD,North - Community based support,Other Small Contracts,Aspirations,3444.44, 17-Feb-2022
187,Revenue,CAHD,South - Commissioned Services,Other Small Contracts,Aspirations,1477.72, 17-Feb-2022
188,Revenue,CAHD,South - Commissioned Services,Supported Living,Aspirations,14344.68, 17-Feb-2022
189,Revenue,CAHD,Central - Commissioned Services,Other Small Contracts,Aspirations,3079.04, 17-Feb-2022
190,Revenue,CAHD,18-25 Year Olds,Other Small Contracts,Aspirations,4051.53, 17-Feb-2022
191,Revenue,CAHD,Covid - ASC - Infection Control,Grants to Voluntary Bodies,Aspirations,2700.09, 18-Feb-2022
192,Revenue,CAHD,ASC Rapid Testing Fund,Grants to Voluntary Bodies,Aspirations,1980.71, 18-Feb-2022
193,Revenue,CAHD,Covid - Vaccines,Grants to Voluntary Bodies,Aspirations,722.06, 18-Feb-2022
194,Revenue,CAHD,Covid  - Workforce capacity,Grants to Voluntary Bodies,Aspire Care SW Limited,2575.14, 18-Feb-2022
195,Revenue,CAHD,South - Commissioned Services,Adults - Family Support,Ategi Limited,1205.81, 07-Feb-2022
196,Revenue,CAHD,South - Commissioned Services,Adults - Family Support,Ategi Limited,1289.28, 07-Feb-2022
197,Revenue,CAHD,South - Commissioned Services,Adults - Family Support,Ategi Limited,547.60, 04-Feb-2022
198,Revenue,CAHD,South - Commissioned Services,Adults - Family Support,Ategi Limited,2320.92, 07-Feb-2022
199,Revenue,CAHD,South - Commissioned Services,Adults - Family Support,Ategi Limited,1255.98, 07-Feb-2022
200,Revenue,CAHD,South - Commissioned Services,Adults - Family Support,Ategi Limited,1906.47, 07-Feb-2022
201,Revenue,CAHD,North - Community based support,Adults - Family Support,Ategi limited,1139.44, 08-Feb-2022
202,Revenue,CAHD,North - Community based support,Respite Care,Ategi limited,0.00, 08-Feb-2022
203,Revenue,CAHD,18-25 Year Olds,Adults - Family Support,Ategi limited,1598.60, 08-Feb-2022
204,Revenue,CAHD,18-25 Year Olds,Respite Care,Ategi limited,0.00, 08-Feb-2022
205,Revenue,CAHD,North - Community based support,Adults - Family Support,Ategi limited,1598.60, 08-Feb-2022
206,Revenue,CAHD,North - Community based support,Respite Care,Ategi limited,0.00, 08-Feb-2022
207,Revenue,CAHD,South - Commissioned Services,Adults - Family Support,Ategi limited,2287.28, 08-Feb-2022
208,Revenue,CAHD,South - Commissioned Services,Respite Care,Ategi limited,0.00, 08-Feb-2022
209,Revenue,CAHD,South - Commissioned Services,Adults - Family Support,Ategi limited,2287.28, 08-Feb-2022
210,Revenue,CAHD,South - Commissioned Services,Respite Care,Ategi limited,0.00, 08-Feb-2022
211,Revenue,CAHD,South - Commissioned Services,Adults - Family Support,Ategi limited,1598.60, 08-Feb-2022
212,Revenue,CAHD,South - Commissioned Services,Respite Care,Ategi limited,0.00, 08-Feb-2022
213,Revenue,CAHD,18-25 Year Olds,Adults - Family Support,Ategi limited,2647.28, 08-Feb-2022
214,Revenue,CAHD,18-25 Year Olds,Respite Care,Ategi limited,0.00, 08-Feb-2022
215,Revenue,CAHD,18-25 Year Olds,Adults - Family Support,Ategi limited,1598.60, 08-Feb-2022
216,Revenue,CAHD,18-25 Year Olds,Respite Care,Ategi limited,0.00, 08-Feb-2022
217,Revenue,CAHD,18-25 Year Olds,Adults - Family Support,Ategi limited,2287.28, 08-Feb-2022
218,Revenue,CAHD,18-25 Year Olds,Respite Care,Ategi limited,0.00, 08-Feb-2022
219,Revenue,CAHD,High Risk Group Funding,Schools Funding,Athelstan Trust,1330.00, 21-Feb-2022
220,Revenue,CAHD,Statemented Support Academies,Other Public Bodies,Athelstan Trust,718.08, 23-Feb-2022
221,Revenue,CAHD,Statemented Support Academies,Other Public Bodies,Athelstan Trust,1101.42, 23-Feb-2022
222,Revenue,CAHD,Statemented Support Academies,Other Public Bodies,Athelstan Trust,722.42, 23-Feb-2022
223,Revenue,CAHD,Statemented Support Academies,Other Public Bodies,Athelstan Trust,1342.25, 23-Feb-2022
224,Revenue,CAHD,Statemented Support Academies,Other Public Bodies,Athelstan Trust,1367.64, 23-Feb-2022
225,Revenue,CAHD,Statemented Support Academies,Other Public Bodies,Athelstan Trust,771.42, 23-Feb-2022
226,Revenue,CAHD,Statemented Support Academies,Other Public Bodies,Athelstan Trust,1436.25, 23-Feb-2022
227,Revenue,CAHD,Statemented Support Academies,Other Public Bodies,Athelstan Trust,588.75, 23-Feb-2022
228,Revenue,CAHD,CSC - CLA Placements,Supported Living,Athelstan Trust,934.13, 23-Feb-2022
229,Revenue,CAHD,Statemented Support Academies,Other Public Bodies,Athelstan Trust,3514.12, 23-Feb-2022
230,Revenue,CAHD,Statemented Support Academies,Other Public Bodies,Athelstan Trust,926.58, 23-Feb-2022
231,Revenue,CAHD,Statemented Support Academies,Other Public Bodies,Athelstan Trust,1066.65, 23-Feb-2022
232,Revenue,CAHD,Academy Resource Base Funding,Other Public Bodies,Athelstan Trust,767.12, 21-Feb-2022
233,Revenue,CAHD,Academy Resource Base Funding,Other Public Bodies,Athelstan Trust,2270.60, 21-Feb-2022
234,Revenue,CAHD,Academy Resource Base Funding,Other Public Bodies,Athelstan Trust,2270.60, 21-Feb-2022
235,Revenue,CAHD,Academy Resource Base Funding,Other Public Bodies,Athelstan Trust,2270.60, 21-Feb-2022
236,Revenue,CAHD,Academy Resource Base Funding,Other Public Bodies,Athelstan Trust,2270.60, 21-Feb-2022
237,Revenue,CAHD,Academy Resource Base Funding,Other Public Bodies,Athelstan Trust,2270.60, 21-Feb-2022
238,Revenue,CAHD,Academy Resource Base Funding,Other Public Bodies,Athelstan Trust,2270.60, 21-Feb-2022
239,Revenue,CAHD,Academy Resource Base Funding,Other Public Bodies,Athelstan Trust,2270.60, 21-Feb-2022
240,Revenue,CAHD,Academy Resource Base Funding,Other Public Bodies,Athelstan Trust,2270.60, 21-Feb-2022
241,Revenue,CAHD,Academy Resource Base Funding,Other Public Bodies,Athelstan Trust,2270.60, 21-Feb-2022
242,Revenue,CAHD,Academy Resource Base Funding,Other Public Bodies,Athelstan Trust,2270.60, 21-Feb-2022
243,Revenue,CAHD,Academy Resource Base Funding,Other Public Bodies,Athelstan Trust,2270.60, 21-Feb-2022
244,Revenue,CAHD,Independent Special Placements - Pre 16,Other Private Contractors,Aurora Hedgeway School,10249.78, 17-Feb-2022
245,Revenue,CAHD,South - Commissioned Services,Permanent Residential,Autism Specialised Care Homes,6506.88, 08-Feb-2022
246,Revenue,CAHD,South - Commissioned Services,Fees & Charges Income - General,Autism Specialised Care Homes,-425.60, 08-Feb-2022
247,Revenue,CAHD,CSC - Adoption Support Fund,Post Adoption,Individual,985.00, 07-Feb-2022
248,Revenue,CAHD,CSC - LAC - Counselling & Therapy,Other Supplies & Services,Avon & Wiltshire Mental Health,15000.00, 25-Feb-2022
249,Revenue,CAHD,South - Commissioned Services,Permanent Nursing,Avon Lodge Care Centre,8434.46, 22-Feb-2022
250,Revenue,CAHD,South - Commissioned Services,Respite Planned - Nursing,Avon Lodge Care Centre,10741.20, 22-Feb-2022
251,Revenue,CAHD,North - Community based support,Respite Planned - Residential,Avon Lodge Care Centre,9360.19, 22-Feb-2022
252,Revenue,CAHD,South - Commissioned Services,Respite Planned - Residential,Avon Lodge Care Centre,5700.00, 22-Feb-2022
253,Revenue,CAHD,South - Commissioned Services,Respite Emergency - Residential,Avon Lodge Care Centre,3068.57, 22-Feb-2022
254,Revenue,CAHD,Covid - ASC - Infection Control,Grants to Voluntary Bodies,Avon Lodge Care Centre,6933.44, 18-Feb-2022
255,Revenue,CAHD,North - Community based support,Permanent Nursing,Avon Lodge Care Centre,4296.00, 08-Feb-2022
256,Revenue,CAHD,South - Commissioned Services,Permanent Nursing,Avon Lodge Care Centre,4296.48, 08-Feb-2022
257,Revenue,CAHD,South - Commissioned Services,Fees & Charges Income - General,Avon Lodge Care Centre,-637.84, 08-Feb-2022
258,Revenue,CAHD,South Glos Users in South Glos Homes,Permanent Nursing,Avon Lodge Care Centre,750.40, 08-Feb-2022
259,Revenue,CAHD,South - Commissioned Services,Permanent Residential,Avon Lodge Care Centre,3130.40, 08-Feb-2022
260,Revenue,CAHD,South - Commissioned Services,Fees & Charges Income - General,Avon Lodge Care Centre,-622.02, 08-Feb-2022
261,Revenue,CAHD,South Glos Users in South Glos Homes,Permanent Nursing,Avon Lodge Care Centre,750.40, 08-Feb-2022
262,Revenue,CAHD,South Glos Users in South Glos Homes,Permanent Nursing,Avon Lodge Care Centre,750.40, 08-Feb-2022
263,Revenue,CAHD,South - Commissioned Services,Permanent Nursing,Avon Lodge Care Centre,3800.00, 08-Feb-2022
264,Revenue,CAHD,South - Commissioned Services,Fees & Charges Income - General,Avon Lodge Care Centre,-707.64, 08-Feb-2022
265,Revenue,CAHD,South Glos Users in South Glos Homes,Permanent Nursing,Avon Lodge Care Centre,750.40, 08-Feb-2022
266,Revenue,CAHD,South Glos Users in South Glos Homes,Permanent Nursing,Avon Lodge Care Centre,750.40, 08-Feb-2022
267,Revenue,CAHD,South Glos Users in South Glos Homes,Permanent Nursing,Avon Lodge Care Centre,750.40, 08-Feb-2022
268,Revenue,CAHD,South Glos Users in South Glos Homes,Permanent Nursing,Avon Lodge Care Centre,750.40, 08-Feb-2022
269,Revenue,CAHD,South - Commissioned Services,Permanent Nursing,Avon Lodge Care Centre,5046.88, 08-Feb-2022
270,Revenue,CAHD,South Glos Users in South Glos Homes,Permanent Nursing,Avon Lodge Care Centre,750.40, 08-Feb-2022
271,Revenue,CAHD,South - Commissioned Services,Permanent Nursing,Avon Lodge Care Centre,3339.08, 08-Feb-2022
272,Revenue,CAHD,South - Commissioned Services,Fees & Charges Income - General,Avon Lodge Care Centre,-1479.04, 08-Feb-2022
273,Revenue,CAHD,South Glos Users in South Glos Homes,Permanent Nursing,Avon Lodge Care Centre,750.40, 08-Feb-2022
274,Revenue,CAHD,South Glos Users in South Glos Homes,Permanent Nursing,Avon Lodge Care Centre,750.40, 08-Feb-2022
275,Revenue,CAHD,South - Commissioned Services,Permanent Nursing,Avon Lodge Care Centre,4296.00, 08-Feb-2022
276,Revenue,CAHD,South Glos Users in South Glos Homes,Permanent Nursing,Avon Lodge Care Centre,750.40, 08-Feb-2022
277,Revenue,CAHD,South - Commissioned Services,Permanent Nursing,Avon Lodge Care Centre,3539.60, 08-Feb-2022
278,Revenue,CAHD,South - Commissioned Services,Fees & Charges Income - General,Avon Lodge Care Centre,-425.60, 08-Feb-2022
279,Revenue,CAHD,South Glos Users in South Glos Homes,Permanent Nursing,Avon Lodge Care Centre,750.40, 08-Feb-2022
280,Revenue,CAHD,South Glos Users in South Glos Homes,Permanent Nursing,Avon Lodge Care Centre,750.40, 08-Feb-2022
281,Revenue,CAHD,South - Commissioned Services,Permanent Nursing,Avon Lodge Care Centre,4447.88, 08-Feb-2022
282,Revenue,CAHD,South - Commissioned Services,Fees & Charges Income - General,Avon Lodge Care Centre,-1242.96, 08-Feb-2022
283,Revenue,CAHD,South Glos Users in South Glos Homes,Permanent Nursing,Avon Lodge Care Centre,750.40, 08-Feb-2022
284,Revenue,CAHD,South Glos Users in South Glos Homes,Permanent Nursing,Avon Lodge Care Centre,750.40, 08-Feb-2022
285,Revenue,CAHD,South - Commissioned Services,Permanent Nursing,Avon Lodge Care Centre,4505.12, 08-Feb-2022
286,Revenue,CAHD,South - Commissioned Services,Fees & Charges Income - General,Avon Lodge Care Centre,-986.72, 08-Feb-2022
287,Revenue,CAHD,South - Commissioned Services,Permanent Residential,Avon Lodge Care Centre,3600.00, 08-Feb-2022
288,Revenue,CAHD,South - Commissioned Services,Fees & Charges Income - General,Avon Lodge Care Centre,-608.80, 08-Feb-2022
289,Revenue,CAHD,South Glos Users in South Glos Homes,Permanent Nursing,Avon Lodge Care Centre,750.40, 08-Feb-2022
290,Revenue,CAHD,South - Commissioned Services,Permanent Nursing,Avon Lodge Care Centre,4410.32, 08-Feb-2022
291,Revenue,CAHD,South - Commissioned Services,Fees & Charges Income - General,Avon Lodge Care Centre,-1029.04, 08-Feb-2022
292,Revenue,CAHD,South Glos Users in South Glos Homes,Permanent Nursing,Avon Lodge Care Centre,750.40, 08-Feb-2022
293,Revenue,CAHD,South Glos Users in South Glos Homes,Permanent Nursing,Avon Lodge Care Centre,750.40, 08-Feb-2022
294,Revenue,CAHD,South Glos Users in South Glos Homes,Permanent Nursing,Avon Lodge Care Centre,750.40, 08-Feb-2022
295,Revenue,CAHD,South Glos Users in South Glos Homes,Permanent Nursing,Avon Lodge Care Centre,750.40, 08-Feb-2022
296,Revenue,CAHD,Central - Commissioned Services,Permanent Nursing,Avon Lodge Care Centre,3974.16, 08-Feb-2022
297,Revenue,CAHD,Central - Commissioned Services,Fees & Charges Income - General,Avon Lodge Care Centre,-677.56, 08-Feb-2022
298,Revenue,CAHD,South Glos Users in South Glos Homes,Permanent Nursing,Avon Lodge Care Centre,750.40, 08-Feb-2022
299,Revenue,CAHD,South - Commissioned Services,Permanent Nursing,Avon Lodge Care Centre,3887.40, 08-Feb-2022
300,Revenue,CAHD,South - Commissioned Services,Permanent Nursing,Avon Lodge Care Centre,4296.48, 08-Feb-2022
301,Revenue,CAHD,South - Commissioned Services,Fees & Charges Income - General,Avon Lodge Care Centre,-608.80, 08-Feb-2022
302,Revenue,CAHD,South Glos Users in South Glos Homes,Permanent Nursing,Avon Lodge Care Centre,750.40, 08-Feb-2022
303,Revenue,CAHD,South Glos Users in South Glos Homes,Permanent Nursing,Avon Lodge Care Centre,750.40, 08-Feb-2022
304,Revenue,CAHD,Central - Commissioned Services,Permanent Nursing,Avon Lodge Care Centre,3887.40, 08-Feb-2022
305,Revenue,CAHD,Central - Commissioned Services,Fees & Charges Income - General,Avon Lodge Care Centre,-928.08, 08-Feb-2022
306,Revenue,CAHD,South Glos Users in South Glos Homes,Permanent Nursing,Avon Lodge Care Centre,750.40, 08-Feb-2022
307,Revenue,CAHD,North - Community based support,Permanent Residential,Avon Lodge Care Centre,3539.60, 08-Feb-2022
308,Revenue,CAHD,North - Community based support,Fees & Charges Income - General,Avon Lodge Care Centre,-1448.16, 08-Feb-2022
309,Revenue,CAHD,South Glos Users in South Glos Homes,Permanent Nursing,Avon Lodge Care Centre,750.40, 08-Feb-2022
310,Revenue,CAHD,North - Community based support,Respite Care,Avon Lodge Care Centre,0.00, 08-Feb-2022
311,Revenue,CAHD,North - Community based support,Respite Planned - Residential,Avon Lodge Care Centre,3529.25, 08-Feb-2022
312,Revenue,CAHD,South Glos Users in South Glos Homes,Permanent Nursing,Avon Lodge Care Centre,750.40, 08-Feb-2022
313,Revenue,CAHD,South - Commissioned Services,Permanent Nursing,Avon Lodge Care Centre,4634.24, 08-Feb-2022
314,Revenue,CAHD,South - Commissioned Services,Fees & Charges Income - General,Avon Lodge Care Centre,-599.32, 08-Feb-2022
315,Revenue,CAHD,South Glos Users in South Glos Homes,Permanent Nursing,Avon Lodge Care Centre,750.40, 08-Feb-2022
316,Revenue,CAHD,South - S117,Permanent Nursing,Avon Lodge Care Centre,3974.84, 08-Feb-2022
317,Revenue,CAHD,South Glos Users in South Glos Homes,Permanent Nursing,Avon Lodge Care Centre,750.40, 08-Feb-2022
318,Revenue,CAHD,South - Commissioned Services,Permanent Residential,Avon Lodge Care Centre,3460.00, 08-Feb-2022
319,Revenue,CAHD,South Glos Users in South Glos Homes,Permanent Nursing,Avon Lodge Care Centre,750.40, 08-Feb-2022
320,Revenue,CAHD,North - Community based support,Permanent Nursing,Avon Lodge Care Centre,3887.40, 08-Feb-2022
321,Revenue,CAHD,North - Community based support,Fees & Charges Income - General,Avon Lodge Care Centre,-770.36, 08-Feb-2022
322,Revenue,CAHD,ASC Rapid Testing Fund,Grants to Voluntary Bodies,Avon Lodge Care Centre,4926.54, 18-Feb-2022
323,Revenue,CAHD,Covid - Vaccines,Grants to Voluntary Bodies,Avon Lodge Care Centre,605.71, 18-Feb-2022
324,Revenue,CAHD,Supporting People Programme,Other Employee Expenses - Pension,Avon Pension Fund,2450.00, 11-Feb-2022
325,Revenue,CAHD,South - Commissioned Services,Permanent Residential,Avon Valley Care Home,1878.24, 08-Feb-2022
326,Revenue,CAHD,Central - Commissioned Services,Permanent Residential,Avon Valley Care Home,4092.00, 08-Feb-2022
327,Revenue,CAHD,Central - Commissioned Services,Fees & Charges Income - General,Avon Valley Care Home,-640.04, 08-Feb-2022
328,Revenue,CAHD,South - Commissioned Services,Permanent Residential,Avon Valley Care Home,4092.00, 08-Feb-2022
329,Revenue,CAHD,South - Commissioned Services,Fees & Charges Income - General,Avon Valley Care Home,-967.20, 08-Feb-2022
330,Revenue,CAHD,South - Commissioned Services,Permanent Residential,Avon Valley Care Home,4092.00, 08-Feb-2022
331,Revenue,CAHD,South - Commissioned Services,Fees & Charges Income - General,Avon Valley Care Home,-591.10, 08-Feb-2022
332,Revenue,CAHD,South - Commissioned Services,Permanent Residential,Avon Valley Care Home,4270.00, 08-Feb-2022
333,Revenue,CAHD,South - Commissioned Services,Fees & Charges Income - General,Avon Valley Care Home,-1081.12, 08-Feb-2022
334,Revenue,CAHD,South - Commissioned Services,Permanent Residential,Avon Valley Care Home,4270.00, 08-Feb-2022
335,Revenue,CAHD,South - S117,Permanent Residential,Avon Valley Care Home,4092.00, 08-Feb-2022
336,Revenue,CAHD,South - Commissioned Services,Permanent Residential,Avon Valley Care Home,4051.08, 08-Feb-2022
337,Revenue,CAHD,South - Commissioned Services,Fees & Charges Income - General,Avon Valley Care Home,-980.88, 08-Feb-2022
338,Revenue,CAHD,South - Commissioned Services,Permanent Residential,Avon Valley Care Home,4230.00, 08-Feb-2022
339,Revenue,CAHD,South - Commissioned Services,Fees & Charges Income - General,Avon Valley Care Home,-1461.04, 08-Feb-2022
340,Revenue,CAHD,South - Commissioned Services,Permanent Residential,Avon Valley Care Home,4051.08, 08-Feb-2022
341,Revenue,CAHD,South - Commissioned Services,Fees & Charges Income - General,Avon Valley Care Home,-1243.32, 08-Feb-2022
342,Revenue,CAHD,South - Commissioned Services,Permanent Residential,Avon Valley Care Home,4270.00, 08-Feb-2022
343,Revenue,CAHD,South - Commissioned Services,Fees & Charges Income - General,Avon Valley Care Home,-1013.24, 08-Feb-2022
344,Revenue,CAHD,South - Commissioned Services,Permanent Residential,Avon Valley Care Home,3032.16, 08-Feb-2022
345,Revenue,CAHD,South - Commissioned Services,Fees & Charges Income - General,Avon Valley Care Home,-1878.24, 08-Feb-2022
346,Revenue,CAHD,South - Commissioned Services,Permanent Residential,Avon Valley Care Home,4230.00, 08-Feb-2022
347,Revenue,CAHD,South - Commissioned Services,Fees & Charges Income - General,Avon Valley Care Home,-1650.32, 08-Feb-2022
348,Revenue,CAHD,South - Commissioned Services,Permanent Residential,Avon Valley Care Home,3641.88, 08-Feb-2022
349,Revenue,CAHD,South - Commissioned Services,Fees & Charges Income - General,Avon Valley Care Home,-1579.84, 08-Feb-2022
350,Revenue,CAHD,South - Commissioned Services,Permanent Residential,Avon Valley Care Home,4230.00, 08-Feb-2022
351,Revenue,CAHD,South - Commissioned Services,Fees & Charges Income - General,Avon Valley Care Home,-1174.36, 08-Feb-2022
352,Revenue,CAHD,South - Commissioned Services,Permanent Residential,Avon Valley Care Home,4178.92, 08-Feb-2022
353,Revenue,CAHD,South - Commissioned Services,Fees & Charges Income - General,Avon Valley Care Home,-1122.48, 08-Feb-2022
354,Revenue,CAHD,South - Commissioned Services,Permanent Residential,Avon Valley Care Home,4230.00, 08-Feb-2022
355,Revenue,CAHD,South - Commissioned Services,Fees & Charges Income - General,Avon Valley Care Home,-1144.80, 08-Feb-2022
356,Revenue,CAHD,Covid  - Workforce capacity,Grants to Voluntary Bodies,Avon Valley Care Home,7210.40, 18-Feb-2022
357,Revenue,CAHD,North - Community based support,Permanent Residential,Avonmere Care Home,4680.00, 08-Feb-2022
358,Revenue,CAHD,North - Community based support,Fees & Charges Income - General,Avonmere Care Home,-1060.56, 08-Feb-2022
359,Revenue,CAHD,North - Community based support,Permanent Residential,Avonmere Care Home,4892.00, 08-Feb-2022
360,Revenue,CAHD,North - Community based support,Fees & Charges Income - General,Avonmere Care Home,-608.80, 08-Feb-2022
361,Revenue,CAHD,North - Community based support,Permanent Residential,Avonmere Care Home,4521.68, 08-Feb-2022
362,Revenue,CAHD,North - Community based support,Fees & Charges Income - General,Avonmere Care Home,-972.72, 08-Feb-2022
363,Revenue,CAHD,North - Community based support,Permanent Residential,Avonmere Care Home,4600.00, 08-Feb-2022
364,Revenue,CAHD,North - Community based support,Fees & Charges Income - General,Avonmere Care Home,-1082.52, 08-Feb-2022
365,Revenue,CAHD,North - Community based support,Permanent Residential,Avonmere Care Home,4720.00, 08-Feb-2022
366,Revenue,CAHD,North - Community based support,Fees & Charges Income - General,Avonmere Care Home,-1140.00, 08-Feb-2022
367,Revenue,CAHD,Covid  - Workforce capacity,Grants to Voluntary Bodies,Avonmere Care Home,4806.93, 18-Feb-2022
368,Revenue,CAHD,South Glos Users in South Glos Homes,Permanent Nursing,Badminton Place,750.40, 08-Feb-2022
369,Revenue,CAHD,North - Community based support,Permanent Nursing,Badminton Place,4864.32, 08-Feb-2022
370,Revenue,CAHD,North - Community based support,Fees & Charges Income - General,Badminton Place,-623.61, 08-Feb-2022
371,Revenue,CAHD,North - Community based support,Permanent Nursing,Badminton Place,5800.00, 08-Feb-2022
372,Revenue,CAHD,South Glos Users in South Glos Homes,Permanent Nursing,Badminton Place,750.40, 08-Feb-2022
373,Revenue,CAHD,South Glos Users in South Glos Homes,Permanent Nursing,Badminton Place,750.40, 08-Feb-2022
374,Revenue,CAHD,CSC - North LAC Placements,Personal Needs of Clients,Barcan + Kirby LLP,850.00, 08-Feb-2022
375,Revenue,CAHD,CSC - North LAC Placements,Personal Needs of Clients,Barcan+Kirby LLP,2182.00, 25-Feb-2022
376,Revenue,CAHD,Children & Young People`s Health,Other Small Contracts,Barnardos,7650.00, 25-Feb-2022
377,Revenue,CAHD,Pensions - Non DSG,Annual Pension,Bath & North East Somerset Council,100737.11, 21-Feb-2022
378,Revenue,CAHD,Pensions - Non DSG,Annual Pension,Bath & North East Somerset Council,99709.26, 09-Feb-2022
379,Revenue,CAHD,Pensions - Non DSG,Annual Pension,Bath & North East Somerset Council,6796.20, 09-Feb-2022
380,Revenue,CAHD,Independent Special Placements - Post 16,Other Private Contractors,Bath Road Priory,6656.11, 07-Feb-2022
381,Revenue,CAHD,CSC - Adoption Support Fund,Post Adoption,Individual,735.00, 25-Feb-2022
382,Revenue,CAHD,South Glos Users in South Glos Homes,Permanent Nursing,Beaufort Grange Care Home,750.40, 08-Feb-2022
383,Revenue,CAHD,South Glos Users in South Glos Homes,Permanent Nursing,Beaufort Grange Care Home,750.40, 08-Feb-2022
384,Revenue,CAHD,South Glos Users in South Glos Homes,Permanent Nursing,Beaufort Grange Care Home,750.40, 08-Feb-2022
385,Revenue,CAHD,Central - Commissioned Services,Permanent Nursing,Beaufort Grange Care Home,5500.00, 08-Feb-2022
386,Revenue,CAHD,South Glos Users in South Glos Homes,Permanent Nursing,Beaufort Grange Care Home,750.40, 08-Feb-2022
387,Revenue,CAHD,Central - Commissioned Services,Permanent Nursing,Beaufort Grange Care Home,11684.00, 08-Feb-2022
388,Revenue,CAHD,South Glos Users in South Glos Homes,Permanent Nursing,Beaufort Grange Care Home,750.40, 08-Feb-2022
389,Revenue,CAHD,South Glos Users in South Glos Homes,Permanent Nursing,Beaufort Grange Care Home,750.40, 08-Feb-2022
390,Revenue,CAHD,South Glos Users in South Glos Homes,Permanent Nursing,Beaufort Grange Care Home,750.40, 08-Feb-2022
391,Revenue,CAHD,Central - Commissioned Services,Permanent Nursing,Beaufort Grange Care Home,5400.00, 08-Feb-2022
392,Revenue,CAHD,Central - Commissioned Services,Fees & Charges Income - General,Beaufort Grange Care Home,-588.80, 08-Feb-2022
393,Revenue,CAHD,South Glos Users in South Glos Homes,Permanent Nursing,Beaufort Grange Care Home,750.40, 08-Feb-2022
394,Revenue,CAHD,North - Community based support,Permanent Nursing,Beaufort Grange Care Home,4369.60, 08-Feb-2022
395,Revenue,CAHD,North - Community based support,Fees & Charges Income - General,Beaufort Grange Care Home,-608.80, 08-Feb-2022
396,Revenue,CAHD,South Glos Users in South Glos Homes,Permanent Nursing,Beaufort Grange Care Home,750.40, 08-Feb-2022
397,Revenue,CAHD,South - Commissioned Services,Permanent Nursing,Beaufort Grange Care Home,4449.60, 08-Feb-2022
398,Revenue,CAHD,South - Commissioned Services,Fees & Charges Income - General,Beaufort Grange Care Home,-608.80, 08-Feb-2022
399,Revenue,CAHD,South Glos Users in South Glos Homes,Permanent Nursing,Beaufort Grange Care Home,750.40, 08-Feb-2022
400,Revenue,CAHD,South Glos Users in South Glos Homes,Permanent Nursing,Beaufort Grange Care Home,750.40, 08-Feb-2022
401,Revenue,CAHD,South Glos Users in South Glos Homes,Permanent Nursing,Beaufort Grange Care Home,750.40, 08-Feb-2022
402,Revenue,CAHD,South Glos Users in South Glos Homes,Permanent Nursing,Beaufort Grange Care Home,750.40, 08-Feb-2022
403,Revenue,CAHD,South Glos Users in South Glos Homes,Permanent Nursing,Beaufort Grange Care Home,750.40, 08-Feb-2022
404,Revenue,CAHD,South Glos Users in South Glos Homes,Permanent Nursing,Beaufort Grange Care Home,750.40, 08-Feb-2022
405,Revenue,CAHD,South Glos Users in South Glos Homes,Permanent Nursing,Beaufort Grange Care Home,750.40, 08-Feb-2022
406,Revenue,CAHD,South Glos Users in South Glos Homes,Permanent Nursing,Beaufort Grange Care Home,750.40, 08-Feb-2022
407,Revenue,CAHD,South Glos Users in South Glos Homes,Permanent Nursing,Beaufort Grange Care Home,750.40, 08-Feb-2022
408,Revenue,CAHD,South Glos Users in South Glos Homes,Permanent Nursing,Beaufort Grange Care Home,750.40, 08-Feb-2022
409,Revenue,CAHD,North - S117,Permanent Nursing,Beaufort Grange Care Home,5400.00, 08-Feb-2022
410,Revenue,CAHD,Central - Commissioned Services,Permanent Nursing,Beaufort Grange Care Home,5500.00, 08-Feb-2022
411,Revenue,CAHD,South Glos Users in South Glos Homes,Permanent Nursing,Beaufort Grange Care Home,750.40, 08-Feb-2022
412,Revenue,CAHD,North - Community based support,Permanent Nursing,Beaufort Grange Care Home,10620.00, 08-Feb-2022
413,Revenue,CAHD,North - Community based support,Fees & Charges Income - General,Beaufort Grange Care Home,-425.60, 08-Feb-2022
414,Revenue,CAHD,South Glos Users in South Glos Homes,Permanent Nursing,Beaufort Grange Care Home,750.40, 08-Feb-2022
415,Revenue,CAHD,South Glos Users in South Glos Homes,Permanent Nursing,Beaufort Grange Care Home,750.40, 08-Feb-2022
416,Revenue,CAHD,South Glos Users in South Glos Homes,Permanent Nursing,Beaufort Grange Care Home,750.40, 08-Feb-2022
417,Revenue,CAHD,South Glos Users in South Glos Homes,Permanent Nursing,Beaufort Grange Care Home,750.40, 08-Feb-2022
418,Revenue,CAHD,South Glos Users in South Glos Homes,Permanent Nursing,Beaufort Grange Care Home,750.40, 08-Feb-2022
419,Revenue,CAHD,South Glos Users in South Glos Homes,Permanent Nursing,Beaufort Grange Care Home,750.40, 08-Feb-2022
420,Revenue,CAHD,South Glos Users in South Glos Homes,Permanent Nursing,Beaufort Grange Care Home,750.40, 08-Feb-2022
421,Revenue,CAHD,South Glos Users in South Glos Homes,Permanent Nursing,Beaufort Grange Care Home,750.40, 08-Feb-2022
422,Revenue,CAHD,South Glos Users in South Glos Homes,Permanent Nursing,Beaufort Grange Care Home,750.40, 08-Feb-2022
423,Revenue,CAHD,South Glos Users in South Glos Homes,Permanent Nursing,Beaufort Grange Care Home,750.40, 08-Feb-2022
424,Revenue,CAHD,South Glos Users in South Glos Homes,Permanent Nursing,Beaufort Grange Care Home,750.40, 08-Feb-2022
425,Revenue,CAHD,South Glos Users in South Glos Homes,Permanent Nursing,Beaufort Grange Care Home,750.40, 08-Feb-2022
426,Revenue,CAHD,South Glos Users in South Glos Homes,Permanent Nursing,Beaufort Grange Care Home,750.40, 08-Feb-2022
427,Revenue,CAHD,South - Commissioned Services,Respite Care,Beaufort Grange Care Home,0.00, 08-Feb-2022
428,Revenue,CAHD,South - Commissioned Services,Respite Planned - Nursing,Beaufort Grange Care Home,3200.00, 08-Feb-2022
429,Revenue,CAHD,Jointly Funded H&SC Packages,Respite Planned - Nursing,Beaufort Grange Care Home,3200.00, 08-Feb-2022
430,Revenue,CAHD,Central - Commissioned Services,Permanent Residential,Beaufort House,2991.84, 08-Feb-2022
431,Revenue,CAHD,Central - Commissioned Services,Fees & Charges Income - General,Beaufort House,-796.32, 08-Feb-2022
432,Revenue,CAHD,Central - Commissioned Services,Permanent Residential,Beaufort House,2896.24, 08-Feb-2022
433,Revenue,CAHD,Central - Commissioned Services,Fees & Charges Income - General,Beaufort House,-914.36, 08-Feb-2022
434,Revenue,CAHD,Central - Commissioned Services,Permanent Residential,Beaufort House,3800.00, 08-Feb-2022
435,Revenue,CAHD,Central - Commissioned Services,Fees & Charges Income - General,Beaufort House,-709.28, 08-Feb-2022
436,Revenue,CAHD,North - Community based support,Permanent Residential,Beaufort House,4000.00, 08-Feb-2022
437,Revenue,CAHD,North - Community based support,Fees & Charges Income - General,Beaufort House,-1131.36, 08-Feb-2022
438,Revenue,CAHD,North - Community based support,Permanent Residential,Beaufort House,2842.24, 08-Feb-2022
439,Revenue,CAHD,North - Community based support,Permanent Residential,Beaufort House,2817.28, 08-Feb-2022
440,Revenue,CAHD,North - Community based support,Fees & Charges Income - General,Beaufort House,-608.80, 08-Feb-2022
441,Revenue,CAHD,Central - Commissioned Services,Permanent Residential,Beaufort House,4000.00, 08-Feb-2022
442,Revenue,CAHD,Central - Commissioned Services,Fees & Charges Income - General,Beaufort House,-967.20, 08-Feb-2022
443,Revenue,CAHD,Central - Commissioned Services,Permanent Residential,Beaufort House,3380.00, 08-Feb-2022
444,Revenue,CAHD,Central - Commissioned Services,Fees & Charges Income - General,Beaufort House,-1409.16, 08-Feb-2022
445,Revenue,CAHD,Central - Commissioned Services,Permanent Residential,Beaufort House,3200.00, 08-Feb-2022
446,Revenue,CAHD,Central - Commissioned Services,Fees & Charges Income - General,Beaufort House,-728.64, 08-Feb-2022
447,Revenue,CAHD,Central - Commissioned Services,Permanent Residential,Beaufort House,4000.00, 08-Feb-2022
448,Revenue,CAHD,Central - Commissioned Services,Fees & Charges Income - General,Beaufort House,-608.80, 08-Feb-2022
449,Revenue,CAHD,North - Community based support,Permanent Residential,Beaufort House,4000.00, 08-Feb-2022
450,Revenue,CAHD,North - Community based support,Fees & Charges Income - General,Beaufort House,-644.80, 08-Feb-2022
451,Revenue,CAHD,Central - Commissioned Services,Permanent Residential,Beaufort House,3600.00, 08-Feb-2022
452,Revenue,CAHD,Covid - ASC - Infection Control,Grants to Voluntary Bodies,Beech House,6150.63, 18-Feb-2022
453,Revenue,CAHD,South Glos Users in South Glos Homes,Permanent Nursing,Beech House,750.40, 08-Feb-2022
454,Revenue,CAHD,South Glos Users in South Glos Homes,Permanent Nursing,Beech House,750.40, 08-Feb-2022
455,Revenue,CAHD,North - Community based support,Permanent Nursing,Beech House,4400.00, 08-Feb-2022
456,Revenue,CAHD,North - Community based support,Fees & Charges Income - General,Beech House,-1012.32, 08-Feb-2022
457,Revenue,CAHD,North - Community based support,Permanent Residential,Beech House,4460.28, 08-Feb-2022
458,Revenue,CAHD,North - Community based support,Fees & Charges Income - General,Beech House,-608.80, 08-Feb-2022
459,Revenue,CAHD,South Glos Users in South Glos Homes,Permanent Nursing,Beech House,750.40, 08-Feb-2022
460,Revenue,CAHD,South Glos Users in South Glos Homes,Permanent Nursing,Beech House,750.40, 08-Feb-2022
461,Revenue,CAHD,South Glos Users in South Glos Homes,Permanent Nursing,Beech House,750.40, 08-Feb-2022
462,Revenue,CAHD,South Glos Users in South Glos Homes,Permanent Nursing,Beech House,750.40, 08-Feb-2022
463,Revenue,CAHD,South Glos Users in South Glos Homes,Permanent Nursing,Beech House,750.40, 08-Feb-2022
464,Revenue,CAHD,South Glos Users in South Glos Homes,Permanent Nursing,Beech House,750.40, 08-Feb-2022
465,Revenue,CAHD,South Glos Users in South Glos Homes,Permanent Nursing,Beech House,750.40, 08-Feb-2022
466,Revenue,CAHD,South Glos Users in South Glos Homes,Permanent Nursing,Beech House,750.40, 08-Feb-2022
467,Revenue,CAHD,North - Community based support,Permanent Nursing,Beech House,4378.44, 08-Feb-2022
468,Revenue,CAHD,North - Community based support,Fees & Charges Income - General,Beech House,-644.80, 08-Feb-2022
469,Revenue,CAHD,South Glos Users in South Glos Homes,Permanent Nursing,Beech House,750.40, 08-Feb-2022
470,Revenue,CAHD,South Glos Users in South Glos Homes,Permanent Nursing,Beech House,750.40, 08-Feb-2022
471,Revenue,CAHD,North - Community based support,Permanent Nursing,Beech House,4407.12, 08-Feb-2022
472,Revenue,CAHD,North - Community based support,Fees & Charges Income - General,Beech House,-1803.04, 08-Feb-2022
473,Revenue,CAHD,North - Community based support,Permanent Residential,Beech House,4480.00, 08-Feb-2022
474,Revenue,CAHD,North - Community based support,Fees & Charges Income - General,Beech House,-952.64, 08-Feb-2022
475,Revenue,CAHD,South - Commissioned Services,Permanent Residential,Beech House,4480.00, 08-Feb-2022
476,Revenue,CAHD,South - Commissioned Services,Fees & Charges Income - General,Beech House,-769.64, 08-Feb-2022
477,Revenue,CAHD,North - Community based support,Permanent Residential,Beech House,4480.00, 08-Feb-2022
478,Revenue,CAHD,North - Community based support,Fees & Charges Income - General,Beech House,-610.08, 08-Feb-2022
479,Revenue,CAHD,South Glos Users in South Glos Homes,Permanent Nursing,Beech House,750.40, 08-Feb-2022
480,Revenue,CAHD,South Glos Users in South Glos Homes,Permanent Nursing,Beech House,750.40, 08-Feb-2022
481,Revenue,CAHD,North - Community based support,Permanent Residential,Beech House,4480.00, 08-Feb-2022
482,Revenue,CAHD,North - Community based support,Fees & Charges Income - General,Beech House,-819.12, 08-Feb-2022
483,Revenue,CAHD,South Glos Users in South Glos Homes,Permanent Nursing,Beech House,750.40, 08-Feb-2022
484,Revenue,CAHD,South Glos Users in South Glos Homes,Permanent Nursing,Beech House,750.40, 08-Feb-2022
485,Revenue,CAHD,ASC Rapid Testing Fund,Grants to Voluntary Bodies,Beech House,4370.32, 18-Feb-2022
486,Revenue,CAHD,Covid - Vaccines,Grants to Voluntary Bodies,Beech House,537.33, 18-Feb-2022
487,Revenue,CAHD,Covid  - Workforce capacity,Grants to Voluntary Bodies,Beech House,8240.46, 11-Feb-2022
488,Revenue,CAHD,South Glos Users in South Glos Homes,Permanent Nursing,Beechwood Care Home,1122.40, 08-Feb-2022
489,Revenue,CAHD,18-25 Year Olds,Permanent Residential,Beechwood Court Ltd,14491.31, 16-Feb-2022
490,Revenue,CAHD,18-25 Year Olds,Permanent Residential,Beechwood Court Ltd,20867.62, 22-Feb-2022
491,Revenue,CAHD,South - Commissioned Services,Permanent Nursing,Begbrook House Nursing Home,3593.88, 08-Feb-2022
492,Revenue,CAHD,South - Commissioned Services,Fees & Charges Income - General,Begbrook House Nursing Home,-1048.96, 08-Feb-2022
493,Revenue,CAHD,North - Community based support,Permanent Nursing,Begbrook House Nursing Home,3234.72, 08-Feb-2022
494,Revenue,CAHD,North - Community based support,Fees & Charges Income - General,Begbrook House Nursing Home,-608.80, 08-Feb-2022
495,Revenue,CAHD,South - Commissioned Services,Permanent Residential,Begbrook House Nursing Home,3400.00, 08-Feb-2022
496,Revenue,CAHD,South - Commissioned Services,Fees & Charges Income - General,Begbrook House Nursing Home,-872.28, 08-Feb-2022
497,Revenue,CAHD,Central - Commissioned Services,Permanent Nursing,Begbrook House Nursing Home,3400.00, 08-Feb-2022
498,Revenue,CAHD,Central - Commissioned Services,Fees & Charges Income - General,Begbrook House Nursing Home,-623.56, 08-Feb-2022
499,Revenue,CAHD,Homeless - Private Sector Leasing,Legal Fees,Bevan Brittan LLP,1434.50, 18-Feb-2022
500,Revenue,CAHD,South - S117,Permanent Residential,Bidna House,3774.24, 08-Feb-2022
501,Revenue,CAHD,Placements OLA Special Schools and RB,Other L.A.s - General,Blaise High School,754.08, 23-Feb-2022
502,Revenue,CAHD,Placements OLA Special Schools and RB,Other L.A.s - General,Blaise High School,715.72, 23-Feb-2022
503,Revenue,CAHD,Statemented Support Payments to OLAs,Other L.A.s - General,Blaise High School,907.83, 23-Feb-2022
504,Revenue,CAHD,Placements OLA Special Schools and RB,Other L.A.s - General,Blaise High School,715.72, 23-Feb-2022
505,Revenue,CAHD,18-25 Year Olds,Other Small Contracts,Blakehill Healthcare Ltd,437.50, 17-Feb-2022
506,Revenue,CAHD,Central - Commissioned Services,Other Small Contracts,Blakehill Healthcare Ltd,6187.50, 17-Feb-2022
507,Revenue,CAHD,South - Commissioned Services,Other Small Contracts,Blakehill Healthcare Ltd,5789.53, 17-Feb-2022
508,Revenue,CAHD,North - Community based support,Other Small Contracts,Blakehill Healthcare Ltd,3536.90, 17-Feb-2022
509,Revenue,CAHD,North - Community based support,Other Small Contracts,Blakehill Healthcare Ltd,4319.89, 03-Feb-2022
510,Revenue,CAHD,South - Commissioned Services,Other Small Contracts,Blakehill Healthcare Ltd,4453.76, 03-Feb-2022
511,Revenue,CAHD,Central - Commissioned Services,Other Small Contracts,Blakehill Healthcare Ltd,5876.67, 03-Feb-2022
512,Revenue,CAHD,North - Community based support,Other Small Contracts,Blakehill Healthcare Ltd,4319.89, 10-Feb-2022
513,Revenue,CAHD,South - Commissioned Services,Other Small Contracts,Blakehill Healthcare Ltd,4453.76, 10-Feb-2022
514,Revenue,CAHD,Central - Commissioned Services,Other Small Contracts,Blakehill Healthcare Ltd,5876.67, 10-Feb-2022
515,Revenue,CAHD,North - Community based support,Other Small Contracts,Blakehill Healthcare Ltd,4319.89, 17-Feb-2022
516,Revenue,CAHD,South - Commissioned Services,Other Small Contracts,Blakehill Healthcare Ltd,4453.76, 17-Feb-2022
517,Revenue,CAHD,Central - Commissioned Services,Other Small Contracts,Blakehill Healthcare Ltd,5876.67, 17-Feb-2022
518,Revenue,CAHD,South - Commissioned Services,Other Small Contracts,Blakehill Healthcare Ltd,543.29, 08-Feb-2022
519,Revenue,CAHD,North - Community based support,Permanent Residential,Blossom Fields Nursing Home,1603.64, 08-Feb-2022
520,Revenue,CAHD,South Glos Users in South Glos Homes,Permanent Nursing,Blossom Fields Nursing Home,1232.80, 22-Feb-2022
521,Revenue,CAHD,South Glos Users in South Glos Homes,Permanent Nursing,Blossom Fields Nursing Home,1581.20, 22-Feb-2022
522,Revenue,CAHD,South Glos Users in South Glos Homes,Permanent Nursing,Blossom Fields Nursing Home,1259.60, 22-Feb-2022
523,Revenue,CAHD,Covid - ASC - Infection Control,Grants to Voluntary Bodies,Blossom Fields Nursing Home,4808.68, 18-Feb-2022
524,Revenue,CAHD,South Glos Users in South Glos Homes,Permanent Nursing,Blossom Fields Nursing Home,750.40, 08-Feb-2022
525,Revenue,CAHD,North - Community based support,Permanent Nursing,Blossom Fields Nursing Home,4910.28, 08-Feb-2022
526,Revenue,CAHD,North - Community based support,Fees & Charges Income - General,Blossom Fields Nursing Home,-608.80, 08-Feb-2022
527,Revenue,CAHD,South Glos Users in South Glos Homes,Permanent Nursing,Blossom Fields Nursing Home,750.40, 08-Feb-2022
528,Revenue,CAHD,North - Community based support,Permanent Nursing,Blossom Fields Nursing Home,3792.92, 08-Feb-2022
529,Revenue,CAHD,North - Community based support,Fees & Charges Income - General,Blossom Fields Nursing Home,-660.48, 08-Feb-2022
530,Revenue,CAHD,South Glos Users in South Glos Homes,Permanent Nursing,Blossom Fields Nursing Home,750.40, 08-Feb-2022
531,Revenue,CAHD,South Glos Users in South Glos Homes,Permanent Nursing,Blossom Fields Nursing Home,750.40, 08-Feb-2022
532,Revenue,CAHD,South Glos Users in South Glos Homes,Permanent Nursing,Blossom Fields Nursing Home,750.40, 08-Feb-2022
533,Revenue,CAHD,South Glos Users in South Glos Homes,Permanent Nursing,Blossom Fields Nursing Home,750.40, 08-Feb-2022
534,Revenue,CAHD,South Glos Users in South Glos Homes,Permanent Nursing,Blossom Fields Nursing Home,750.40, 08-Feb-2022
535,Revenue,CAHD,South Glos Users in South Glos Homes,Permanent Nursing,Blossom Fields Nursing Home,750.40, 08-Feb-2022
536,Revenue,CAHD,South Glos Users in South Glos Homes,Permanent Nursing,Blossom Fields Nursing Home,750.40, 08-Feb-2022
537,Revenue,CAHD,South Glos Users in South Glos Homes,Permanent Nursing,Blossom Fields Nursing Home,750.40, 08-Feb-2022
538,Revenue,CAHD,South Glos Users in South Glos Homes,Permanent Nursing,Blossom Fields Nursing Home,750.40, 08-Feb-2022
539,Revenue,CAHD,North - Community based support,Permanent Nursing,Blossom Fields Nursing Home,4132.12, 08-Feb-2022
540,Revenue,CAHD,North - Community based support,Fees & Charges Income - General,Blossom Fields Nursing Home,-644.80, 08-Feb-2022
541,Revenue,CAHD,South Glos Users in South Glos Homes,Permanent Nursing,Blossom Fields Nursing Home,750.40, 08-Feb-2022
542,Revenue,CAHD,South Glos Users in South Glos Homes,Permanent Nursing,Blossom Fields Nursing Home,750.40, 08-Feb-2022
543,Revenue,CAHD,South Glos Users in South Glos Homes,Permanent Nursing,Blossom Fields Nursing Home,750.40, 08-Feb-2022
544,Revenue,CAHD,North - Community based support,Permanent Nursing,Blossom Fields Nursing Home,4132.12, 08-Feb-2022
545,Revenue,CAHD,South Glos Users in South Glos Homes,Permanent Nursing,Blossom Fields Nursing Home,750.40, 08-Feb-2022
546,Revenue,CAHD,South Glos Users in South Glos Homes,Permanent Nursing,Blossom Fields Nursing Home,750.40, 08-Feb-2022
547,Revenue,CAHD,South Glos Users in South Glos Homes,Permanent Nursing,Blossom Fields Nursing Home,750.40, 08-Feb-2022
548,Revenue,CAHD,South Glos Users in South Glos Homes,Permanent Nursing,Blossom Fields Nursing Home,750.40, 08-Feb-2022
549,Revenue,CAHD,South Glos Users in South Glos Homes,Permanent Nursing,Blossom Fields Nursing Home,750.40, 08-Feb-2022
550,Revenue,CAHD,South Glos Users in South Glos Homes,Permanent Nursing,Blossom Fields Nursing Home,750.40, 08-Feb-2022
551,Revenue,CAHD,South Glos Users in South Glos Homes,Permanent Nursing,Blossom Fields Nursing Home,750.40, 08-Feb-2022
552,Revenue,CAHD,South Glos Users in South Glos Homes,Permanent Nursing,Blossom Fields Nursing Home,750.40, 08-Feb-2022
553,Revenue,CAHD,South Glos Users in South Glos Homes,Permanent Nursing,Blossom Fields Nursing Home,750.40, 08-Feb-2022
554,Revenue,CAHD,South Glos Users in South Glos Homes,Permanent Nursing,Blossom Fields Nursing Home,750.40, 08-Feb-2022
555,Revenue,CAHD,South Glos Users in South Glos Homes,Permanent Nursing,Blossom Fields Nursing Home,750.40, 08-Feb-2022
556,Revenue,CAHD,ASC Rapid Testing Fund,Grants to Voluntary Bodies,Blossom Fields Nursing Home,3416.79, 18-Feb-2022
557,Revenue,CAHD,Covid  - Workforce capacity,Grants to Voluntary Bodies,Blossom Fields Nursing Home,9098.84, 08-Feb-2022
558,Revenue,CAHD,North - Community based support,Permanent Residential,Blossom Fields Nursing Home,500.00, 08-Feb-2022
559,Revenue,CAHD,Central - Commissioned Services,Permanent Residential,Blossom Fields Nursing Home,3632.17, 22-Feb-2022
560,Revenue,CAHD,Central - Commissioned Services,Respite Planned - Nursing,Blossom Fields Nursing Home,9299.97, 22-Feb-2022
561,Revenue,CAHD,South Glos Users in South Glos Homes,Permanent Nursing,Blossom Fields Nursing Home,911.20, 22-Feb-2022
562,Revenue,CAHD,South Glos Users in South Glos Homes,Permanent Nursing,Blossom Fields Nursing Home,1608.00, 22-Feb-2022
563,Revenue,CAHD,Covid - ASC - Infection Control,Grants to Voluntary Bodies,Blossom Fields Nursing Home,7268.93, 18-Feb-2022
564,Revenue,CAHD,South Glos Users in South Glos Homes,Permanent Nursing,Blossom Fields Nursing Home,750.40, 08-Feb-2022
565,Revenue,CAHD,South Glos Users in South Glos Homes,Permanent Nursing,Blossom Fields Nursing Home,750.40, 08-Feb-2022
566,Revenue,CAHD,South Glos Users in South Glos Homes,Permanent Nursing,Blossom Fields Nursing Home,750.40, 08-Feb-2022
567,Revenue,CAHD,South Glos Users in South Glos Homes,Permanent Nursing,Blossom Fields Nursing Home,750.40, 08-Feb-2022
568,Revenue,CAHD,South Glos Users in South Glos Homes,Permanent Nursing,Blossom Fields Nursing Home,750.40, 08-Feb-2022
569,Revenue,CAHD,North - Community based support,Permanent Residential,Blossom Fields Nursing Home,3300.00, 08-Feb-2022
570,Revenue,CAHD,North - Community based support,Fees & Charges Income - General,Blossom Fields Nursing Home,-1356.44, 08-Feb-2022
571,Revenue,CAHD,South Glos Users in South Glos Homes,Permanent Nursing,Blossom Fields Nursing Home,750.40, 08-Feb-2022
572,Revenue,CAHD,South Glos Users in South Glos Homes,Permanent Nursing,Blossom Fields Nursing Home,750.40, 08-Feb-2022
573,Revenue,CAHD,Central - Commissioned Services,Permanent Residential,Blossom Fields Nursing Home,3800.00, 08-Feb-2022
574,Revenue,CAHD,South Glos Users in South Glos Homes,Permanent Nursing,Blossom Fields Nursing Home,750.40, 08-Feb-2022
575,Revenue,CAHD,South Glos Users in South Glos Homes,Permanent Nursing,Blossom Fields Nursing Home,750.40, 08-Feb-2022
576,Revenue,CAHD,South - Commissioned Services,Permanent Nursing,Blossom Fields Nursing Home,4790.76, 08-Feb-2022
577,Revenue,CAHD,South - Commissioned Services,Fees & Charges Income - General,Blossom Fields Nursing Home,-993.60, 08-Feb-2022
578,Revenue,CAHD,South Glos Users in South Glos Homes,Permanent Nursing,Blossom Fields Nursing Home,750.40, 08-Feb-2022
579,Revenue,CAHD,Central - Commissioned Services,Permanent Residential,Blossom Fields Nursing Home,3600.00, 08-Feb-2022
580,Revenue,CAHD,Central - Commissioned Services,Fees & Charges Income - General,Blossom Fields Nursing Home,-608.80, 08-Feb-2022
581,Revenue,CAHD,South Glos Users in South Glos Homes,Permanent Nursing,Blossom Fields Nursing Home,750.40, 08-Feb-2022
582,Revenue,CAHD,Central - Commissioned Services,Permanent Nursing,Blossom Fields Nursing Home,5123.80, 08-Feb-2022
583,Revenue,CAHD,South Glos Users in South Glos Homes,Permanent Nursing,Blossom Fields Nursing Home,750.40, 08-Feb-2022
584,Revenue,CAHD,Central - Commissioned Services,Permanent Nursing,Blossom Fields Nursing Home,4132.12, 08-Feb-2022
585,Revenue,CAHD,Central - Commissioned Services,Fees & Charges Income - General,Blossom Fields Nursing Home,-1204.96, 08-Feb-2022
586,Revenue,CAHD,South Glos Users in South Glos Homes,Permanent Nursing,Blossom Fields Nursing Home,750.40, 08-Feb-2022
587,Revenue,CAHD,South - Commissioned Services,Permanent Nursing,Blossom Fields Nursing Home,3943.04, 08-Feb-2022
588,Revenue,CAHD,South - Commissioned Services,Fees & Charges Income - General,Blossom Fields Nursing Home,-1112.52, 08-Feb-2022
589,Revenue,CAHD,South Glos Users in South Glos Homes,Permanent Nursing,Blossom Fields Nursing Home,750.40, 08-Feb-2022
590,Revenue,CAHD,Central - Commissioned Services,Permanent Nursing,Blossom Fields Nursing Home,4132.12, 08-Feb-2022
591,Revenue,CAHD,Central - Commissioned Services,Fees & Charges Income - General,Blossom Fields Nursing Home,-2529.00, 08-Feb-2022
592,Revenue,CAHD,South Glos Users in South Glos Homes,Permanent Nursing,Blossom Fields Nursing Home,750.40, 08-Feb-2022
593,Revenue,CAHD,Central - Commissioned Services,Permanent Nursing,Blossom Fields Nursing Home,4790.76, 08-Feb-2022
594,Revenue,CAHD,Central - Commissioned Services,Fees & Charges Income - General,Blossom Fields Nursing Home,-473.60, 08-Feb-2022
595,Revenue,CAHD,South Glos Users in South Glos Homes,Permanent Nursing,Blossom Fields Nursing Home,750.40, 08-Feb-2022
596,Revenue,CAHD,South Glos Users in South Glos Homes,Permanent Nursing,Blossom Fields Nursing Home,750.40, 08-Feb-2022
597,Revenue,CAHD,South Glos Users in South Glos Homes,Permanent Nursing,Blossom Fields Nursing Home,750.40, 08-Feb-2022
598,Revenue,CAHD,South - Commissioned Services,Permanent Nursing,Blossom Fields Nursing Home,4133.20, 08-Feb-2022
599,Revenue,CAHD,South - Commissioned Services,Fees & Charges Income - General,Blossom Fields Nursing Home,-903.68, 08-Feb-2022
600,Revenue,CAHD,South Glos Users in South Glos Homes,Permanent Nursing,Blossom Fields Nursing Home,750.40, 08-Feb-2022
601,Revenue,CAHD,North - S117,Permanent Residential,Blossom Fields Nursing Home,4910.40, 08-Feb-2022
602,Revenue,CAHD,South Glos Users in South Glos Homes,Permanent Nursing,Blossom Fields Nursing Home,750.40, 08-Feb-2022
603,Revenue,CAHD,South Glos Users in South Glos Homes,Permanent Nursing,Blossom Fields Nursing Home,750.40, 08-Feb-2022
604,Revenue,CAHD,South Glos Users in South Glos Homes,Permanent Nursing,Blossom Fields Nursing Home,750.40, 08-Feb-2022
605,Revenue,CAHD,North - S117,Permanent Residential,Blossom Fields Nursing Home,5115.00, 08-Feb-2022
606,Revenue,CAHD,South Glos Users in South Glos Homes,Permanent Nursing,Blossom Fields Nursing Home,750.40, 08-Feb-2022
607,Revenue,CAHD,South Glos Users in South Glos Homes,Permanent Nursing,Blossom Fields Nursing Home,750.40, 08-Feb-2022
608,Revenue,CAHD,Central - Commissioned Services,Permanent Nursing,Blossom Fields Nursing Home,4818.72, 08-Feb-2022
609,Revenue,CAHD,Central - Commissioned Services,Fees & Charges Income - General,Blossom Fields Nursing Home,-1173.24, 08-Feb-2022
610,Revenue,CAHD,South Glos Users in South Glos Homes,Permanent Nursing,Blossom Fields Nursing Home,750.40, 08-Feb-2022
611,Revenue,CAHD,South Glos Users in South Glos Homes,Permanent Nursing,Blossom Fields Nursing Home,750.40, 08-Feb-2022
612,Revenue,CAHD,Central - Commissioned Services,Permanent Nursing,Blossom Fields Nursing Home,4132.12, 08-Feb-2022
613,Revenue,CAHD,Central - Commissioned Services,Fees & Charges Income - General,Blossom Fields Nursing Home,-1150.40, 08-Feb-2022
614,Revenue,CAHD,South Glos Users in South Glos Homes,Permanent Nursing,Blossom Fields Nursing Home,750.40, 08-Feb-2022
615,Revenue,CAHD,Central - Commissioned Services,Permanent Nursing,Blossom Fields Nursing Home,4600.00, 08-Feb-2022
616,Revenue,CAHD,Central - Commissioned Services,Fees & Charges Income - General,Blossom Fields Nursing Home,-1667.72, 08-Feb-2022
617,Revenue,CAHD,South Glos Users in South Glos Homes,Permanent Nursing,Blossom Fields Nursing Home,750.40, 08-Feb-2022
618,Revenue,CAHD,South Glos Users in South Glos Homes,Permanent Nursing,Blossom Fields Nursing Home,750.40, 08-Feb-2022
619,Revenue,CAHD,South Glos Users in South Glos Homes,Permanent Nursing,Blossom Fields Nursing Home,750.40, 08-Feb-2022
620,Revenue,CAHD,South Glos Users in South Glos Homes,Permanent Nursing,Blossom Fields Nursing Home,750.40, 08-Feb-2022
621,Revenue,CAHD,South Glos Users in South Glos Homes,Permanent Nursing,Blossom Fields Nursing Home,750.40, 08-Feb-2022
622,Revenue,CAHD,South Glos Users in South Glos Homes,Permanent Nursing,Blossom Fields Nursing Home,750.40, 08-Feb-2022
623,Revenue,CAHD,South Glos Users in South Glos Homes,Permanent Nursing,Blossom Fields Nursing Home,750.40, 08-Feb-2022
624,Revenue,CAHD,South - Commissioned Services,Permanent Nursing,Blossom Fields Nursing Home,5000.00, 08-Feb-2022
625,Revenue,CAHD,South Glos Users in South Glos Homes,Permanent Nursing,Blossom Fields Nursing Home,750.40, 08-Feb-2022
626,Revenue,CAHD,South Glos Users in South Glos Homes,Permanent Nursing,Blossom Fields Nursing Home,750.40, 08-Feb-2022
627,Revenue,CAHD,North - S117,Permanent Nursing,Blossom Fields Nursing Home,4132.12, 08-Feb-2022
628,Revenue,CAHD,South Glos Users in South Glos Homes,Permanent Nursing,Blossom Fields Nursing Home,750.40, 08-Feb-2022
629,Revenue,CAHD,South Glos Users in South Glos Homes,Permanent Nursing,Blossom Fields Nursing Home,750.40, 08-Feb-2022
630,Revenue,CAHD,South Glos Users in South Glos Homes,Permanent Nursing,Blossom Fields Nursing Home,750.40, 08-Feb-2022
631,Revenue,CAHD,South Glos Users in South Glos Homes,Permanent Nursing,Blossom Fields Nursing Home,750.40, 08-Feb-2022
632,Revenue,CAHD,South Glos Users in South Glos Homes,Permanent Nursing,Blossom Fields Nursing Home,750.40, 08-Feb-2022
633,Revenue,CAHD,South Glos Users in South Glos Homes,Permanent Nursing,Blossom Fields Nursing Home,750.40, 08-Feb-2022
634,Revenue,CAHD,South Glos Users in South Glos Homes,Permanent Nursing,Blossom Fields Nursing Home,750.40, 08-Feb-2022
635,Revenue,CAHD,South Glos Users in South Glos Homes,Permanent Nursing,Blossom Fields Nursing Home,750.40, 08-Feb-2022
636,Revenue,CAHD,North - Community based support,Permanent Nursing,Blossom Fields Nursing Home,4133.20, 08-Feb-2022
637,Revenue,CAHD,North - Community based support,Fees & Charges Income - General,Blossom Fields Nursing Home,-608.80, 08-Feb-2022
638,Revenue,CAHD,South Glos Users in South Glos Homes,Permanent Nursing,Blossom Fields Nursing Home,750.40, 08-Feb-2022
639,Revenue,CAHD,South Glos Users in South Glos Homes,Permanent Nursing,Blossom Fields Nursing Home,750.40, 08-Feb-2022
640,Revenue,CAHD,South - Commissioned Services,Permanent Nursing,Blossom Fields Nursing Home,3600.00, 08-Feb-2022
641,Revenue,CAHD,South Glos Users in South Glos Homes,Permanent Nursing,Blossom Fields Nursing Home,750.40, 08-Feb-2022
642,Revenue,CAHD,Central - Commissioned Services,Permanent Nursing,Blossom Fields Nursing Home,5115.00, 08-Feb-2022
643,Revenue,CAHD,Central - Commissioned Services,Fees & Charges Income - General,Blossom Fields Nursing Home,-1423.64, 08-Feb-2022
644,Revenue,CAHD,South Glos Users in South Glos Homes,Permanent Nursing,Blossom Fields Nursing Home,750.40, 08-Feb-2022
645,Revenue,CAHD,South Glos Users in South Glos Homes,Permanent Nursing,Blossom Fields Nursing Home,750.40, 08-Feb-2022
646,Revenue,CAHD,Central - Commissioned Services,Permanent Nursing,Blossom Fields Nursing Home,4132.12, 08-Feb-2022
647,Revenue,CAHD,ASC Rapid Testing Fund,Grants to Voluntary Bodies,Blossom Fields Nursing Home,5164.92, 18-Feb-2022
648,Revenue,CAHD,Covid - Vaccines,Grants to Voluntary Bodies,Blossom Fields Nursing Home,635.02, 18-Feb-2022
649,Revenue,CAHD,Covid  - Workforce capacity,Grants to Voluntary Bodies,Blossom Fields Nursing Home,11330.63, 08-Feb-2022
650,Revenue,CAHD,Statemented Support Payments to OLAs,Other L.A.s - General,Blue Coat CE VA Primary School,837.09, 23-Feb-2022
651,Revenue,CAHD,Statemented Support Payments to OLAs,Other L.A.s - General,Blue Coat CE VA Primary School,1292.50, 23-Feb-2022
652,Revenue,CAHD,North - Community based support,Permanent Residential,Bluebells,3699.60, 08-Feb-2022
653,Revenue,CAHD,North - Community based support,Fees & Charges Income - General,Bluebells,-835.00, 08-Feb-2022
654,Revenue,CAHD,Central - Commissioned Services,Other Small Contracts,Bluebird Care (South Gloucestershire),763.20, 25-Feb-2022
655,Revenue,CAHD,Central - Commissioned Services,Other Small Contracts,Bluebird Care (South Gloucestershire),10969.74, 07-Feb-2022
656,Revenue,CAHD,South - Commissioned Services,Other Small Contracts,Bluebird Care (South Gloucestershire),3801.99, 07-Feb-2022
657,Revenue,CAHD,North - Community based support,Other Small Contracts,Bluebird Care (South Gloucestershire),4641.39, 07-Feb-2022
658,Revenue,CAHD,North - Community based support,Other Small Contracts,Bluebird Care (South Gloucestershire),4656.41, 03-Feb-2022
659,Revenue,CAHD,South - Commissioned Services,Other Small Contracts,Bluebird Care (South Gloucestershire),3832.17, 03-Feb-2022
660,Revenue,CAHD,Central - Commissioned Services,Other Small Contracts,Bluebird Care (South Gloucestershire),12920.21, 03-Feb-2022
661,Revenue,CAHD,North - Community based support,Other Small Contracts,Bluebird Care (South Gloucestershire),4656.41, 10-Feb-2022
662,Revenue,CAHD,South - Commissioned Services,Other Small Contracts,Bluebird Care (South Gloucestershire),3832.17, 10-Feb-2022
663,Revenue,CAHD,Central - Commissioned Services,Other Small Contracts,Bluebird Care (South Gloucestershire),12920.21, 10-Feb-2022
664,Revenue,CAHD,North - Community based support,Other Small Contracts,Bluebird Care (South Gloucestershire),4656.41, 17-Feb-2022
665,Revenue,CAHD,South - Commissioned Services,Other Small Contracts,Bluebird Care (South Gloucestershire),3832.17, 17-Feb-2022
666,Revenue,CAHD,Central - Commissioned Services,Other Small Contracts,Bluebird Care (South Gloucestershire),12920.21, 17-Feb-2022
667,Revenue,CAHD,Central - Commissioned Services,Other Small Contracts,Bluebird Care (South Gloucestershire),604.00, 22-Feb-2022
668,Revenue,CAHD,Drug and Alcohol Programme,Other Small Contracts,Boots UK Ltd,900.00, 01-Feb-2022
669,Revenue,CAHD,S28A cases,Permanent Residential,Bradbury House,6505.16, 08-Feb-2022
670,Revenue,CAHD,S28A cases,Fees & Charges Income - General,Bradbury House,-425.60, 08-Feb-2022
671,Revenue,CAHD,North - S117,Permanent Residential,Bradbury House,7106.96, 08-Feb-2022
672,Revenue,CAHD,Jointly Funded H&SC Packages,Permanent Residential,Bradbury House,7106.96, 08-Feb-2022
673,Revenue,CAHD,Drug and Alcohol Programme,Other Small Contracts,Bradley Stoke Surgery,1522.50, 01-Feb-2022
674,Revenue,CAHD,CSC - Residential Placements,Permanent Residential,Branas ISAF Ltd,19799.92, 22-Feb-2022
675,Revenue,CAHD,Social Lettings Agency,Rent,Individual,822.73, 25-Feb-2022
676,Revenue,CAHD,Social Lettings Agency,Fees & Charges Income - General,Individual,-102.80, 25-Feb-2022
677,Revenue,CAHD,Social Lettings Agency,Rent,Individual,915.00, 03-Feb-2022
678,Revenue,CAHD,Social Lettings Agency,Fees & Charges Income - General,Individual,-73.20, 03-Feb-2022
679,Revenue,CAHD,Placements OLA Special Schools and RB,Other L.A.s - General,Briarwood School,2506.21, 23-Feb-2022
680,Revenue,CAHD,Placements OLA Special Schools and RB,Other L.A.s - General,Briarwood School,715.72, 23-Feb-2022
681,Revenue,CAHD,Covid - ASC - Infection Control,Grants to Voluntary Bodies,Bridge House Care Home,1789.27, 18-Feb-2022
682,Revenue,CAHD,North - Community based support,Permanent Residential,Bridge House Care Home,3100.00, 08-Feb-2022
683,Revenue,CAHD,North - Community based support,Fees & Charges Income - General,Bridge House Care Home,-608.80, 08-Feb-2022
684,Revenue,CAHD,North - Community based support,Permanent Residential,Bridge House Care Home,2913.52, 08-Feb-2022
685,Revenue,CAHD,North - Community based support,Fees & Charges Income - General,Bridge House Care Home,-1629.84, 08-Feb-2022
686,Revenue,CAHD,ASC Rapid Testing Fund,Grants to Voluntary Bodies,Bridge House Care Home,1271.37, 18-Feb-2022
687,Revenue,CAHD,North - Community based support,Permanent Residential,Bridgwater Court Care Home,10773.64, 08-Feb-2022
688,Revenue,CAHD,Statemented Support Payments to OLAs,Other L.A.s - General,Bristol Cathedral Choir School,942.58, 23-Feb-2022
689,Revenue,CAHD,Statemented Support Payments to OLAs,Other L.A.s - General,Bristol Cathedral Choir School,880.08, 23-Feb-2022
690,Revenue,CAHD,Statemented Support Payments to OLAs,Other L.A.s - General,Bristol Cathedral Choir School,978.57, 23-Feb-2022
691,Revenue,CAHD,Leadership and Business Support,Grants to Voluntary Bodies,Bristol City Council,18200.00, 02-Feb-2022
692,Revenue,CAHD,CSC - Agency Fostering,Foster Parent Allowances,Bristol City Council,3100.00, 14-Feb-2022
693,Revenue,CAHD,Transport OLA Special Schools and RB,Client Transport,Bristol City Council,6320.00, 14-Feb-2022
694,Revenue,CAHD,Special Needs - Special Schools HTST,Client Transport Recharge,Bristol City Council,565.00, 28-Feb-2022
695,Revenue,CAHD,KS2 Moderation,Other Public Bodies,Bristol City Council - Schools,900.00, 21-Feb-2022
696,Revenue,CAHD,Statemented Support Payments to OLAs,Other L.A.s - General,Bristol City Council Schools General,897.42, 23-Feb-2022
697,Revenue,CAHD,Statemented Support Payments to OLAs,Other L.A.s - General,Bristol City Council Schools General,635.33, 23-Feb-2022
698,Revenue,CAHD,Children Centres - South Locality,Membership Fees,Bristol Clifton & West of England Zoological,450.00, 02-Feb-2022
699,Revenue,CAHD,CSC - CLA Placements,Personal Needs of Clients,Bristol Clifton & West of England Zoological,450.00, 23-Feb-2022
700,Revenue,CAHD,Other Alternative Provision Services,Other Private Contractors,Bristol Tuition Limited,480.00, 11-Feb-2022
701,Revenue,CAHD,Other Alternative Provision Services,Other Private Contractors,Bristol Tuition Limited,680.00, 15-Feb-2022
702,Revenue,CAHD,Other Alternative Provision Services,Other Private Contractors,Bristol Tuition Limited,600.00, 21-Feb-2022
703,Revenue,CAHD,Statemented Support Payments to OLAs,Other L.A.s - General,Broadlands Academy,835.17, 23-Feb-2022
704,Revenue,CAHD,North - Community based support,Permanent Residential,Brockhills Farm,3200.00, 08-Feb-2022
705,Revenue,CAHD,North - Community based support,Fees & Charges Income - General,Brockhills Farm,-639.08, 08-Feb-2022
706,Revenue,CAHD,Supporting People Programme,Grants to Voluntary Bodies,Bromford  :  Merlin Housing Society,15637.00, 01-Feb-2022
707,Revenue,CAHD,Supporting People Programme,Grants to Voluntary Bodies,Bromford  :  Merlin Housing Society,2741.00, 01-Feb-2022
708,Revenue,CAHD,Supporting People Programme,Grants to Voluntary Bodies,Bromford  :  Merlin Housing Society,22940.00, 01-Feb-2022
709,Revenue,CAHD,Supporting People Programme,Grants to Voluntary Bodies,Bromford  :  Merlin Housing Society,1113.00, 01-Feb-2022
710,Revenue,CAHD,Parent Partnership & Disagreement Resolutions,Fees - General,Browne Jacobson,742.50, 18-Feb-2022
711,Revenue,CAHD,South Glos Users in South Glos Homes,Permanent Nursing,Brunelcare,830.80, 03-Feb-2022
712,Revenue,CAHD,South Glos Users in South Glos Homes,Permanent Nursing,Brunelcare,830.80, 03-Feb-2022
713,Revenue,CAHD,South Glos Users in South Glos Homes,Permanent Nursing,Brunelcare,830.80, 03-Feb-2022
714,Revenue,CAHD,South Glos Users in South Glos Homes,Permanent Nursing,Brunelcare,830.80, 03-Feb-2022
715,Revenue,CAHD,South Glos Users in South Glos Homes,Permanent Nursing,Brunelcare,830.80, 03-Feb-2022
716,Revenue,CAHD,South Glos Users in South Glos Homes,Permanent Nursing,Brunelcare,830.80, 03-Feb-2022
717,Revenue,CAHD,South Glos Users in South Glos Homes,Permanent Nursing,Brunelcare,830.80, 03-Feb-2022
718,Revenue,CAHD,South Glos Users in South Glos Homes,Permanent Nursing,Brunelcare,830.80, 03-Feb-2022
719,Revenue,CAHD,South Glos Users in South Glos Homes,Permanent Nursing,Brunelcare,830.80, 03-Feb-2022
720,Revenue,CAHD,North - S117,Permanent Nursing,Brunelcare,3828.54, 03-Feb-2022
721,Revenue,CAHD,North - S117,Permanent Nursing,Brunelcare,3828.54, 03-Feb-2022
722,Revenue,CAHD,South - Commissioned Services,Permanent Nursing,Brunelcare,4659.34, 03-Feb-2022
723,Revenue,CAHD,South - Commissioned Services,Permanent Nursing,Brunelcare,2743.06, 03-Feb-2022
724,Revenue,CAHD,South - Commissioned Services,Permanent Nursing,Brunelcare,4659.34, 03-Feb-2022
725,Revenue,CAHD,South - Commissioned Services,Permanent Nursing,Brunelcare,3096.55, 03-Feb-2022
726,Revenue,CAHD,South - Commissioned Services,Permanent Nursing,Brunelcare,3171.34, 03-Feb-2022
727,Revenue,CAHD,South - Commissioned Services,Permanent Nursing,Brunelcare,2220.40, 03-Feb-2022
728,Revenue,CAHD,Central - Commissioned Services,Permanent Nursing,Brunelcare,2876.27, 03-Feb-2022
729,Revenue,CAHD,Central - Commissioned Services,Permanent Nursing,Brunelcare,3057.66, 03-Feb-2022
730,Revenue,CAHD,South - Commissioned Services,Respite Planned - Nursing,Brunelcare,617.51, 03-Feb-2022
731,Revenue,CAHD,South - Commissioned Services,Respite Planned - Nursing,Brunelcare,988.01, 03-Feb-2022
732,Revenue,CAHD,South - Commissioned Services,Respite Planned - Nursing,Brunelcare,2705.43, 03-Feb-2022
733,Revenue,CAHD,North - Community based support,Permanent Nursing,Brunelcare,3828.54, 03-Feb-2022
734,Revenue,CAHD,Central - Commissioned Services,Permanent Nursing,Brunelcare,3358.02, 03-Feb-2022
735,Revenue,CAHD,South - Commissioned Services,Permanent Nursing,Brunelcare,7214.46, 03-Feb-2022
736,Revenue,CAHD,Central - Commissioned Services,Respite Planned - Nursing,Brunelcare,988.01, 03-Feb-2022
737,Revenue,CAHD,South Glos Users in South Glos Homes,Permanent Nursing,Brunelcare,830.80, 21-Feb-2022
738,Revenue,CAHD,South Glos Users in South Glos Homes,Permanent Nursing,Brunelcare,830.80, 21-Feb-2022
739,Revenue,CAHD,South Glos Users in South Glos Homes,Permanent Nursing,Brunelcare,830.80, 21-Feb-2022
740,Revenue,CAHD,South Glos Users in South Glos Homes,Permanent Nursing,Brunelcare,830.80, 21-Feb-2022
741,Revenue,CAHD,South Glos Users in South Glos Homes,Permanent Nursing,Brunelcare,830.80, 21-Feb-2022
742,Revenue,CAHD,South Glos Users in South Glos Homes,Permanent Nursing,Brunelcare,830.80, 21-Feb-2022
743,Revenue,CAHD,South Glos Users in South Glos Homes,Permanent Nursing,Brunelcare,830.80, 21-Feb-2022
744,Revenue,CAHD,South Glos Users in South Glos Homes,Permanent Nursing,Brunelcare,830.80, 21-Feb-2022
745,Revenue,CAHD,North - S117,Permanent Nursing,Brunelcare,3828.54, 21-Feb-2022
746,Revenue,CAHD,North - S117,Permanent Nursing,Brunelcare,3828.54, 21-Feb-2022
747,Revenue,CAHD,South - Commissioned Services,Permanent Nursing,Brunelcare,4659.34, 21-Feb-2022
748,Revenue,CAHD,South - Commissioned Services,Permanent Nursing,Brunelcare,2743.06, 21-Feb-2022
749,Revenue,CAHD,South - Commissioned Services,Permanent Nursing,Brunelcare,4659.34, 21-Feb-2022
750,Revenue,CAHD,South - Commissioned Services,Permanent Nursing,Brunelcare,3096.55, 21-Feb-2022
751,Revenue,CAHD,South - Commissioned Services,Permanent Nursing,Brunelcare,3171.34, 21-Feb-2022
752,Revenue,CAHD,South - Commissioned Services,Permanent Nursing,Brunelcare,2220.40, 21-Feb-2022
753,Revenue,CAHD,Central - Commissioned Services,Permanent Nursing,Brunelcare,2876.27, 21-Feb-2022
754,Revenue,CAHD,Central - Commissioned Services,Permanent Nursing,Brunelcare,591.81, 21-Feb-2022
755,Revenue,CAHD,Central - Commissioned Services,Permanent Nursing,Brunelcare,3757.54, 21-Feb-2022
756,Revenue,CAHD,South - Commissioned Services,Respite Planned - Nursing,Brunelcare,4659.34, 21-Feb-2022
757,Revenue,CAHD,North - Community based support,Permanent Nursing,Brunelcare,3828.54, 21-Feb-2022
758,Revenue,CAHD,Central - Commissioned Services,Other Small Contracts,Brunelcare,383.04, 09-Feb-2022
759,Revenue,CAHD,South - Commissioned Services,Other Small Contracts,Brunelcare,13448.96, 09-Feb-2022
760,Revenue,CAHD,South - Commissioned Services,Mentoring,Brunelcare,63.84, 09-Feb-2022
761,Revenue,CAHD,North - Community based support,Other Small Contracts,Brunelcare,377.72, 09-Feb-2022
762,Revenue,CAHD,South - Commissioned Services,Other Small Contracts,Brunelcare,13503.64, 03-Feb-2022
763,Revenue,CAHD,South - Commissioned Services,Other Small Contracts,Brunelcare,13503.64, 10-Feb-2022
764,Revenue,CAHD,South - Commissioned Services,Other Small Contracts,Brunelcare,13503.64, 17-Feb-2022
765,Revenue,CAHD,Covid - ASC - Infection Control,Grants to Voluntary Bodies,Brunelcare,3442.62, 18-Feb-2022
766,Revenue,CAHD,ASC Rapid Testing Fund,Grants to Voluntary Bodies,Brunelcare,2525.41, 18-Feb-2022
767,Revenue,CAHD,Pathway 1 - Re-Ablement Home Care,Other Small Contracts,Brunelcare,2406.77, 17-Feb-2022
768,Revenue,CAHD,Covid - Vaccines,Grants to Voluntary Bodies,Brunelcare,920.63, 18-Feb-2022
769,Revenue,CAHD,North - S117,Permanent Residential,Buckland Care,3600.00, 08-Feb-2022
770,Revenue,CAHD,EARLY YEARS DISABILITY  ACCES FUND,Preventative Assistance,Busy Bees Barrs Court formerly Just Learning Ltd,615.00, 10-Feb-2022
771,Revenue,CAHD,EARLY YEARS DISABILITY  ACCES FUND,Preventative Assistance,Butterflies (Bristol) Limited,615.00, 10-Feb-2022
772,Revenue,CAHD,CSC - Vinney Green Secure Unit,R & M by Departments,BWS Standfast Fire & Security Systems,41320.00, 25-Feb-2022
773,Revenue,CAHD,Social Lettings Agency,Rent,Individual,947.40, 11-Feb-2022
774,Revenue,CAHD,Social Lettings Agency,Fees & Charges Income - General,Individual,-94.74, 11-Feb-2022
775,Revenue,CAHD,North - Community based support,Permanent Nursing,Clevedon Court Nursing Home,3448.16, 08-Feb-2022
776,Revenue,CAHD,Statemented Support Academies,Other Public Bodies,Cabot Learning Federation,1179.67, 23-Feb-2022
777,Revenue,CAHD,Statemented Support Academies,Other Public Bodies,Cabot Learning Federation,646.67, 23-Feb-2022
778,Revenue,CAHD,Statemented Support Academies,Other Public Bodies,Cabot Learning Federation,836.67, 23-Feb-2022
779,Revenue,CAHD,Statemented Support Academies,Other Public Bodies,Cabot Learning Federation,1666.67, 23-Feb-2022
780,Revenue,CAHD,Statemented Support Academies,Other Public Bodies,Cabot Learning Federation,1103.25, 23-Feb-2022
781,Revenue,CAHD,Statemented Support Academies,Other Public Bodies,Cabot Learning Federation,1899.58, 23-Feb-2022
782,Revenue,CAHD,Statemented Support Academies,Other Public Bodies,Cabot Learning Federation,1654.33, 23-Feb-2022
783,Revenue,CAHD,Statemented Support Academies,Other Public Bodies,Cabot Learning Federation,658.75, 23-Feb-2022
784,Revenue,CAHD,Statemented Support Academies,Other Public Bodies,Cabot Learning Federation,632.67, 23-Feb-2022
785,Revenue,CAHD,Statemented Support Academies,Other Public Bodies,Cabot Learning Federation,695.61, 23-Feb-2022
786,Revenue,CAHD,Statemented Support Academies,Other Public Bodies,Cabot Learning Federation,918.75, 23-Feb-2022
787,Revenue,CAHD,Statemented Support Academies,Other Public Bodies,Cabot Learning Federation,975.58, 23-Feb-2022
788,Revenue,CAHD,Statemented Support Academies,Other Public Bodies,Cabot Learning Federation,705.00, 23-Feb-2022
789,Revenue,CAHD,Statemented Support Academies,Other Public Bodies,Cabot Learning Federation,1084.17, 23-Feb-2022
790,Revenue,CAHD,Academy Resource Base Funding,Other Public Bodies,Cabot Learning Federation,1538.16, 21-Feb-2022
791,Revenue,CAHD,Academy Resource Base Funding,Other Public Bodies,Cabot Learning Federation,1391.72, 21-Feb-2022
792,Revenue,CAHD,Academy Resource Base Funding,Other Public Bodies,Cabot Learning Federation,1391.72, 21-Feb-2022
793,Revenue,CAHD,Academy Resource Base Funding,Other Public Bodies,Cabot Learning Federation,1062.08, 21-Feb-2022
794,Revenue,CAHD,Academy Resource Base Funding,Other Public Bodies,Cabot Learning Federation,1062.08, 21-Feb-2022
795,Revenue,CAHD,Academy Resource Base Funding,Other Public Bodies,Cabot Learning Federation,1062.08, 21-Feb-2022
796,Revenue,CAHD,Academy Resource Base Funding,Other Public Bodies,Cabot Learning Federation,1391.72, 21-Feb-2022
797,Revenue,CAHD,Academy Resource Base Funding,Other Public Bodies,Cabot Learning Federation,915.64, 21-Feb-2022
798,Revenue,CAHD,Academy Resource Base Funding,Other Public Bodies,Cabot Learning Federation,1538.16, 21-Feb-2022
799,Revenue,CAHD,Academy Resource Base Funding,Other Public Bodies,Cabot Learning Federation,1062.08, 21-Feb-2022
800,Revenue,CAHD,Academy Resource Base Funding,Other Public Bodies,Cabot Learning Federation,1062.08, 21-Feb-2022
801,Revenue,CAHD,Academy Resource Base Funding,Other Public Bodies,Cabot Learning Federation,1538.16, 21-Feb-2022
802,Revenue,CAHD,Academy Resource Base Funding,Other Public Bodies,Cabot Learning Federation,585.92, 21-Feb-2022
803,Revenue,CAHD,Academy Resource Base Funding,Other Public Bodies,Cabot Learning Federation,1062.08, 21-Feb-2022
804,Revenue,CAHD,Academy Resource Base Funding,Other Public Bodies,Cabot Learning Federation,2270.60, 21-Feb-2022
805,Revenue,CAHD,Academy Resource Base Funding,Other Public Bodies,Cabot Learning Federation,1538.16, 21-Feb-2022
806,Revenue,CAHD,Academy Resource Base Funding,Other Public Bodies,Cabot Learning Federation,1062.08, 21-Feb-2022
807,Revenue,CAHD,Academy Resource Base Funding,Other Public Bodies,Cabot Learning Federation,1538.16, 21-Feb-2022
808,Revenue,CAHD,Academy Resource Base Funding,Other Public Bodies,Cabot Learning Federation,1538.16, 21-Feb-2022
809,Revenue,CAHD,Academy Resource Base Funding,Other Public Bodies,Cabot Learning Federation,585.92, 21-Feb-2022
810,Revenue,CAHD,Academy Resource Base Funding,Other Public Bodies,Cabot Learning Federation,1391.72, 21-Feb-2022
811,Revenue,CAHD,Academy Resource Base Funding,Other Public Bodies,Cabot Learning Federation,1062.08, 21-Feb-2022
812,Revenue,CAHD,Academy Resource Base Funding,Other Public Bodies,Cabot Learning Federation,1977.64, 21-Feb-2022
813,Revenue,CAHD,Academy Resource Base Funding,Other Public Bodies,Cabot Learning Federation,1062.08, 21-Feb-2022
814,Revenue,CAHD,Statemented Support Academies,Other Public Bodies,Cabot Learning Federation,1626.67, 23-Feb-2022
815,Revenue,CAHD,Statemented Support Academies,Other Public Bodies,Cabot Learning Federation,710.58, 23-Feb-2022
816,Revenue,CAHD,Statemented Support Academies,Other Public Bodies,Cabot Learning Federation,804.08, 23-Feb-2022
817,Revenue,CAHD,Statemented Support Academies,Other Public Bodies,Cabot Learning Federation,855.08, 23-Feb-2022
818,Revenue,CAHD,Statemented Support Academies,Other Public Bodies,Cabot Learning Federation,554.13, 23-Feb-2022
819,Revenue,CAHD,Statemented Support Academies,Other Public Bodies,Cabot Learning Federation,742.77, 23-Feb-2022
820,Revenue,CAHD,Statemented Support Academies,Other Public Bodies,Cabot Learning Federation,778.14, 23-Feb-2022
821,Revenue,CAHD,Statemented Support Academies,Other Public Bodies,Cabot Learning Federation,1202.67, 23-Feb-2022
822,Revenue,CAHD,Statemented Support Academies,Other Public Bodies,Cabot Learning Federation,813.51, 23-Feb-2022
823,Revenue,CAHD,Statemented Support Payments to OLAs,Other L.A.s - General,Cabot Learning Federation,601.29, 23-Feb-2022
824,Revenue,CAHD,Statemented Support Academies,Other Public Bodies,Cabot Learning Federation,661.33, 23-Feb-2022
825,Revenue,CAHD,Statemented Support Academies,Other Public Bodies,Cabot Learning Federation,1131.84, 23-Feb-2022
826,Revenue,CAHD,Statemented Support Academies,Other Public Bodies,Cabot Learning Federation,1202.67, 23-Feb-2022
827,Revenue,CAHD,Statemented Support Academies,Other Public Bodies,Cabot Learning Federation,554.13, 23-Feb-2022
828,Revenue,CAHD,Statemented Support Academies,Other Public Bodies,Cabot Learning Federation,1028.08, 23-Feb-2022
829,Revenue,CAHD,Statemented Support Academies,Other Public Bodies,Cabot Learning Federation,1096.47, 23-Feb-2022
830,Revenue,CAHD,Statemented Support Academies,Other Public Bodies,Cabot Learning Federation,1429.42, 23-Feb-2022
831,Revenue,CAHD,Statemented Support Academies,Other Public Bodies,Cabot Learning Federation,730.98, 23-Feb-2022
832,Revenue,CAHD,Statemented Support Academies,Other Public Bodies,Cabot Learning Federation,680.42, 23-Feb-2022
833,Revenue,CAHD,Statemented Support Academies,Other Public Bodies,Cabot Learning Federation,1150.25, 23-Feb-2022
834,Revenue,CAHD,Statemented Support Academies,Other Public Bodies,Cabot Learning Federation,685.33, 23-Feb-2022
835,Revenue,CAHD,Statemented Support Academies,Other Public Bodies,Cabot Learning Federation,530.55, 23-Feb-2022
836,Revenue,CAHD,Statemented Support Payments to OLAs,Other L.A.s - General,Cabot Learning Federation,1062.33, 23-Feb-2022
837,Revenue,CAHD,Statemented Support Payments to OLAs,Other L.A.s - General,Cabot Learning Federation,809.75, 23-Feb-2022
838,Revenue,CAHD,Statemented Support Payments to OLAs,Other L.A.s - General,Cabot Learning Federation,888.33, 23-Feb-2022
839,Revenue,CAHD,Statemented Support Academies,Other Public Bodies,Cabot Learning Federation,577.50, 23-Feb-2022
840,Revenue,CAHD,Statemented Support Academies,Other Public Bodies,Cabot Learning Federation,1297.08, 23-Feb-2022
841,Revenue,CAHD,Statemented Support Academies,Other Public Bodies,Cabot Learning Federation,966.83, 23-Feb-2022
842,Revenue,CAHD,Statemented Support Academies,Other Public Bodies,Cabot Learning Federation,526.00, 23-Feb-2022
843,Revenue,CAHD,Statemented Support Payments to OLAs,Other L.A.s - General,Cabot Learning Federation,665.33, 23-Feb-2022
844,Revenue,CAHD,Drug and Alcohol Programme,Other Small Contracts,Cadbury Heath Healthcare,3248.00, 01-Feb-2022
845,Revenue,CAHD,South - Commissioned Services,Permanent Nursing,Caernarvon House,4800.00, 08-Feb-2022
846,Revenue,CAHD,South - Commissioned Services,Fees & Charges Income - General,Caernarvon House,-964.16, 08-Feb-2022
847,Revenue,CAHD,North - Community based support,Permanent Nursing,Caernarvon House,4710.40, 08-Feb-2022
848,Revenue,CAHD,North - Community based support,Fees & Charges Income - General,Caernarvon House,-608.80, 08-Feb-2022
849,Revenue,CAHD,North - S117,Permanent Nursing,Caernarvon House,3990.24, 08-Feb-2022
850,Revenue,CAHD,South - Commissioned Services,Permanent Nursing,Caernarvon House,4915.20, 08-Feb-2022
851,Revenue,CAHD,South - Commissioned Services,Fees & Charges Income - General,Caernarvon House,-1229.56, 08-Feb-2022
852,Revenue,CAHD,South - S117,Permanent Nursing,Caernarvon House,4915.20, 08-Feb-2022
853,Revenue,CAHD,South - Commissioned Services,Permanent Nursing,Caernarvon House,6360.64, 08-Feb-2022
854,Revenue,CAHD,North - Community based support,Permanent Nursing,Caernarvon House,3339.08, 08-Feb-2022
855,Revenue,CAHD,North - Community based support,Fees & Charges Income - General,Caernarvon House,-1009.72, 08-Feb-2022
856,Revenue,CAHD,South - Commissioned Services,Permanent Nursing,Caernarvon House,2960.00, 08-Feb-2022
857,Revenue,CAHD,South - Commissioned Services,Fees & Charges Income - General,Caernarvon House,-750.24, 08-Feb-2022
858,Revenue,CAHD,Post 16 High Needs Placements,Other Private Contractors,Cambian Whinfell School Limited,77712.30, 25-Feb-2022
859,Revenue,CAHD,Post 16 High Needs Placements,Other Private Contractors,Cambian Whinfell School Limited,69666.96, 25-Feb-2022
860,Revenue,CAHD,North - Community based support,Other Small Contracts,Camphill Communities Thornbury Limited,474.24, 04-Feb-2022
861,Revenue,CAHD,North - Community based support,Supported Living,Camphill Communities Thornbury Limited,237.12, 04-Feb-2022
862,Revenue,CAHD,North - Community based support,Other Small Contracts,Camphill Communities Thornbury Limited,637.26, 04-Feb-2022
863,Revenue,CAHD,North - Community based support,Supported Living,Camphill Communities Thornbury Limited,237.12, 04-Feb-2022
864,Revenue,CAHD,North - Community based support,Day Care / Social Activities,Camphill Communities Thornbury Limited,335.92, 11-Feb-2022
865,Revenue,CAHD,North - Community based support,Other Small Contracts,Camphill Communities Thornbury Limited,1546.22, 11-Feb-2022
866,Revenue,CAHD,North - Community based support,Supported Living,Camphill Communities Thornbury Limited,454.48, 11-Feb-2022
867,Revenue,CAHD,North - Community based support,Day Care / Social Activities,Camphill Communities Thornbury Limited,395.20, 18-Feb-2022
868,Revenue,CAHD,North - Community based support,Other Small Contracts,Camphill Communities Thornbury Limited,1654.90, 18-Feb-2022
869,Revenue,CAHD,North - Community based support,Supported Living,Camphill Communities Thornbury Limited,661.96, 18-Feb-2022
870,Revenue,CAHD,North - Community based support,Day Care / Social Activities,Camphill Communities Thornbury Limited,242.06, 25-Feb-2022
871,Revenue,CAHD,North - Community based support,Other Small Contracts,Camphill Communities Thornbury Limited,1654.90, 25-Feb-2022
872,Revenue,CAHD,North - Community based support,Supported Living,Camphill Communities Thornbury Limited,637.26, 25-Feb-2022
873,Revenue,CAHD,MH Purchasing - Younger,Permanent Residential,Canonbury Residential Home,4485.86, 22-Feb-2022
874,Revenue,CAHD,MH Purchasing - Younger,Permanent Residential,Canonbury Residential Home,3400.00, 08-Feb-2022
875,Revenue,CAHD,MH Purchasing - Younger,Fees & Charges Income - General,Canonbury Residential Home,-608.80, 08-Feb-2022
876,Revenue,CAHD,CSC - Agency Fostering,Foster Parent Allowances,Capstone Foster Care (South West) Limited,3498.66, 04-Feb-2022
877,Revenue,CAHD,Central - Commissioned Services,Other Small Contracts,Care 1st Homecare,4516.65, 10-Feb-2022
878,Revenue,CAHD,North - Community based support,Other Small Contracts,Care 1st Homecare,1454.91, 10-Feb-2022
879,Revenue,CAHD,Central - Commissioned Services,Other Small Contracts,Care 1st Homecare,3560.96, 16-Feb-2022
880,Revenue,CAHD,North - Community based support,Other Small Contracts,Care 1st Homecare,597.02, 03-Feb-2022
881,Revenue,CAHD,Central - Commissioned Services,Other Small Contracts,Care 1st Homecare,3523.25, 03-Feb-2022
882,Revenue,CAHD,North - Community based support,Other Small Contracts,Care 1st Homecare,597.02, 10-Feb-2022
883,Revenue,CAHD,Central - Commissioned Services,Other Small Contracts,Care 1st Homecare,3523.25, 10-Feb-2022
884,Revenue,CAHD,North - Community based support,Other Small Contracts,Care 1st Homecare,597.02, 17-Feb-2022
885,Revenue,CAHD,Central - Commissioned Services,Other Small Contracts,Care 1st Homecare,3523.25, 17-Feb-2022
886,Revenue,CAHD,North - Community based support,Respite Care,Care Horizons,0.00, 08-Feb-2022
887,Revenue,CAHD,North - Community based support,Supported Living,Care Horizons,5560.28, 08-Feb-2022
888,Revenue,CAHD,North - Community based support,Respite Care,Care Horizons,0.00, 08-Feb-2022
889,Revenue,CAHD,North - Community based support,Supported Living,Care Horizons,5560.28, 08-Feb-2022
890,Revenue,CAHD,18-25 Year Olds,Other Small Contracts,Care Horizons Limited,85.68, 10-Feb-2022
891,Revenue,CAHD,Central - Commissioned Services,Other Small Contracts,Care Horizons Limited,4424.56, 10-Feb-2022
892,Revenue,CAHD,South - Commissioned Services,Other Small Contracts,Care Horizons Limited,423.36, 10-Feb-2022
893,Revenue,CAHD,South - Commissioned Services,Mentoring,Care Horizons Limited,80.64, 10-Feb-2022
894,Revenue,CAHD,North - Community based support,Other Small Contracts,Care Horizons Limited,3300.08, 10-Feb-2022
895,Revenue,CAHD,Younger MH non-res purchasing,Other Small Contracts,Care Horizons Limited,262.08, 10-Feb-2022
896,Revenue,CAHD,North - Community based support,Other Small Contracts,Care Horizons Limited,3479.19, 03-Feb-2022
897,Revenue,CAHD,Central - Commissioned Services,Other Small Contracts,Care Horizons Limited,4777.24, 03-Feb-2022
898,Revenue,CAHD,North - Community based support,Other Small Contracts,Care Horizons Limited,3479.19, 10-Feb-2022
899,Revenue,CAHD,Central - Commissioned Services,Other Small Contracts,Care Horizons Limited,4777.24, 10-Feb-2022
900,Revenue,CAHD,North - Community based support,Other Small Contracts,Care Horizons Limited,3479.19, 17-Feb-2022
901,Revenue,CAHD,Central - Commissioned Services,Other Small Contracts,Care Horizons Limited,4777.24, 17-Feb-2022
902,Revenue,CAHD,Central - Commissioned Services,Other Small Contracts,Care Horizons Limited,806.40, 07-Feb-2022
903,Revenue,CAHD,South - Commissioned Services,Other Small Contracts,Care Unite Ltd t/a Home Instead Senior Care,1481.37, 04-Feb-2022
904,Revenue,CAHD,Covid - ASC - Infection Control,Grants to Voluntary Bodies,Care Unite Ltd t/a Home Instead Senior Care,945.03, 18-Feb-2022
905,Revenue,CAHD,ASC Rapid Testing Fund,Grants to Voluntary Bodies,Care Unite Ltd t/a Home Instead Senior Care,693.25, 18-Feb-2022
906,Revenue,CAHD,Covid  - Workforce capacity,Grants to Voluntary Bodies,Caremark (Bristol & South Gloucestershire),751.25, 04-Feb-2022
907,Revenue,CAHD,Central - Commissioned Services,Other Small Contracts,Carepride Ltd,161.28, 16-Feb-2022
908,Revenue,CAHD,South - Commissioned Services,Other Small Contracts,Carepride Ltd,206.64, 16-Feb-2022
909,Revenue,CAHD,North - Community based support,Other Small Contracts,Carepride Ltd,186.48, 16-Feb-2022
910,Revenue,CAHD,Covid - ASC - Infection Control,Grants to Voluntary Bodies,Carepride Ltd,1923.82, 18-Feb-2022
911,Revenue,CAHD,ASC Rapid Testing Fund,Grants to Voluntary Bodies,Carepride Ltd,1411.26, 18-Feb-2022
912,Revenue,CAHD,Covid - Vaccines,Grants to Voluntary Bodies,Carepride Ltd,514.47, 18-Feb-2022
913,Revenue,CAHD,CSC - Care Leavers Independent Living,Independent Living,Caretech Community Services,6753.66, 22-Feb-2022
914,Revenue,CAHD,CSC - Care Leavers Independent Living,Independent Living,Caretech Community Services,6100.08, 25-Feb-2022
915,Revenue,CAHD,Covid - ASC - Infection Control,Grants to Voluntary Bodies,Caring Comes 1st Limited,1923.82, 18-Feb-2022
916,Revenue,CAHD,ASC Rapid Testing Fund,Grants to Voluntary Bodies,Caring Comes 1st Limited,1411.26, 18-Feb-2022
917,Revenue,CAHD,Covid - Vaccines,Grants to Voluntary Bodies,Caring Comes 1st Limited,514.47, 18-Feb-2022
918,Revenue,CAHD,CSC - Care Leavers Independent Living,Leaving Care,Caring for Communities and People,2649.26, 04-Feb-2022
919,Revenue,CAHD,CSC - Care Leavers Independent Living,Independent Living,Caring for Communities and People,5360.11, 08-Feb-2022
920,Revenue,CAHD,Supporting People Programme,Grants to Voluntary Bodies,Caring for Communities and People,12256.75, 04-Feb-2022
921,Revenue,CAHD,CSC - Vinney Green Secure Unit,Catering Equipment,Carlton Services UK Limited,1890.00, 11-Feb-2022
922,Revenue,CAHD,CSC - Care Leavers Support Costs,Furniture & Fittings Loose,Carpets of Yate Limited,1155.00, 11-Feb-2022
923,Revenue,CAHD,Statemented Support Academies,Other Public Bodies,Castle School Education Trust,530.55, 23-Feb-2022
924,Revenue,CAHD,Statemented Support Academies,Other Public Bodies,Castle School Education Trust,778.14, 23-Feb-2022
925,Revenue,CAHD,Statemented Support Academies,Other Public Bodies,Castle School Education Trust,821.50, 23-Feb-2022
926,Revenue,CAHD,Statemented Support Academies,Other Public Bodies,Castle School Education Trust,947.08, 23-Feb-2022
927,Revenue,CAHD,Statemented Support Academies,Other Public Bodies,Castle School Education Trust,577.71, 23-Feb-2022
928,Revenue,CAHD,Statemented Support Academies,Other Public Bodies,Castle School Education Trust,505.08, 23-Feb-2022
929,Revenue,CAHD,Statemented Support Academies,Other Public Bodies,Castle School Education Trust,672.03, 23-Feb-2022
930,Revenue,CAHD,Statemented Support Academies,Other Public Bodies,Castle School Education Trust,636.66, 23-Feb-2022
931,Revenue,CAHD,Statemented Support Academies,Other Public Bodies,Castle School Education Trust,554.13, 23-Feb-2022
932,Revenue,CAHD,Statemented Support Academies,Other Public Bodies,Castle School Education Trust,543.42, 23-Feb-2022
933,Revenue,CAHD,Statemented Support Academies,Other Public Bodies,Castle School Education Trust,954.99, 23-Feb-2022
934,Revenue,CAHD,Statemented Support Academies,Other Public Bodies,Castle School Education Trust,577.71, 23-Feb-2022
935,Revenue,CAHD,Statemented Support Academies,Other Public Bodies,Castle School Education Trust,1248.33, 23-Feb-2022
936,Revenue,CAHD,Statemented Support Academies,Other Public Bodies,Castle School Education Trust,1190.79, 23-Feb-2022
937,Revenue,CAHD,Statemented Support Academies,Other Public Bodies,Castle School Education Trust,691.92, 23-Feb-2022
938,Revenue,CAHD,Statemented Support Academies,Other Public Bodies,Castle School Education Trust,1071.67, 23-Feb-2022
939,Revenue,CAHD,Statemented Support Academies,Other Public Bodies,Castle School Education Trust,1061.10, 23-Feb-2022
940,Revenue,CAHD,Statemented Support Academies,Other Public Bodies,Castle School Education Trust,577.71, 23-Feb-2022
941,Revenue,CAHD,Statemented Support Academies,Other Public Bodies,Castle School Education Trust,1143.63, 23-Feb-2022
942,Revenue,CAHD,Statemented Support Academies,Other Public Bodies,Castle School Education Trust,943.33, 23-Feb-2022
943,Revenue,CAHD,Statemented Support Academies,Other Public Bodies,Castle School Education Trust,754.25, 23-Feb-2022
944,Revenue,CAHD,Statemented Support Academies,Other Public Bodies,Castle School Education Trust,906.75, 23-Feb-2022
945,Revenue,CAHD,Statemented Support Academies,Other Public Bodies,Castle School Education Trust,1202.67, 23-Feb-2022
946,Revenue,CAHD,Statemented Support Academies,Other Public Bodies,Castle School Education Trust,1485.54, 23-Feb-2022
947,Revenue,CAHD,Statemented Support Academies,Other Public Bodies,Castle School Education Trust,1177.50, 23-Feb-2022
948,Revenue,CAHD,Statemented Support Academies,Other Public Bodies,Castle School Education Trust,888.75, 23-Feb-2022
949,Revenue,CAHD,Statemented Support Academies,Other Public Bodies,Castle School Education Trust,1261.75, 23-Feb-2022
950,Revenue,CAHD,Statemented Support Academies,Other Public Bodies,Castle School Education Trust,1202.92, 23-Feb-2022
951,Revenue,CAHD,Statemented Support Academies,Other Public Bodies,Castle School Education Trust,896.08, 23-Feb-2022
952,Revenue,CAHD,Statemented Support Academies,Other Public Bodies,Castle School Education Trust,1244.58, 23-Feb-2022
953,Revenue,CAHD,Statemented Support Academies,Other Public Bodies,Castle School Education Trust,801.92, 23-Feb-2022
954,Revenue,CAHD,Statemented Support Academies,Other Public Bodies,Castle School Education Trust,943.17, 23-Feb-2022
955,Revenue,CAHD,Statemented Support Academies,Other Public Bodies,Castle School Education Trust,1267.50, 23-Feb-2022
956,Revenue,CAHD,Academy Resource Base Funding,Other Public Bodies,Castle School Education Trust,3068.48, 21-Feb-2022
957,Revenue,CAHD,Academy Resource Base Funding,Other Public Bodies,Castle School Education Trust,1538.16, 21-Feb-2022
958,Revenue,CAHD,Academy Resource Base Funding,Other Public Bodies,Castle School Education Trust,2270.60, 21-Feb-2022
959,Revenue,CAHD,Academy Resource Base Funding,Other Public Bodies,Castle School Education Trust,1538.16, 21-Feb-2022
960,Revenue,CAHD,Academy Resource Base Funding,Other Public Bodies,Castle School Education Trust,1538.16, 21-Feb-2022
961,Revenue,CAHD,Academy Resource Base Funding,Other Public Bodies,Castle School Education Trust,1538.16, 21-Feb-2022
962,Revenue,CAHD,Academy Resource Base Funding,Other Public Bodies,Castle School Education Trust,2270.60, 21-Feb-2022
963,Revenue,CAHD,Academy Resource Base Funding,Other Public Bodies,Castle School Education Trust,2270.60, 21-Feb-2022
964,Revenue,CAHD,Academy Resource Base Funding,Other Public Bodies,Castle School Education Trust,2270.60, 21-Feb-2022
965,Revenue,CAHD,Academy Resource Base Funding,Other Public Bodies,Castle School Education Trust,1538.16, 21-Feb-2022
966,Revenue,CAHD,Academy Resource Base Funding,Other Public Bodies,Castle School Education Trust,1538.16, 21-Feb-2022
967,Revenue,CAHD,Academy Resource Base Funding,Other Public Bodies,Castle School Education Trust,1538.16, 21-Feb-2022
968,Revenue,CAHD,Academy Resource Base Funding,Other Public Bodies,Castle School Education Trust,1538.16, 21-Feb-2022
969,Revenue,CAHD,Academy Resource Base Funding,Other Public Bodies,Castle School Education Trust,1538.16, 21-Feb-2022
970,Revenue,CAHD,Academy Resource Base Funding,Other Public Bodies,Castle School Education Trust,1538.16, 21-Feb-2022
971,Revenue,CAHD,Academy Resource Base Funding,Other Public Bodies,Castle School Education Trust,1977.64, 21-Feb-2022
972,Revenue,CAHD,KS2 Moderation,Other Public Bodies,Castle School Education Trust,900.00, 21-Feb-2022
973,Revenue,CAHD,Statemented Support Academies,Other Public Bodies,Castle School Education Trust,672.03, 23-Feb-2022
974,Revenue,CAHD,Statemented Support Academies,Other Public Bodies,Castle School Education Trust,822.50, 23-Feb-2022
975,Revenue,CAHD,Statemented Support Academies,Other Public Bodies,Castle School Education Trust,872.46, 23-Feb-2022
976,Revenue,CAHD,Statemented Support Academies,Other Public Bodies,Castle School Education Trust,848.88, 23-Feb-2022
977,Revenue,CAHD,Statemented Support Academies,Other Public Bodies,Castle School Education Trust,541.58, 23-Feb-2022
978,Revenue,CAHD,Statemented Support Academies,Other Public Bodies,Castle School Education Trust,723.17, 23-Feb-2022
979,Revenue,CAHD,Statemented Support Academies,Other Public Bodies,Castle School Education Trust,956.00, 23-Feb-2022
980,Revenue,CAHD,Statemented Support Academies,Other Public Bodies,Castle School Education Trust,1628.42, 23-Feb-2022
981,Revenue,CAHD,Statemented Support Academies,Other Public Bodies,Castle School Education Trust,560.17, 23-Feb-2022
982,Revenue,CAHD,Statemented Support Academies,Other Public Bodies,Castle School Education Trust,1202.67, 23-Feb-2022
983,Revenue,CAHD,Statemented Support Academies,Other Public Bodies,Castle School Education Trust,630.58, 23-Feb-2022
984,Revenue,CAHD,Statemented Support Academies,Other Public Bodies,Castle School Education Trust,778.14, 23-Feb-2022
985,Revenue,CAHD,Statemented Support Academies,Other Public Bodies,Castle School Education Trust,941.58, 23-Feb-2022
986,Revenue,CAHD,Statemented Support Academies,Other Public Bodies,Castle School Education Trust,2240.00, 23-Feb-2022
987,Revenue,CAHD,Statemented Support Academies,Other Public Bodies,Castle School Educational Academy Trust,1129.92, 23-Feb-2022
988,Revenue,CAHD,Statemented Support Academies,Other Public Bodies,Castle School Educational Academy Trust,854.00, 23-Feb-2022
989,Revenue,CAHD,Statemented Support Academies,Other Public Bodies,Castle School Educational Academy Trust,12031.02, 23-Feb-2022
990,Revenue,CAHD,Statemented Support Academies,Other Public Bodies,Castle School Educational Academy Trust,940.75, 23-Feb-2022
991,Revenue,CAHD,Statemented Support Academies,Other Public Bodies,Castle School Educational Academy Trust,790.58, 23-Feb-2022
992,Revenue,CAHD,Statemented Support Academies,Other Public Bodies,Castle School Educational Academy Trust,508.67, 23-Feb-2022
993,Revenue,CAHD,Statemented Support Academies,Other Public Bodies,Castle School Educational Academy Trust,1148.20, 23-Feb-2022
994,Revenue,CAHD,Statemented Support Academies,Other Public Bodies,Castle School Educational Academy Trust,1097.25, 23-Feb-2022
995,Revenue,CAHD,Statemented Support Academies,Other Public Bodies,Castle School Educational Academy Trust,580.67, 23-Feb-2022
996,Revenue,CAHD,Statemented Support Academies,Other Public Bodies,Castle School Educational Academy Trust,925.08, 23-Feb-2022
997,Revenue,CAHD,Statemented Support Academies,Other Public Bodies,Castle School Educational Academy Trust,652.58, 23-Feb-2022
998,Revenue,CAHD,CSC - Legal Fees,Legal Fees,Cater Walsh Reporting Limited,477.02, 03-Feb-2022
999,Revenue,CAHD,Social Lettings Agency,Rent,Individual,658.30, 01-Feb-2022
1000,Revenue,CAHD,Social Lettings Agency,Fees & Charges Income - General,Individual,-52.66, 01-Feb-2022
1001,Revenue,CAHD,South - Commissioned Services,Day Care / Social Activities,Causeway House,5481.60, 08-Feb-2022
1002,Revenue,CAHD,Central - Commissioned Services,Day Care / Social Activities,Causeway House,3811.00, 08-Feb-2022
1003,Revenue,CAHD,Central - Commissioned Services,Day Care / Social Activities,Causeway House,4060.80, 08-Feb-2022
1004,Revenue,CAHD,18-25 Year Olds,Day Care / Social Activities,Causeway House,4606.60, 08-Feb-2022
1005,Revenue,CAHD,North - Community based support,Day Care / Social Activities,Causeway House,5015.40, 08-Feb-2022
1006,Revenue,CAHD,North - Community based support,Day Care / Social Activities,Causeway House,593.04, 08-Feb-2022
1007,Revenue,CAHD,North - Community based support,Day Care / Social Activities,Causeway House,3366.40, 08-Feb-2022
1008,Revenue,CAHD,North - Community based support,Day Care / Social Activities,Causeway House,3286.00, 08-Feb-2022
1009,Revenue,CAHD,North - S117,Permanent Residential,Cavendish Care Home,2340.00, 08-Feb-2022
1010,Revenue,CAHD,Jointly Funded H&SC Packages,Permanent Residential,Cavendish Care Home,1560.00, 08-Feb-2022
1011,Revenue,CAHD,Central - Commissioned Services,Permanent Nursing,Cedar Court Care Home,4000.00, 08-Feb-2022
1012,Revenue,CAHD,Central - Commissioned Services,Fees & Charges Income - General,Cedar Court Care Home,-391.92, 08-Feb-2022
1013,Revenue,CAHD,CSC - Care Leavers Independent Living,Independent Living,Centrepeacehomes Ltd,2960.00, 04-Feb-2022
1014,Revenue,CAHD,CSC - Care Leavers Independent Living,Independent Living,Centrepeacehomes Ltd,2960.00, 17-Feb-2022
1015,Revenue,CAHD,South - Commissioned Services,Permanent Residential,Challenge House,2894.80, 08-Feb-2022
1016,Revenue,CAHD,South - Commissioned Services,Fees & Charges Income - General,Challenge House,-1571.60, 08-Feb-2022
1017,Revenue,CAHD,North - Community based support,Permanent Residential,Challenge House,2314.96, 08-Feb-2022
1018,Revenue,CAHD,North - Community based support,Fees & Charges Income - General,Challenge House,-605.61, 08-Feb-2022
1019,Revenue,CAHD,North - Community based support,Permanent Residential,Challenge House,2902.76, 08-Feb-2022
1020,Revenue,CAHD,Central - Commissioned Services,Permanent Residential,Challenge House,2452.44, 08-Feb-2022
1021,Revenue,CAHD,Central - Commissioned Services,Fees & Charges Income - General,Challenge House,-843.92, 08-Feb-2022
1022,Revenue,CAHD,Central - Commissioned Services,Permanent Residential,Challenge House,2819.84, 08-Feb-2022
1023,Revenue,CAHD,Central - Commissioned Services,Fees & Charges Income - General,Challenge House,-811.36, 08-Feb-2022
1024,Revenue,CAHD,North - Community based support,Permanent Residential,Challenge House,2894.76, 08-Feb-2022
1025,Revenue,CAHD,North - Community based support,Fees & Charges Income - General,Challenge House,-1025.88, 08-Feb-2022
1026,Revenue,CAHD,North - S117,Permanent Nursing,Challenge House,2505.52, 08-Feb-2022
1027,Revenue,CAHD,North - Community based support,Permanent Nursing,Challenge House,2505.52, 08-Feb-2022
1028,Revenue,CAHD,North - Community based support,Fees & Charges Income - General,Challenge House,-608.80, 08-Feb-2022
1029,Revenue,CAHD,North - Community based support,Permanent Nursing,Challenge House,3205.48, 08-Feb-2022
1030,Revenue,CAHD,North - Community based support,Fees & Charges Income - General,Challenge House,-608.80, 08-Feb-2022
1031,Revenue,CAHD,South - Commissioned Services,Permanent Nursing,Challenge House,958.00, 08-Feb-2022
1032,Revenue,CAHD,South - Commissioned Services,Respite Planned - Residential,Challenge House,3278.57, 22-Feb-2022
1033,Revenue,CAHD,Covid - ASC - Infection Control,Grants to Voluntary Bodies,Challenge House,4473.19, 18-Feb-2022
1034,Revenue,CAHD,South Glos Users in South Glos Homes,Permanent Nursing,Challenge House,750.40, 08-Feb-2022
1035,Revenue,CAHD,North - Community based support,Permanent Nursing,Challenge House,3478.20, 08-Feb-2022
1036,Revenue,CAHD,South Glos Users in South Glos Homes,Permanent Nursing,Challenge House,750.40, 08-Feb-2022
1037,Revenue,CAHD,South Glos Users in South Glos Homes,Permanent Nursing,Challenge House,750.40, 08-Feb-2022
1038,Revenue,CAHD,North - Community based support,Permanent Residential,Challenge House,3193.00, 08-Feb-2022
1039,Revenue,CAHD,North - Community based support,Fees & Charges Income - General,Challenge House,-725.40, 08-Feb-2022
1040,Revenue,CAHD,North - Community based support,Respite Care,Challenge House,0.00, 08-Feb-2022
1041,Revenue,CAHD,North - Community based support,Respite Planned - Residential,Challenge House,850.00, 08-Feb-2022
1042,Revenue,CAHD,South Glos Users in South Glos Homes,Permanent Nursing,Challenge House,750.40, 08-Feb-2022
1043,Revenue,CAHD,South Glos Users in South Glos Homes,Permanent Nursing,Challenge House,750.40, 08-Feb-2022
1044,Revenue,CAHD,South Glos Users in South Glos Homes,Permanent Nursing,Challenge House,750.40, 08-Feb-2022
1045,Revenue,CAHD,North - Community based support,Permanent Residential,Challenge House,3200.00, 08-Feb-2022
1046,Revenue,CAHD,North - Community based support,Fees & Charges Income - General,Challenge House,-771.72, 08-Feb-2022
1047,Revenue,CAHD,North - Community based support,Permanent Residential,Challenge House,3500.00, 08-Feb-2022
1048,Revenue,CAHD,North - Community based support,Fees & Charges Income - General,Challenge House,-713.56, 08-Feb-2022
1049,Revenue,CAHD,South Glos Users in South Glos Homes,Permanent Nursing,Challenge House,750.40, 08-Feb-2022
1050,Revenue,CAHD,South Glos Users in South Glos Homes,Permanent Nursing,Challenge House,750.40, 08-Feb-2022
1051,Revenue,CAHD,South - Commissioned Services,Permanent Nursing,Challenge House,2051.56, 08-Feb-2022
1052,Revenue,CAHD,South - Commissioned Services,Fees & Charges Income - General,Challenge House,-1909.36, 08-Feb-2022
1053,Revenue,CAHD,South Glos Users in South Glos Homes,Permanent Nursing,Challenge House,750.40, 08-Feb-2022
1054,Revenue,CAHD,North - Community based support,Permanent Nursing,Challenge House,3347.92, 08-Feb-2022
1055,Revenue,CAHD,North - Community based support,Fees & Charges Income - General,Challenge House,-1785.20, 08-Feb-2022
1056,Revenue,CAHD,North - Community based support,Permanent Residential,Challenge House,3478.20, 08-Feb-2022
1057,Revenue,CAHD,North - Community based support,Fees & Charges Income - General,Challenge House,-1146.72, 08-Feb-2022
1058,Revenue,CAHD,South Glos Users in South Glos Homes,Permanent Nursing,Challenge House,750.40, 08-Feb-2022
1059,Revenue,CAHD,South Glos Users in South Glos Homes,Permanent Nursing,Challenge House,750.40, 08-Feb-2022
1060,Revenue,CAHD,North - Community based support,Permanent Nursing,Challenge House,3400.00, 08-Feb-2022
1061,Revenue,CAHD,North - Community based support,Fees & Charges Income - General,Challenge House,-1581.92, 08-Feb-2022
1062,Revenue,CAHD,South Glos Users in South Glos Homes,Permanent Nursing,Challenge House,750.40, 08-Feb-2022
1063,Revenue,CAHD,North - Community based support,Permanent Residential,Challenge House,3500.00, 08-Feb-2022
1064,Revenue,CAHD,North - Community based support,Fees & Charges Income - General,Challenge House,-608.80, 08-Feb-2022
1065,Revenue,CAHD,South Glos Users in South Glos Homes,Permanent Nursing,Challenge House,750.40, 08-Feb-2022
1066,Revenue,CAHD,South - Commissioned Services,Permanent Residential,Challenge House,3400.00, 08-Feb-2022
1067,Revenue,CAHD,North - Community based support,Permanent Residential,Challenge House,3800.00, 08-Feb-2022
1068,Revenue,CAHD,North - Community based support,Fees & Charges Income - General,Challenge House,-1008.72, 08-Feb-2022
1069,Revenue,CAHD,South Glos Users in South Glos Homes,Permanent Nursing,Challenge House,750.40, 08-Feb-2022
1070,Revenue,CAHD,South - Commissioned Services,Permanent Residential,Challenge House,3400.00, 08-Feb-2022
1071,Revenue,CAHD,South - Commissioned Services,Fees & Charges Income - General,Challenge House,-599.96, 08-Feb-2022
1072,Revenue,CAHD,South - Commissioned Services,Permanent Residential,Challenge House,3600.00, 08-Feb-2022
1073,Revenue,CAHD,South - Commissioned Services,Fees & Charges Income - General,Challenge House,-608.80, 08-Feb-2022
1074,Revenue,CAHD,South Glos Users in South Glos Homes,Permanent Nursing,Challenge House,750.40, 08-Feb-2022
1075,Revenue,CAHD,South - Commissioned Services,Permanent Nursing,Challenge House,3400.00, 08-Feb-2022
1076,Revenue,CAHD,South - Commissioned Services,Fees & Charges Income - General,Challenge House,-619.68, 08-Feb-2022
1077,Revenue,CAHD,South - Commissioned Services,Respite Care,Challenge House,0.00, 08-Feb-2022
1078,Revenue,CAHD,South - Commissioned Services,Respite Planned - Residential,Challenge House,850.00, 08-Feb-2022
1079,Revenue,CAHD,South Glos Users in South Glos Homes,Permanent Nursing,Challenge House,750.40, 08-Feb-2022
1080,Revenue,CAHD,North - Community based support,Permanent Nursing,Challenge House,2950.40, 08-Feb-2022
1081,Revenue,CAHD,North - Community based support,Fees & Charges Income - General,Challenge House,-728.80, 08-Feb-2022
1082,Revenue,CAHD,South Glos Users in South Glos Homes,Permanent Nursing,Challenge House,750.40, 08-Feb-2022
1083,Revenue,CAHD,North - Community based support,Permanent Nursing,Challenge House,3318.20, 08-Feb-2022
1084,Revenue,CAHD,North - Community based support,Fees & Charges Income - General,Challenge House,-893.12, 08-Feb-2022
1085,Revenue,CAHD,ASC Rapid Testing Fund,Grants to Voluntary Bodies,Challenge House,3178.41, 18-Feb-2022
1086,Revenue,CAHD,North - Community based support,Respite Planned - Residential,Challenge House,1080.00, 22-Feb-2022
1087,Revenue,CAHD,Central - Commissioned Services,Permanent Nursing,Challenge House,2490.00, 08-Feb-2022
1088,Revenue,CAHD,Central - Commissioned Services,Permanent Nursing,Challenge House,3200.00, 08-Feb-2022
1089,Revenue,CAHD,Central - Commissioned Services,Fees & Charges Income - General,Challenge House,-957.64, 08-Feb-2022
1090,Revenue,CAHD,North - Community based support,Permanent Residential,Challenge House,3136.52, 08-Feb-2022
1091,Revenue,CAHD,North - Community based support,Respite Care,Challenge House,0.00, 08-Feb-2022
1092,Revenue,CAHD,North - Community based support,Respite Planned - Residential,Challenge House,3024.00, 08-Feb-2022
1093,Revenue,CAHD,CSC - Age Related Allowances,Band 1 Foster Care,Individual,390.00, 11-Feb-2022
1094,Revenue,CAHD,CSC - Professional Fees Foster Carers,Therapeutic Fostering Fee,Individual,750.00, 11-Feb-2022
1095,Revenue,CAHD,CSC - Age Related Allowances,Band 1 Foster Care,Individual,390.00, 04-Feb-2022
1096,Revenue,CAHD,CSC - Professional Fees Foster Carers,Therapeutic Fostering Fee,Individual,750.00, 04-Feb-2022
1097,Revenue,CAHD,CSC - Age Related Allowances,Foster Parent Allowances,Individual,173.00, 18-Feb-2022
1098,Revenue,CAHD,CSC - Age Related Allowances,Band 1 Foster Care,Individual,390.00, 18-Feb-2022
1099,Revenue,CAHD,CSC - Professional Fees Foster Carers,Therapeutic Fostering Fee,Individual,750.00, 18-Feb-2022
1100,Revenue,CAHD,CSC - Age Related Allowances,Foster Parent Allowances,Individual,173.00, 25-Feb-2022
1101,Revenue,CAHD,CSC - Age Related Allowances,Band 1 Foster Care,Individual,390.00, 25-Feb-2022
1102,Revenue,CAHD,CSC - Professional Fees Foster Carers,Therapeutic Fostering Fee,Individual,750.00, 25-Feb-2022
1103,Revenue,CAHD,Training - Adult Services,Training Expenses,Individual,1200.00, 01-Feb-2022
1104,Revenue,CAHD,Statemented Support Academies,Other Public Bodies,Charlton Wood Primary Academy,702.17, 23-Feb-2022
1105,Revenue,CAHD,Statemented Support Academies,Other Public Bodies,Charlton Wood Primary Academy,1202.67, 23-Feb-2022
1106,Revenue,CAHD,Central - Commissioned Services,Other Small Contracts,Cherish Able Care Limited,632.32, 02-Feb-2022
1107,Revenue,CAHD,South - Commissioned Services,Other Small Contracts,Cherish Able Care Limited,9117.35, 02-Feb-2022
1108,Revenue,CAHD,North - Community based support,Other Small Contracts,Cherish Able Care Limited,681.72, 02-Feb-2022
1109,Revenue,CAHD,North - Community based support,Other Small Contracts,Cherish Able Care Limited,647.23, 03-Feb-2022
1110,Revenue,CAHD,South - Commissioned Services,Other Small Contracts,Cherish Able Care Limited,8956.77, 03-Feb-2022
1111,Revenue,CAHD,Central - Commissioned Services,Other Small Contracts,Cherish Able Care Limited,636.99, 03-Feb-2022
1112,Revenue,CAHD,North - Community based support,Other Small Contracts,Cherish Able Care Limited,647.23, 10-Feb-2022
1113,Revenue,CAHD,South - Commissioned Services,Other Small Contracts,Cherish Able Care Limited,8956.77, 10-Feb-2022
1114,Revenue,CAHD,Central - Commissioned Services,Other Small Contracts,Cherish Able Care Limited,636.99, 10-Feb-2022
1115,Revenue,CAHD,North - Community based support,Other Small Contracts,Cherish Able Care Limited,647.23, 17-Feb-2022
1116,Revenue,CAHD,South - Commissioned Services,Other Small Contracts,Cherish Able Care Limited,8956.77, 17-Feb-2022
1117,Revenue,CAHD,Central - Commissioned Services,Other Small Contracts,Cherish Able Care Limited,636.99, 17-Feb-2022
1118,Revenue,CAHD,North - Community based support,Other Small Contracts,Cherry Orchards,1551.16, 08-Feb-2022
1119,Revenue,CAHD,North - Community based support,Other Small Contracts,Cherry Orchards,1659.84, 28-Feb-2022
1120,Revenue,CAHD,South - Commissioned Services,Other Small Contracts,Cherry Orchards,6402.24, 07-Feb-2022
1121,Revenue,CAHD,Central - Commissioned Services,Other Small Contracts,Cherry Orchards,2005.64, 28-Feb-2022
1122,Revenue,CAHD,Central - Commissioned Services,Other Small Contracts,Cherry Orchards,2055.04, 28-Feb-2022
1123,Revenue,CAHD,North - Community based support,Other Small Contracts,Cherry Orchards,750.88, 08-Feb-2022
1124,Revenue,CAHD,South - Commissioned Services,Other Small Contracts,Cherry Orchards,1931.54, 28-Feb-2022
1125,Revenue,CAHD,South - Commissioned Services,Other Small Contracts,Cherry Orchards,1521.52, 08-Feb-2022
1126,Revenue,CAHD,South - Commissioned Services,Respite Care,Cherry Orchards,0.00, 08-Feb-2022
1127,Revenue,CAHD,South - Commissioned Services,Supported Living,Cherry Orchards,1049.08, 08-Feb-2022
1128,Revenue,CAHD,North - Community based support,Respite Care,Cherry Orchards,0.00, 08-Feb-2022
1129,Revenue,CAHD,North - Community based support,Supported Living,Cherry Orchards,1066.96, 08-Feb-2022
1130,Revenue,CAHD,North - Community based support,Respite Care,Cherry Orchards,0.00, 08-Feb-2022
1131,Revenue,CAHD,North - Community based support,Supported Living,Cherry Orchards,1938.52, 08-Feb-2022
1132,Revenue,CAHD,South - Commissioned Services,Respite Care,Cherry Orchards,0.00, 08-Feb-2022
1133,Revenue,CAHD,South - Commissioned Services,Supported Living,Cherry Orchards,1938.52, 08-Feb-2022
1134,Revenue,CAHD,Central - Commissioned Services,Respite Care,Cherry Orchards,0.00, 08-Feb-2022
1135,Revenue,CAHD,Central - Commissioned Services,Supported Living,Cherry Orchards,2367.92, 08-Feb-2022
1136,Revenue,CAHD,Younger MH non-res purchasing,Respite Care,Cherry Orchards,0.00, 08-Feb-2022
1137,Revenue,CAHD,Younger MH non-res purchasing,Supported Living,Cherry Orchards,1958.12, 08-Feb-2022
1138,Revenue,CAHD,18-25 Year Olds,Respite Care,Cherry Orchards,0.00, 08-Feb-2022
1139,Revenue,CAHD,18-25 Year Olds,Supported Living,Cherry Orchards,2077.24, 08-Feb-2022
1140,Revenue,CAHD,Early Years Inclusion Fund,Other Public Bodies,Cherry Tree Day Nursery,2350.00, 03-Feb-2022
1141,Revenue,CAHD,Covid - ASC - Infection Control,Grants to Voluntary Bodies,Chescombe Trust Ltd,2124.76, 18-Feb-2022
1142,Revenue,CAHD,Central - Commissioned Services,Permanent Residential,Chescombe Trust Ltd,8910.48, 08-Feb-2022
1143,Revenue,CAHD,Central - Commissioned Services,Fees & Charges Income - General,Chescombe Trust Ltd,-425.60, 08-Feb-2022
1144,Revenue,CAHD,S28A cases,Permanent Residential,Chescombe Trust Ltd,10188.80, 08-Feb-2022
1145,Revenue,CAHD,S28A cases,Fees & Charges Income - General,Chescombe Trust Ltd,-425.60, 08-Feb-2022
1146,Revenue,CAHD,ASC Rapid Testing Fund,Grants to Voluntary Bodies,Chescombe Trust Ltd,1509.75, 18-Feb-2022
1147,Revenue,CAHD,CSC - Section 17 SOUTH,Preventative Assistance,Childrens Contact Services Ltd,15721.75, 01-Feb-2022
1148,Revenue,CAHD,CSC - Section 17 SOUTH,Preventative Assistance,Childrens Contact Services Ltd,4725.40, 11-Feb-2022
1149,Revenue,CAHD,CSC - Section 17 SOUTH,Preventative Assistance,Childrens Contact Services Ltd,5574.75, 11-Feb-2022
1150,Revenue,CAHD,CSC - Section 17 SOUTH,Preventative Assistance,Childrens Contact Services Ltd,5405.50, 11-Feb-2022
1151,Revenue,CAHD,CSC - Section 17 SOUTH,Preventative Assistance,Childrens Contact Services Ltd,5204.65, 11-Feb-2022
1152,Revenue,CAHD,CSC - Section 17 SOUTH,Preventative Assistance,Childrens Contact Services Ltd,5791.60, 11-Feb-2022
1153,Revenue,CAHD,CSC - Section 17 SOUTH,Preventative Assistance,Childrens Contact Services Ltd,4630.30, 11-Feb-2022
1154,Revenue,CAHD,CSC - Section 17 SOUTH,Preventative Assistance,Childrens Contact Services Ltd,5049.10, 11-Feb-2022
1155,Revenue,CAHD,Childrens - Safeguarding Board,Training Expenses,Individual,1275.00, 14-Feb-2022
1156,Revenue,CAHD,Statemented Support Payments to OLAs,Other L.A.s - General,Churchill Academy,1085.75, 23-Feb-2022
1157,Revenue,CAHD,18-25 Year Olds,Other Small Contracts,Cintre,916.20, 02-Feb-2022
1158,Revenue,CAHD,South - Commissioned Services,Other Small Contracts,Cintre,1323.40, 02-Feb-2022
1159,Revenue,CAHD,South - Commissioned Services,Other Small Contracts,Cintre,1196.90, 03-Feb-2022
1160,Revenue,CAHD,Younger MH non-res purchasing,Other Small Contracts,Cintre,917.83, 03-Feb-2022
1161,Revenue,CAHD,South - Commissioned Services,Other Small Contracts,Cintre,1196.90, 10-Feb-2022
1162,Revenue,CAHD,Younger MH non-res purchasing,Other Small Contracts,Cintre,917.83, 10-Feb-2022
1163,Revenue,CAHD,South - Commissioned Services,Other Small Contracts,Cintre,1196.90, 17-Feb-2022
1164,Revenue,CAHD,Younger MH non-res purchasing,Other Small Contracts,Cintre,917.83, 17-Feb-2022
1165,Revenue,CAHD,18-25 Year Olds,Permanent Residential,Cintre,34940.85, 22-Feb-2022
1166,Revenue,CAHD,18-25 Year Olds,Permanent Residential,Cintre,6188.60, 08-Feb-2022
1167,Revenue,CAHD,18-25 Year Olds,Fees & Charges Income - General,Cintre,-49.60, 08-Feb-2022
1168,Revenue,CAHD,Learning Difficulties,Premises Hire,Circadian Trust,882.00, 04-Feb-2022
1169,Revenue,CAHD,Learning Difficulties,Premises Hire,Circadian Trust,808.50, 04-Feb-2022
1170,Revenue,CAHD,Post 16 High Needs Placements,Other Private Contractors,City of Bristol College,311503.00, 24-Feb-2022
1171,Revenue,CAHD,Placements OLA Special Schools and RB,Other L.A.s - General,Claremont School,1789.69, 23-Feb-2022
1172,Revenue,CAHD,Placements OLA Special Schools and RB,Other L.A.s - General,Claremont School,583.47, 23-Feb-2022
1173,Revenue,CAHD,Placements OLA Special Schools and RB,Other L.A.s - General,Claremont School,2506.21, 23-Feb-2022
1174,Revenue,CAHD,Placements OLA Special Schools and RB,Other L.A.s - General,Claremont School,583.47, 23-Feb-2022
1175,Revenue,CAHD,Placements OLA Special Schools and RB,Other L.A.s - General,Claremont School,1789.69, 23-Feb-2022
1176,Revenue,CAHD,Placements OLA Special Schools and RB,Other L.A.s - General,Claremont School,583.47, 23-Feb-2022
1177,Revenue,CAHD,Placements OLA Special Schools and RB,Other L.A.s - General,Claremont School,1789.69, 23-Feb-2022
1178,Revenue,CAHD,Placements OLA Special Schools and RB,Other L.A.s - General,Claremont School,583.47, 23-Feb-2022
1179,Revenue,CAHD,Placements OLA Special Schools and RB,Other L.A.s - General,Claremont School,715.88, 23-Feb-2022
1180,Revenue,CAHD,Placements OLA Special Schools and RB,Other L.A.s - General,Claremont School,2506.21, 23-Feb-2022
1181,Revenue,CAHD,Placements OLA Special Schools and RB,Other L.A.s - General,Claremont School,1789.69, 23-Feb-2022
1182,Revenue,CAHD,Placements OLA Special Schools and RB,Other L.A.s - General,Claremont School,583.47, 23-Feb-2022
1183,Revenue,CAHD,Placements OLA Special Schools and RB,Other L.A.s - General,Claremont School,2506.21, 23-Feb-2022
1184,Revenue,CAHD,Placements OLA Special Schools and RB,Other L.A.s - General,Claremont School,583.47, 23-Feb-2022
1185,Revenue,CAHD,Placements OLA Special Schools and RB,Other L.A.s - General,Claremont School,1431.76, 23-Feb-2022
1186,Revenue,CAHD,Placements OLA Special Schools and RB,Other L.A.s - General,Claremont School,1789.69, 23-Feb-2022
1187,Revenue,CAHD,Placements OLA Special Schools and RB,Other L.A.s - General,Claremont School,583.47, 23-Feb-2022
1188,Revenue,CAHD,South - Commissioned Services,Permanent Residential,Cleeve Lodge,600.00, 08-Feb-2022
1189,Revenue,CAHD,Covid - ASC - Infection Control,Grants to Voluntary Bodies,Cleeve Lodge,3690.38, 18-Feb-2022
1190,Revenue,CAHD,South - Commissioned Services,Permanent Residential,Cleeve Lodge,3492.00, 08-Feb-2022
1191,Revenue,CAHD,South - Commissioned Services,Fees & Charges Income - General,Cleeve Lodge,-1360.92, 08-Feb-2022
1192,Revenue,CAHD,South - Commissioned Services,Permanent Residential,Cleeve Lodge,4910.40, 08-Feb-2022
1193,Revenue,CAHD,South - Commissioned Services,Fees & Charges Income - General,Cleeve Lodge,-848.80, 08-Feb-2022
1194,Revenue,CAHD,South - Commissioned Services,Permanent Residential,Cleeve Lodge,3739.76, 08-Feb-2022
1195,Revenue,CAHD,South - Commissioned Services,Fees & Charges Income - General,Cleeve Lodge,-716.81, 08-Feb-2022
1196,Revenue,CAHD,South - Commissioned Services,Permanent Residential,Cleeve Lodge,1365.28, 08-Feb-2022
1197,Revenue,CAHD,South - Commissioned Services,Fees & Charges Income - General,Cleeve Lodge,-619.75, 08-Feb-2022
1198,Revenue,CAHD,North - S117,Permanent Residential,Cleeve Lodge,3273.60, 08-Feb-2022
1199,Revenue,CAHD,Central - Commissioned Services,Permanent Residential,Cleeve Lodge,3273.60, 08-Feb-2022
1200,Revenue,CAHD,Central - Commissioned Services,Fees & Charges Income - General,Cleeve Lodge,-1031.64, 08-Feb-2022
1201,Revenue,CAHD,South - Commissioned Services,Permanent Residential,Cleeve Lodge,4501.20, 08-Feb-2022
1202,Revenue,CAHD,South - Commissioned Services,Fees & Charges Income - General,Cleeve Lodge,-636.80, 08-Feb-2022
1203,Revenue,CAHD,North - Community based support,Permanent Residential,Cleeve Lodge,4400.00, 08-Feb-2022
1204,Revenue,CAHD,North - Community based support,Fees & Charges Income - General,Cleeve Lodge,-895.60, 08-Feb-2022
1205,Revenue,CAHD,South - Commissioned Services,Permanent Nursing,Cleeve Lodge,3273.60, 08-Feb-2022
1206,Revenue,CAHD,South - Commissioned Services,Fees & Charges Income - General,Cleeve Lodge,-901.12, 08-Feb-2022
1207,Revenue,CAHD,South - Commissioned Services,Permanent Residential,Cleeve Lodge,3018.76, 08-Feb-2022
1208,Revenue,CAHD,South - Commissioned Services,Fees & Charges Income - General,Cleeve Lodge,-641.36, 08-Feb-2022
1209,Revenue,CAHD,ASC Rapid Testing Fund,Grants to Voluntary Bodies,Cleeve Lodge,2622.19, 18-Feb-2022
1210,Revenue,CAHD,Drug and Alcohol Programme,Other Small Contracts,Close Farm Surgery,913.50, 01-Feb-2022
1211,Revenue,CAHD,Central - Commissioned Services,Other Small Contracts,Clover Health and Home Care Ltd,1050.56, 08-Feb-2022
1212,Revenue,CAHD,Central - Commissioned Services,Other Small Contracts,Clover Health and Home Care Ltd,1415.04, 08-Feb-2022
1213,Revenue,CAHD,Central - Commissioned Services,Other Small Contracts,Clover Health and Home Care Ltd,1050.56, 08-Feb-2022
1214,Revenue,CAHD,Central - Commissioned Services,Other Small Contracts,Clover Health and Home Care Ltd,1039.84, 08-Feb-2022
1215,Revenue,CAHD,Covid  - Workforce capacity,Grants to Voluntary Bodies,Clover Health and Home Care Ltd,3776.88, 18-Feb-2022
1216,Revenue,CAHD,South - Commissioned Services,Permanent Residential,Collingwood Care Home,3580.00, 08-Feb-2022
1217,Revenue,CAHD,South - Commissioned Services,Fees & Charges Income - General,Collingwood Care Home,-693.24, 08-Feb-2022
1218,Revenue,CAHD,North - Community based support,Permanent Residential,Collingwood Care Home,3069.00, 08-Feb-2022
1219,Revenue,CAHD,North - Community based support,Fees & Charges Income - General,Collingwood Care Home,-972.84, 08-Feb-2022
1220,Revenue,CAHD,Covid  - Workforce capacity,Grants to Voluntary Bodies,Collingwood Care Home,2504.16, 11-Feb-2022
1221,Revenue,CAHD,Statemented Support Payments to OLAs,Other L.A.s - General,Colston`s Girls School Trust,1582.50, 23-Feb-2022
1222,Revenue,CAHD,Early Years Development,Premises Hire,Commercial Transfer Limited,554.40, 18-Feb-2022
1223,Revenue,CAHD,South - Commissioned Services,Permanent Residential,Community Theraputic Services,7776.36, 08-Feb-2022
1224,Revenue,CAHD,South - Commissioned Services,Fees & Charges Income - General,Community Theraputic Services,-425.60, 08-Feb-2022
1225,Revenue,CAHD,Jointly Funded H&SC Packages,Permanent Residential,Community Theraputic Services,4992.88, 08-Feb-2022
1226,Revenue,CAHD,North - Community based support,Permanent Residential,Community Theraputic Services,8071.08, 08-Feb-2022
1227,Revenue,CAHD,North - Community based support,Fees & Charges Income - General,Community Theraputic Services,-608.80, 08-Feb-2022
1228,Revenue,CAHD,Jointly Funded H&SC Packages,Permanent Residential,Community Theraputic Services,2076.20, 08-Feb-2022
1229,Revenue,CAHD,CSC - Agency Fostering,Foster Parent Allowances,Compass Fostering West Ltd,3618.63, 08-Feb-2022
1230,Revenue,CAHD,Drug and Alcohol Programme,Other Small Contracts,Concord Medical Centre,1218.00, 01-Feb-2022
1231,Revenue,CAHD,Contain Outbreak Mgmt Fund,Project Funding,Coniston Community Association,500.00, 10-Feb-2022
1232,Revenue,CAHD,Contain Outbreak Mgmt Fund,Project Funding,Coniston Community Association,500.00, 10-Feb-2022
1233,Revenue,CAHD,Statemented Support Equipment,Educational Supplies & Equipment,Connevans Limited,2561.60, 07-Feb-2022
1234,Revenue,CAHD,Statemented Support Equipment,Educational Supplies & Equipment,Connevans Limited,1020.00, 23-Feb-2022
1235,Revenue,CAHD,Statemented Support Equipment,Educational Supplies & Equipment,Connevans Limited,1508.80, 23-Feb-2022
1236,Revenue,CAHD,Statemented Support Equipment,Educational Supplies & Equipment,Connevans Limited,1115.20, 23-Feb-2022
1237,Revenue,CAHD,Bed and Breakfast,Bed & Breakfast,Connolly & Callaghan Limited,422.80, 07-Feb-2022
1238,Revenue,CAHD,Bed and Breakfast,Bed & Breakfast,Connolly & Callaghan Limited,583.80, 03-Feb-2022
1239,Revenue,CAHD,Bed and Breakfast,Bed & Breakfast,Connolly & Callaghan Limited,422.80, 03-Feb-2022
1240,Revenue,CAHD,Bed and Breakfast,Bed & Breakfast,Connolly & Callaghan Limited,548.80, 15-Feb-2022
1241,Revenue,CAHD,Bed and Breakfast,Bed & Breakfast,Connolly & Callaghan Limited,548.80, 03-Feb-2022
1242,Revenue,CAHD,Bed and Breakfast,Bed & Breakfast,Connolly & Callaghan Limited,500.40, 03-Feb-2022
1243,Revenue,CAHD,Bed and Breakfast,Bed & Breakfast,Connolly & Callaghan Limited,422.80, 16-Feb-2022
1244,Revenue,CAHD,Bed and Breakfast,Bed & Breakfast,Connolly & Callaghan Limited,422.80, 01-Feb-2022
1245,Revenue,CAHD,Bed and Breakfast,Bed & Breakfast,Connolly & Callaghan Limited,463.40, 03-Feb-2022
1246,Revenue,CAHD,Bed and Breakfast,Bed & Breakfast,Connolly & Callaghan Limited,548.80, 03-Feb-2022
1247,Revenue,CAHD,Bed and Breakfast,Bed & Breakfast,Connolly & Callaghan Limited,470.40, 03-Feb-2022
1248,Revenue,CAHD,Bed and Breakfast,Bed & Breakfast,Connolly & Callaghan Limited,583.80, 03-Feb-2022
1249,Revenue,CAHD,Bed and Breakfast,Bed & Breakfast,Connolly & Callaghan Limited,422.80, 01-Feb-2022
1250,Revenue,CAHD,Bed and Breakfast,Bed & Breakfast,Connolly & Callaghan Limited,583.80, 03-Feb-2022
1251,Revenue,CAHD,Bed and Breakfast,Bed & Breakfast,Connolly & Callaghan Limited,422.80, 15-Feb-2022
1252,Revenue,CAHD,Bed and Breakfast,Bed & Breakfast,Connolly & Callaghan Limited,583.80, 07-Feb-2022
1253,Revenue,CAHD,Bed and Breakfast,Bed & Breakfast,Connolly & Callaghan Limited,548.80, 07-Feb-2022
1254,Revenue,CAHD,Bed and Breakfast,Bed & Breakfast,Connolly & Callaghan Limited,548.80, 07-Feb-2022
1255,Revenue,CAHD,Bed and Breakfast,Bed & Breakfast,Connolly & Callaghan Limited,942.90, 07-Feb-2022
1256,Revenue,CAHD,Bed and Breakfast,Bed & Breakfast,Connolly & Callaghan Limited,548.80, 07-Feb-2022
1257,Revenue,CAHD,Bed and Breakfast,Bed & Breakfast,Connolly & Callaghan Limited,583.80, 07-Feb-2022
1258,Revenue,CAHD,Bed and Breakfast,Bed & Breakfast,Connolly & Callaghan Limited,422.80, 07-Feb-2022
1259,Revenue,CAHD,Bed and Breakfast,Bed & Breakfast,Connolly & Callaghan Limited,435.60, 07-Feb-2022
1260,Revenue,CAHD,Bed and Breakfast,Bed & Breakfast,Connolly & Callaghan Limited,420.00, 07-Feb-2022
1261,Revenue,CAHD,Bed and Breakfast,Bed & Breakfast,Connolly & Callaghan Limited,463.40, 07-Feb-2022
1262,Revenue,CAHD,Bed and Breakfast,Bed & Breakfast,Connolly & Callaghan Limited,508.20, 07-Feb-2022
1263,Revenue,CAHD,Bed and Breakfast,Bed & Breakfast,Connolly & Callaghan Limited,583.80, 07-Feb-2022
1264,Revenue,CAHD,Bed and Breakfast,Bed & Breakfast,Connolly & Callaghan Limited,463.40, 07-Feb-2022
1265,Revenue,CAHD,Bed and Breakfast,Bed & Breakfast,Connolly & Callaghan Limited,508.20, 07-Feb-2022
1266,Revenue,CAHD,Bed and Breakfast,Bed & Breakfast,Connolly & Callaghan Limited,422.80, 18-Feb-2022
1267,Revenue,CAHD,Bed and Breakfast,Bed & Breakfast,Connolly & Callaghan Limited,422.80, 07-Feb-2022
1268,Revenue,CAHD,CSC - Care Leavers Independent Living,Adults - Family Support,Connolly & Callaghan Limited,436.80, 04-Feb-2022
1269,Revenue,CAHD,Bed and Breakfast,Bed & Breakfast,Connolly & Callaghan Limited,583.80, 10-Feb-2022
1270,Revenue,CAHD,Bed and Breakfast,Bed & Breakfast,Connolly & Callaghan Limited,548.80, 10-Feb-2022
1271,Revenue,CAHD,Bed and Breakfast,Bed & Breakfast,Connolly & Callaghan Limited,548.80, 10-Feb-2022
1272,Revenue,CAHD,Bed and Breakfast,Bed & Breakfast,Connolly & Callaghan Limited,942.90, 09-Feb-2022
1273,Revenue,CAHD,Bed and Breakfast,Bed & Breakfast,Connolly & Callaghan Limited,548.80, 10-Feb-2022
1274,Revenue,CAHD,Bed and Breakfast,Bed & Breakfast,Connolly & Callaghan Limited,583.80, 10-Feb-2022
1275,Revenue,CAHD,Bed and Breakfast,Bed & Breakfast,Connolly & Callaghan Limited,422.80, 09-Feb-2022
1276,Revenue,CAHD,Bed and Breakfast,Bed & Breakfast,Connolly & Callaghan Limited,508.20, 09-Feb-2022
1277,Revenue,CAHD,Bed and Breakfast,Bed & Breakfast,Connolly & Callaghan Limited,420.00, 18-Feb-2022
1278,Revenue,CAHD,Bed and Breakfast,Bed & Breakfast,Connolly & Callaghan Limited,422.80, 10-Feb-2022
1279,Revenue,CAHD,Bed and Breakfast,Bed & Breakfast,Connolly & Callaghan Limited,463.40, 17-Feb-2022
1280,Revenue,CAHD,Bed and Breakfast,Bed & Breakfast,Connolly & Callaghan Limited,508.20, 09-Feb-2022
1281,Revenue,CAHD,Bed and Breakfast,Bed & Breakfast,Connolly & Callaghan Limited,508.20, 09-Feb-2022
1282,Revenue,CAHD,Bed and Breakfast,Bed & Breakfast,Connolly & Callaghan Limited,583.80, 10-Feb-2022
1283,Revenue,CAHD,Bed and Breakfast,Bed & Breakfast,Connolly & Callaghan Limited,463.40, 09-Feb-2022
1284,Revenue,CAHD,Bed and Breakfast,Bed & Breakfast,Connolly & Callaghan Limited,508.20, 09-Feb-2022
1285,Revenue,CAHD,Bed and Breakfast,Bed & Breakfast,Connolly & Callaghan Limited,422.80, 09-Feb-2022
1286,Revenue,CAHD,Bed and Breakfast,Bed & Breakfast,Connolly & Callaghan Limited,422.80, 09-Feb-2022
1287,Revenue,CAHD,Bed and Breakfast,Bed & Breakfast,Connolly & Callaghan Limited,583.80, 10-Feb-2022
1288,Revenue,CAHD,Bed and Breakfast,Bed & Breakfast,Connolly & Callaghan Limited,583.80, 17-Feb-2022
1289,Revenue,CAHD,Bed and Breakfast,Bed & Breakfast,Connolly & Callaghan Limited,548.80, 16-Feb-2022
1290,Revenue,CAHD,Bed and Breakfast,Bed & Breakfast,Connolly & Callaghan Limited,548.80, 16-Feb-2022
1291,Revenue,CAHD,Bed and Breakfast,Bed & Breakfast,Connolly & Callaghan Limited,942.90, 16-Feb-2022
1292,Revenue,CAHD,Bed and Breakfast,Bed & Breakfast,Connolly & Callaghan Limited,548.80, 16-Feb-2022
1293,Revenue,CAHD,Bed and Breakfast,Bed & Breakfast,Connolly & Callaghan Limited,583.80, 16-Feb-2022
1294,Revenue,CAHD,Bed and Breakfast,Bed & Breakfast,Connolly & Callaghan Limited,422.80, 16-Feb-2022
1295,Revenue,CAHD,Bed and Breakfast,Bed & Breakfast,Connolly & Callaghan Limited,508.20, 16-Feb-2022
1296,Revenue,CAHD,Bed and Breakfast,Bed & Breakfast,Connolly & Callaghan Limited,420.00, 16-Feb-2022
1297,Revenue,CAHD,Bed and Breakfast,Bed & Breakfast,Connolly & Callaghan Limited,422.80, 17-Feb-2022
1298,Revenue,CAHD,Bed and Breakfast,Bed & Breakfast,Connolly & Callaghan Limited,463.40, 17-Feb-2022
1299,Revenue,CAHD,Bed and Breakfast,Bed & Breakfast,Connolly & Callaghan Limited,508.20, 16-Feb-2022
1300,Revenue,CAHD,Bed and Breakfast,Bed & Breakfast,Connolly & Callaghan Limited,508.20, 18-Feb-2022
1301,Revenue,CAHD,Bed and Breakfast,Bed & Breakfast,Connolly & Callaghan Limited,422.80, 16-Feb-2022
1302,Revenue,CAHD,Bed and Breakfast,Bed & Breakfast,Connolly & Callaghan Limited,508.20, 16-Feb-2022
1303,Revenue,CAHD,Bed and Breakfast,Bed & Breakfast,Connolly & Callaghan Limited,422.80, 16-Feb-2022
1304,Revenue,CAHD,Bed and Breakfast,Bed & Breakfast,Connolly & Callaghan Limited,508.20, 16-Feb-2022
1305,Revenue,CAHD,Bed and Breakfast,Bed & Breakfast,Connolly & Callaghan Limited,422.80, 16-Feb-2022
1306,Revenue,CAHD,Bed and Breakfast,Bed & Breakfast,Connolly & Callaghan Limited,548.80, 25-Feb-2022
1307,Revenue,CAHD,Bed and Breakfast,Bed & Breakfast,Connolly & Callaghan Limited,942.90, 25-Feb-2022
1308,Revenue,CAHD,Bed and Breakfast,Bed & Breakfast,Connolly & Callaghan Limited,548.80, 25-Feb-2022
1309,Revenue,CAHD,Bed and Breakfast,Bed & Breakfast,Connolly & Callaghan Limited,583.80, 25-Feb-2022
1310,Revenue,CAHD,Bed and Breakfast,Bed & Breakfast,Connolly & Callaghan Limited,422.80, 25-Feb-2022
1311,Revenue,CAHD,Bed and Breakfast,Bed & Breakfast,Connolly & Callaghan Limited,508.20, 25-Feb-2022
1312,Revenue,CAHD,Bed and Breakfast,Bed & Breakfast,Connolly & Callaghan Limited,420.00, 25-Feb-2022
1313,Revenue,CAHD,Bed and Breakfast,Bed & Breakfast,Connolly & Callaghan Limited,508.20, 25-Feb-2022
1314,Revenue,CAHD,Bed and Breakfast,Bed & Breakfast,Connolly & Callaghan Limited,522.27, 25-Feb-2022
1315,Revenue,CAHD,Bed and Breakfast,Bed & Breakfast,Connolly & Callaghan Limited,508.20, 25-Feb-2022
1316,Revenue,CAHD,Bed and Breakfast,Bed & Breakfast,Connolly & Callaghan Limited,508.20, 25-Feb-2022
1317,Revenue,CAHD,Bed and Breakfast,Bed & Breakfast,Connolly & Callaghan Limited,422.80, 25-Feb-2022
1318,Revenue,CAHD,Bed and Breakfast,Bed & Breakfast,Connolly & Callaghan Limited,508.20, 25-Feb-2022
1319,Revenue,CAHD,Bed and Breakfast,Bed & Breakfast,Connolly & Callaghan Limited,422.80, 25-Feb-2022
1320,Revenue,CAHD,Bed and Breakfast,Bed & Breakfast,Connolly & Callaghan Limited,508.20, 28-Feb-2022
1321,Revenue,CAHD,CSC - Vinney Green Secure Unit,Other Supplies & Services,Coram Voice,2247.50, 23-Feb-2022
1322,Revenue,CAHD,"Strategy, Advice and Public Protection",Medical Fees,Cordell Health Ltd,980.00, 03-Feb-2022
1323,Revenue,CAHD,Independent Special Placements - Pre 16,Other Private Contractors,Cotswold Chine School,19498.05, 22-Feb-2022
1324,Revenue,CAHD,Central - Commissioned Services,Permanent Nursing,Cotswold House Care Home,3484.32, 08-Feb-2022
1325,Revenue,CAHD,Alexandra Way,Cleaning & Domestic Services,Countrywide Healthcare Supplies Ltd,1749.42, 10-Feb-2022
1326,Revenue,CAHD,North - Community based support,Permanent Residential,Court House Residential C.H.,3400.00, 08-Feb-2022
1327,Revenue,CAHD,North - Community based support,Fees & Charges Income - General,Court House Residential C.H.,-658.88, 08-Feb-2022
1328,Revenue,CAHD,North - Community based support,Permanent Residential,Court House Retirement Home,3600.00, 08-Feb-2022
1329,Revenue,CAHD,North - Community based support,Fees & Charges Income - General,Court House Retirement Home,-848.80, 08-Feb-2022
1330,Revenue,CAHD,Covid - ASC - Infection Control,Grants to Voluntary Bodies,Courtfield Healthcare Ltd,540.02, 18-Feb-2022
1331,Revenue,CAHD,Covid  - Workforce capacity,Grants to Voluntary Bodies,Courtfield Healthcare Ltd,1252.08, 04-Feb-2022
1332,Revenue,CAHD,Covid  - Workforce capacity,Grants to Voluntary Bodies,Courtfield Healthcare Ltd,2575.14, 18-Feb-2022
1333,Revenue,CAHD,Drug and Alcohol Programme,Other Small Contracts,Courtside Surgery,1725.50, 01-Feb-2022
1334,Revenue,CAHD,Positive Activities Subsidy for Young Pe,Training Expenses,Creative Youth Network,3000.00, 11-Feb-2022
1335,Revenue,CAHD,S28A cases,Permanent Residential,Creedy Court,15120.00, 22-Feb-2022
1336,Revenue,CAHD,S28A cases,Permanent Residential,Creedy Court,10597.96, 08-Feb-2022
1337,Revenue,CAHD,S28A cases,Fees & Charges Income - General,Creedy Court,-616.80, 08-Feb-2022
1338,Revenue,CAHD,S28A cases,Permanent Residential,Creedy Court,15624.92, 08-Feb-2022
1339,Revenue,CAHD,S28A cases,Fees & Charges Income - General,Creedy Court,-608.80, 08-Feb-2022
1340,Revenue,CAHD,North - Community based support,Permanent Residential,Creedy Court,15120.00, 22-Feb-2022
1341,Revenue,CAHD,North - Community based support,Permanent Residential,Creedy Court,20774.00, 08-Feb-2022
1342,Revenue,CAHD,North - Community based support,Fees & Charges Income - General,Creedy Court,-425.60, 08-Feb-2022
1343,Revenue,CAHD,Central - Commissioned Services,Respite Care,Cygnet Healthcare Limited,0.00, 08-Feb-2022
1344,Revenue,CAHD,Central - Commissioned Services,Supported Living,Cygnet Healthcare Limited,3380.00, 08-Feb-2022
1345,Revenue,CAHD,North - Community based support,Permanent Residential,Daneswood,13579.68, 08-Feb-2022
1346,Revenue,CAHD,North - Community based support,Fees & Charges Income - General,Daneswood,-425.60, 08-Feb-2022
1347,Revenue,CAHD,South - Commissioned Services,Permanent Residential,Daneswood,12759.56, 08-Feb-2022
1348,Revenue,CAHD,South - Commissioned Services,Fees & Charges Income - General,Daneswood,-425.60, 08-Feb-2022
1349,Revenue,CAHD,South - Commissioned Services,Day Care / Social Activities,Daneswood,1474.72, 08-Feb-2022
1350,Revenue,CAHD,Learning Difficulties PSL,Rent,Individual,2400.00, 22-Feb-2022
1351,Revenue,CAHD,CSC - Corporate Parenting,Catering,De Vere Tortworth Court,2695.00, 18-Feb-2022
1352,Revenue,CAHD,South - Commissioned Services,Day Care / Social Activities,Deafblind Uk,630.30, 28-Feb-2022
1353,Revenue,CAHD,South - Commissioned Services,Day Care / Social Activities,Deafblind Uk,848.04, 25-Feb-2022
1354,Revenue,CAHD,Central - Commissioned Services,Permanent Residential,Debt Recovery,4786.48, 08-Feb-2022
1355,Revenue,CAHD,Central - Commissioned Services,Fees & Charges Income - General,Debt Recovery,-425.60, 08-Feb-2022
1356,Revenue,CAHD,North - Community based support,Permanent Nursing,Debt Recovery,3822.52, 08-Feb-2022
1357,Revenue,CAHD,North - Community based support,Fees & Charges Income - General,Debt Recovery,-356.80, 08-Feb-2022
1358,Revenue,CAHD,South - Commissioned Services,Permanent Residential,Debt Recovery,4422.88, 08-Feb-2022
1359,Revenue,CAHD,South - Commissioned Services,Fees & Charges Income - General,Debt Recovery,-425.60, 08-Feb-2022
1360,Revenue,CAHD,Central - Commissioned Services,Permanent Residential,Debt Recovery,4326.88, 08-Feb-2022
1361,Revenue,CAHD,Central - Commissioned Services,Fees & Charges Income - General,Debt Recovery,-608.80, 08-Feb-2022
1362,Revenue,CAHD,North - Community based support,Permanent Nursing,Debt Recovery,4642.48, 08-Feb-2022
1363,Revenue,CAHD,North - Community based support,Fees & Charges Income - General,Debt Recovery,-425.60, 08-Feb-2022
1364,Revenue,CAHD,North - Community based support,Permanent Nursing,Debt Recovery,4187.16, 08-Feb-2022
1365,Revenue,CAHD,North - Community based support,Fees & Charges Income - General,Debt Recovery,-500.80, 08-Feb-2022
1366,Revenue,CAHD,North - Community based support,Permanent Nursing,Debt Recovery,5723.32, 08-Feb-2022
1367,Revenue,CAHD,North - Community based support,Fees & Charges Income - General,Debt Recovery,-832.20, 08-Feb-2022
1368,Revenue,CAHD,Jointly Funded H&SC Packages,Permanent Nursing,Debt Recovery,393.48, 08-Feb-2022
1369,Revenue,CAHD,North - Community based support,Permanent Nursing,Debt Recovery,3643.52, 08-Feb-2022
1370,Revenue,CAHD,North - Community based support,Fees & Charges Income - General,Debt Recovery,-425.60, 08-Feb-2022
1371,Revenue,CAHD,North - Community based support,Permanent Nursing,Debt Recovery,5735.40, 08-Feb-2022
1372,Revenue,CAHD,North - Community based support,Fees & Charges Income - General,Debt Recovery,-449.60, 08-Feb-2022
1373,Revenue,CAHD,North - Community based support,Permanent Residential,Debt Recovery,3702.24, 08-Feb-2022
1374,Revenue,CAHD,North - Community based support,Fees & Charges Income - General,Debt Recovery,-425.60, 08-Feb-2022
1375,Revenue,CAHD,South Glos Users in South Glos Homes,Permanent Nursing,Deerhurst Nursing Home,2331.60, 22-Feb-2022
1376,Revenue,CAHD,South Glos Users in South Glos Homes,Permanent Nursing,Deerhurst Nursing Home,2492.40, 22-Feb-2022
1377,Revenue,CAHD,South Glos Users in South Glos Homes,Permanent Nursing,Deerhurst Nursing Home,3886.00, 22-Feb-2022
1378,Revenue,CAHD,South - Commissioned Services,Permanent Nursing,Deerhurst Nursing Home,9650.08, 22-Feb-2022
1379,Revenue,CAHD,South Glos Users in South Glos Homes,Permanent Nursing,Deerhurst Nursing Home,509.20, 22-Feb-2022
1380,Revenue,CAHD,South Glos Users in South Glos Homes,Permanent Nursing,Deerhurst Nursing Home,750.40, 08-Feb-2022
1381,Revenue,CAHD,South Glos Users in South Glos Homes,Permanent Nursing,Deerhurst Nursing Home,750.40, 08-Feb-2022
1382,Revenue,CAHD,South Glos Users in South Glos Homes,Permanent Nursing,Deerhurst Nursing Home,750.40, 08-Feb-2022
1383,Revenue,CAHD,South Glos Users in South Glos Homes,Permanent Nursing,Deerhurst Nursing Home,750.40, 08-Feb-2022
1384,Revenue,CAHD,South - Commissioned Services,Permanent Nursing,Deerhurst Nursing Home,3970.68, 08-Feb-2022
1385,Revenue,CAHD,South - Commissioned Services,Fees & Charges Income - General,Deerhurst Nursing Home,-620.21, 08-Feb-2022
1386,Revenue,CAHD,South Glos Users in South Glos Homes,Permanent Nursing,Deerhurst Nursing Home,750.40, 08-Feb-2022
1387,Revenue,CAHD,South - Commissioned Services,Permanent Nursing,Deerhurst Nursing Home,4501.20, 08-Feb-2022
1388,Revenue,CAHD,South - Commissioned Services,Fees & Charges Income - General,Deerhurst Nursing Home,-611.00, 08-Feb-2022
1389,Revenue,CAHD,South Glos Users in South Glos Homes,Permanent Nursing,Deerhurst Nursing Home,750.40, 08-Feb-2022
1390,Revenue,CAHD,South - Commissioned Services,Permanent Nursing,Deerhurst Nursing Home,4762.80, 08-Feb-2022
1391,Revenue,CAHD,South - Commissioned Services,Fees & Charges Income - General,Deerhurst Nursing Home,-608.80, 08-Feb-2022
1392,Revenue,CAHD,South - Commissioned Services,Day Care / Social Activities,Deerhurst Nursing Home,581.28, 08-Feb-2022
1393,Revenue,CAHD,South Glos Users in South Glos Homes,Permanent Nursing,Deerhurst Nursing Home,750.40, 08-Feb-2022
1394,Revenue,CAHD,South - Commissioned Services,Permanent Nursing,Deerhurst Nursing Home,4800.00, 08-Feb-2022
1395,Revenue,CAHD,South - Commissioned Services,Fees & Charges Income - General,Deerhurst Nursing Home,-1152.76, 08-Feb-2022
1396,Revenue,CAHD,South Glos Users in South Glos Homes,Permanent Nursing,Deerhurst Nursing Home,750.40, 08-Feb-2022
1397,Revenue,CAHD,South Glos Users in South Glos Homes,Permanent Nursing,Deerhurst Nursing Home,750.40, 08-Feb-2022
1398,Revenue,CAHD,South - Commissioned Services,Permanent Nursing,Deerhurst Nursing Home,4006.00, 08-Feb-2022
1399,Revenue,CAHD,South Glos Users in South Glos Homes,Permanent Nursing,Deerhurst Nursing Home,750.40, 08-Feb-2022
1400,Revenue,CAHD,North - Community based support,Permanent Nursing,Deerhurst Nursing Home,3891.20, 08-Feb-2022
1401,Revenue,CAHD,North - Community based support,Fees & Charges Income - General,Deerhurst Nursing Home,-1039.28, 08-Feb-2022
1402,Revenue,CAHD,South - Commissioned Services,Permanent Nursing,Deerhurst Nursing Home,3965.12, 08-Feb-2022
1403,Revenue,CAHD,South - Commissioned Services,Fees & Charges Income - General,Deerhurst Nursing Home,-117.40, 08-Feb-2022
1404,Revenue,CAHD,South Glos Users in South Glos Homes,Permanent Nursing,Deerhurst Nursing Home,750.40, 08-Feb-2022
1405,Revenue,CAHD,North - Community based support,Permanent Nursing,Deerhurst Nursing Home,4140.00, 08-Feb-2022
1406,Revenue,CAHD,North - Community based support,Fees & Charges Income - General,Deerhurst Nursing Home,-624.80, 08-Feb-2022
1407,Revenue,CAHD,South - Commissioned Services,Permanent Nursing,Deerhurst Nursing Home,4129.40, 08-Feb-2022
1408,Revenue,CAHD,South - Commissioned Services,Fees & Charges Income - General,Deerhurst Nursing Home,-1307.24, 08-Feb-2022
1409,Revenue,CAHD,South Glos Users in South Glos Homes,Permanent Nursing,Deerhurst Nursing Home,750.40, 08-Feb-2022
1410,Revenue,CAHD,South - Commissioned Services,Permanent Nursing,Deerhurst Nursing Home,4182.12, 08-Feb-2022
1411,Revenue,CAHD,South - Commissioned Services,Fees & Charges Income - General,Deerhurst Nursing Home,-1227.44, 08-Feb-2022
1412,Revenue,CAHD,South Glos Users in South Glos Homes,Permanent Nursing,Deerhurst Nursing Home,750.40, 08-Feb-2022
1413,Revenue,CAHD,South Glos Users in South Glos Homes,Permanent Nursing,Deerhurst Nursing Home,750.40, 08-Feb-2022
1414,Revenue,CAHD,South Glos Users in South Glos Homes,Permanent Nursing,Deerhurst Nursing Home,750.40, 08-Feb-2022
1415,Revenue,CAHD,South Glos Users in South Glos Homes,Permanent Nursing,Deerhurst Nursing Home,750.40, 08-Feb-2022
1416,Revenue,CAHD,South - Commissioned Services,Permanent Nursing,Deerhurst Nursing Home,4180.04, 08-Feb-2022
1417,Revenue,CAHD,South - Commissioned Services,Fees & Charges Income - General,Deerhurst Nursing Home,-1370.36, 08-Feb-2022
1418,Revenue,CAHD,South Glos Users in South Glos Homes,Permanent Nursing,Deerhurst Nursing Home,750.40, 08-Feb-2022
1419,Revenue,CAHD,South Glos Users in South Glos Homes,Permanent Nursing,Deerhurst Nursing Home,750.40, 08-Feb-2022
1420,Revenue,CAHD,South - Commissioned Services,Permanent Nursing,Deerhurst Nursing Home,4060.32, 08-Feb-2022
1421,Revenue,CAHD,South - Commissioned Services,Fees & Charges Income - General,Deerhurst Nursing Home,-1606.80, 08-Feb-2022
1422,Revenue,CAHD,South Glos Users in South Glos Homes,Permanent Nursing,Deerhurst Nursing Home,750.40, 08-Feb-2022
1423,Revenue,CAHD,South Glos Users in South Glos Homes,Permanent Nursing,Deerhurst Nursing Home,750.40, 08-Feb-2022
1424,Revenue,CAHD,South - Commissioned Services,Permanent Nursing,Deerhurst Nursing Home,4596.36, 08-Feb-2022
1425,Revenue,CAHD,South - Commissioned Services,Fees & Charges Income - General,Deerhurst Nursing Home,-218.92, 08-Feb-2022
1426,Revenue,CAHD,South Glos Users in South Glos Homes,Permanent Nursing,Deerhurst Nursing Home,750.40, 08-Feb-2022
1427,Revenue,CAHD,South Glos Users in South Glos Homes,Permanent Nursing,Deerhurst Nursing Home,750.40, 08-Feb-2022
1428,Revenue,CAHD,South Glos Users in South Glos Homes,Permanent Nursing,Deerhurst Nursing Home,750.40, 08-Feb-2022
1429,Revenue,CAHD,South Glos Users in South Glos Homes,Permanent Nursing,Deerhurst Nursing Home,750.40, 08-Feb-2022
1430,Revenue,CAHD,South Glos Users in South Glos Homes,Permanent Nursing,Deerhurst Nursing Home,750.40, 08-Feb-2022
1431,Revenue,CAHD,South Glos Users in South Glos Homes,Permanent Nursing,Deerhurst Nursing Home,750.40, 08-Feb-2022
1432,Revenue,CAHD,South Glos Users in South Glos Homes,Permanent Nursing,Deerhurst Nursing Home,750.40, 08-Feb-2022
1433,Revenue,CAHD,South - Commissioned Services,Permanent Nursing,Deerhurst Nursing Home,4006.00, 08-Feb-2022
1434,Revenue,CAHD,South - Commissioned Services,Fees & Charges Income - General,Deerhurst Nursing Home,-836.36, 08-Feb-2022
1435,Revenue,CAHD,South Glos Users in South Glos Homes,Permanent Nursing,Deerhurst Nursing Home,750.40, 08-Feb-2022
1436,Revenue,CAHD,South - Commissioned Services,Permanent Residential,Deerhurst Nursing Home,4129.00, 08-Feb-2022
1437,Revenue,CAHD,South - Commissioned Services,Fees & Charges Income - General,Deerhurst Nursing Home,-608.80, 08-Feb-2022
1438,Revenue,CAHD,South - Commissioned Services,Permanent Nursing,Deerhurst Nursing Home,4760.00, 08-Feb-2022
1439,Revenue,CAHD,South - Commissioned Services,Fees & Charges Income - General,Deerhurst Nursing Home,-872.08, 08-Feb-2022
1440,Revenue,CAHD,South Glos Users in South Glos Homes,Permanent Nursing,Deerhurst Nursing Home,750.40, 08-Feb-2022
1441,Revenue,CAHD,South - Commissioned Services,Permanent Nursing,Deerhurst Nursing Home,4760.00, 08-Feb-2022
1442,Revenue,CAHD,South - Commissioned Services,Fees & Charges Income - General,Deerhurst Nursing Home,-608.80, 08-Feb-2022
1443,Revenue,CAHD,South Glos Users in South Glos Homes,Permanent Nursing,Deerhurst Nursing Home,750.40, 08-Feb-2022
1444,Revenue,CAHD,South Glos Users in South Glos Homes,Permanent Nursing,Deerhurst Nursing Home,750.40, 08-Feb-2022
1445,Revenue,CAHD,South Glos Users in South Glos Homes,Permanent Nursing,Deerhurst Nursing Home,750.40, 08-Feb-2022
1446,Revenue,CAHD,South Glos Users in South Glos Homes,Permanent Nursing,Deerhurst Nursing Home,750.40, 08-Feb-2022
1447,Revenue,CAHD,South Glos Users in South Glos Homes,Permanent Nursing,Deerhurst Nursing Home,750.40, 08-Feb-2022
1448,Revenue,CAHD,South Glos Users in South Glos Homes,Permanent Nursing,Deerhurst Nursing Home,750.40, 08-Feb-2022
1449,Revenue,CAHD,South - Commissioned Services,Permanent Nursing,Deerhurst Nursing Home,4760.00, 08-Feb-2022
1450,Revenue,CAHD,South - Commissioned Services,Fees & Charges Income - General,Deerhurst Nursing Home,-608.80, 08-Feb-2022
1451,Revenue,CAHD,South Glos Users in South Glos Homes,Permanent Nursing,Deerhurst Nursing Home,750.40, 08-Feb-2022
1452,Revenue,CAHD,South Glos Users in South Glos Homes,Permanent Nursing,Deerhurst Nursing Home,750.40, 08-Feb-2022
1453,Revenue,CAHD,South Glos Users in South Glos Homes,Permanent Nursing,Deerhurst Nursing Home,750.40, 08-Feb-2022
1454,Revenue,CAHD,South - Commissioned Services,Permanent Residential,Deerhurst Nursing Home,3891.20, 08-Feb-2022
1455,Revenue,CAHD,South - Commissioned Services,Fees & Charges Income - General,Deerhurst Nursing Home,-916.72, 08-Feb-2022
1456,Revenue,CAHD,South Glos Users in South Glos Homes,Permanent Nursing,Deerhurst Nursing Home,750.40, 08-Feb-2022
1457,Revenue,CAHD,South - Commissioned Services,Permanent Nursing,Deerhurst Nursing Home,4762.80, 08-Feb-2022
1458,Revenue,CAHD,South - Commissioned Services,Fees & Charges Income - General,Deerhurst Nursing Home,-1056.36, 08-Feb-2022
1459,Revenue,CAHD,North - Community based support,Permanent Residential,Deerhurst Nursing Home,8699.20, 08-Feb-2022
1460,Revenue,CAHD,North - Community based support,Fees & Charges Income - General,Deerhurst Nursing Home,-425.60, 08-Feb-2022
1461,Revenue,CAHD,Learning Difficulties Development Fund,Other Supplies & Services,Design 4 Life Ltd,1800.00, 07-Feb-2022
1462,Revenue,CAHD,South - Commissioned Services,Respite Care,Design House,0.00, 08-Feb-2022
1463,Revenue,CAHD,South - Commissioned Services,Supported Living,Design House,2753.28, 08-Feb-2022
1464,Revenue,CAHD,18-25 Year Olds,Respite Care,Design House,0.00, 08-Feb-2022
1465,Revenue,CAHD,18-25 Year Olds,Supported Living,Design House,4094.76, 08-Feb-2022
1466,Revenue,CAHD,South - Commissioned Services,Respite Care,Design House,0.00, 08-Feb-2022
1467,Revenue,CAHD,South - Commissioned Services,Supported Living,Design House,2653.28, 08-Feb-2022
1468,Revenue,CAHD,South - Commissioned Services,Respite Care,Design House,0.00, 08-Feb-2022
1469,Revenue,CAHD,South - Commissioned Services,Supported Living,Design House,2355.60, 08-Feb-2022
1470,Revenue,CAHD,South - Commissioned Services,Respite Care,Design House,0.00, 08-Feb-2022
1471,Revenue,CAHD,South - Commissioned Services,Supported Living,Design House,2753.28, 08-Feb-2022
1472,Revenue,CAHD,South - Commissioned Services,Respite Care,Design House,0.00, 08-Feb-2022
1473,Revenue,CAHD,South - Commissioned Services,Supported Living,Design House,3196.12, 08-Feb-2022
1474,Revenue,CAHD,18-25 Year Olds,Respite Care,Design House,0.00, 08-Feb-2022
1475,Revenue,CAHD,18-25 Year Olds,Supported Living,Design House,4094.76, 08-Feb-2022
1476,Revenue,CAHD,South - Commissioned Services,Respite Care,Design House,0.00, 08-Feb-2022
1477,Revenue,CAHD,South - Commissioned Services,Supported Living,Design House,2651.32, 08-Feb-2022
1478,Revenue,CAHD,18-25 Year Olds,Respite Care,Design House,0.00, 08-Feb-2022
1479,Revenue,CAHD,18-25 Year Olds,Supported Living,Design House,3083.24, 08-Feb-2022
1480,Revenue,CAHD,South - Commissioned Services,Respite Care,Design House,0.00, 08-Feb-2022
1481,Revenue,CAHD,South - Commissioned Services,Supported Living,Design House,2776.88, 08-Feb-2022
1482,Revenue,CAHD,South - Commissioned Services,Respite Care,Design House,0.00, 08-Feb-2022
1483,Revenue,CAHD,South - Commissioned Services,Supported Living,Design House,3051.76, 08-Feb-2022
1484,Revenue,CAHD,Central - Commissioned Services,Day Care / Social Activities,Design House,3060.40, 08-Feb-2022
1485,Revenue,CAHD,South - Commissioned Services,Respite Care,Design House,0.00, 08-Feb-2022
1486,Revenue,CAHD,South - Commissioned Services,Supported Living,Design House,2242.76, 08-Feb-2022
1487,Revenue,CAHD,South - Commissioned Services,Day Care / Social Activities,Design House,538.88, 08-Feb-2022
1488,Revenue,CAHD,South - Commissioned Services,Respite Care,Design House,0.00, 08-Feb-2022
1489,Revenue,CAHD,South - Commissioned Services,Supported Living,Design House,1978.92, 08-Feb-2022
1490,Revenue,CAHD,South - Commissioned Services,Respite Care,Design House,0.00, 08-Feb-2022
1491,Revenue,CAHD,South - Commissioned Services,Supported Living,Design House,4494.32, 08-Feb-2022
1492,Revenue,CAHD,North - Community based support,Respite Care,Design House,0.00, 08-Feb-2022
1493,Revenue,CAHD,North - Community based support,Supported Living,Design House,3434.00, 08-Feb-2022
1494,Revenue,CAHD,18-25 Year Olds,Respite Care,Design House,0.00, 08-Feb-2022
1495,Revenue,CAHD,18-25 Year Olds,Supported Living,Design House,3107.04, 08-Feb-2022
1496,Revenue,CAHD,South - Commissioned Services,Respite Care,Design House,0.00, 08-Feb-2022
1497,Revenue,CAHD,South - Commissioned Services,Supported Living,Design House,2355.60, 08-Feb-2022
1498,Revenue,CAHD,South - Commissioned Services,Respite Care,Design House,0.00, 08-Feb-2022
1499,Revenue,CAHD,South - Commissioned Services,Supported Living,Design House,2625.96, 08-Feb-2022
1500,Revenue,CAHD,Bed and Breakfast,Bed & Breakfast,Designz Ltd,511.00, 11-Feb-2022
1501,Revenue,CAHD,Bed and Breakfast,Bed & Breakfast,Designz Ltd,511.00, 07-Feb-2022
1502,Revenue,CAHD,Bed and Breakfast,Bed & Breakfast,Designz Ltd,511.00, 11-Feb-2022
1503,Revenue,CAHD,Bed and Breakfast,Bed & Breakfast,Designz Ltd,511.00, 18-Feb-2022
1504,Revenue,CAHD,Bed and Breakfast,Bed & Breakfast,Designz Ltd,511.00, 25-Feb-2022
1505,Revenue,CAHD,Central - Commissioned Services,Other Small Contracts,Dhek Bhal,488.96, 23-Feb-2022
1506,Revenue,CAHD,South - Commissioned Services,Other Small Contracts,Dhek Bhal,214.40, 23-Feb-2022
1507,Revenue,CAHD,Contain Outbreak Mgmt Fund,Project Funding,Dignifi Limited,28625.00, 11-Feb-2022
1508,Revenue,CAHD,ELS - Skills,Furniture & Fittings Loose,Donaghy Bros Ltd,658.26, 17-Feb-2022
1509,Revenue,CAHD,North - Community based support,Permanent Nursing,Douglas House,3599.80, 08-Feb-2022
1510,Revenue,CAHD,North - Community based support,Fees & Charges Income - General,Douglas House,-356.80, 08-Feb-2022
1511,Revenue,CAHD,Personnel Costs,Legal Fees,Individual,1800.00, 11-Feb-2022
1512,Revenue,CAHD,Planning and Partnerships Team,Legal Fees,Individual,700.00, 21-Feb-2022
1513,Revenue,CAHD,Drug and Alcohol Programme,Other Small Contracts,Downend Health Group,5684.00, 01-Feb-2022
1514,Revenue,CAHD,Statemented Support Academies,Other Public Bodies,Downend School,1544.42, 23-Feb-2022
1515,Revenue,CAHD,Statemented Support Academies,Other Public Bodies,Downend School,660.24, 23-Feb-2022
1516,Revenue,CAHD,Statemented Support Academies,Other Public Bodies,Downend School,1025.73, 23-Feb-2022
1517,Revenue,CAHD,Statemented Support Academies,Other Public Bodies,Downend School,1108.26, 23-Feb-2022
1518,Revenue,CAHD,Statemented Support Academies,Other Public Bodies,Downend School,554.13, 23-Feb-2022
1519,Revenue,CAHD,Statemented Support Academies,Other Public Bodies,Downend School,666.00, 23-Feb-2022
1520,Revenue,CAHD,Statemented Support Academies,Other Public Bodies,Downend School,822.83, 23-Feb-2022
1521,Revenue,CAHD,Statemented Support Academies,Other Public Bodies,Downend School,1079.67, 23-Feb-2022
1522,Revenue,CAHD,Statemented Support Academies,Other Public Bodies,Downend School,1438.38, 23-Feb-2022
1523,Revenue,CAHD,Statemented Support Academies,Other Public Bodies,Downend School,1709.55, 23-Feb-2022
1524,Revenue,CAHD,Statemented Support Academies,Other Public Bodies,Downend School,1192.50, 23-Feb-2022
1525,Revenue,CAHD,Statemented Support Academies,Other Public Bodies,Downend School,1544.49, 23-Feb-2022
1526,Revenue,CAHD,Statemented Support Academies,Other Public Bodies,Downend School,966.92, 23-Feb-2022
1527,Revenue,CAHD,Social Lettings Agency,Rent,Individual,822.73, 22-Feb-2022
1528,Revenue,CAHD,Social Lettings Agency,Fees & Charges Income - General,Individual,-65.82, 22-Feb-2022
1529,Revenue,CAHD,CSC - South LAC Placements,Other Supplies & Services,Individual,585.00, 10-Feb-2022
1530,Revenue,CAHD,ELS - Skills,Computer Equipment - Purchase,DSG Retail Limited,6229.00, 25-Feb-2022
1531,Revenue,CAHD,ELS - Skills,Computer Equipment - Purchase,DSG Retail Limited,7875.00, 25-Feb-2022
1532,Revenue,CAHD,CSC - Care Leavers Support Costs,Personal Needs of Clients,Dynamic Youth Support Services,1082.10, 04-Feb-2022
1533,Revenue,CAHD,CSC - Care Leavers Independent Living,Adults - Family Support,Dynamic Youth Support Services,17271.34, 09-Feb-2022
1534,Revenue,CAHD,CSC - Professional Fees Foster Carers,Band 3 Foster Care,Individual,241.00, 11-Feb-2022
1535,Revenue,CAHD,CSC - Professional Fees Foster Carers,Therapeutic Fostering Fee,Individual,1086.00, 11-Feb-2022
1536,Revenue,CAHD,CSC - Professional Fees Foster Carers,Band 3 Foster Care,Individual,241.00, 04-Feb-2022
1537,Revenue,CAHD,CSC - Professional Fees Foster Carers,Therapeutic Fostering Fee,Individual,1086.00, 04-Feb-2022
1538,Revenue,CAHD,CSC - Age Related Allowances,Foster Parent Allowances,Individual,173.00, 18-Feb-2022
1539,Revenue,CAHD,CSC - Professional Fees Foster Carers,Band 3 Foster Care,Individual,241.00, 18-Feb-2022
1540,Revenue,CAHD,CSC - Professional Fees Foster Carers,Therapeutic Fostering Fee,Individual,1086.00, 18-Feb-2022
1541,Revenue,CAHD,CSC - Asylum Seekers - Unaccompanied,Foster Parent Allowances,Individual,173.00, 18-Feb-2022
1542,Revenue,CAHD,CSC - Age Related Allowances,Foster Parent Allowances,Individual,173.00, 25-Feb-2022
1543,Revenue,CAHD,CSC - Professional Fees Foster Carers,Band 3 Foster Care,Individual,241.00, 25-Feb-2022
1544,Revenue,CAHD,CSC - Professional Fees Foster Carers,Therapeutic Fostering Fee,Individual,1086.00, 25-Feb-2022
1545,Revenue,CAHD,CSC - Asylum Seekers - Unaccompanied,Foster Parent Allowances,Individual,173.00, 25-Feb-2022
1546,Revenue,CAHD,North - Community based support,Permanent Residential,East Court,2763.56, 08-Feb-2022
1547,Revenue,CAHD,North - Community based support,Fees & Charges Income - General,East Court,-425.60, 08-Feb-2022
1548,Revenue,CAHD,Community Support - North,Preventative Assistance,Easylink UK,1272.13, 25-Feb-2022
1549,Revenue,CAHD,Community Support - Central,Preventative Assistance,Easylink UK,825.25, 25-Feb-2022
1550,Revenue,CAHD,Community Support - South,Preventative Assistance,Easylink UK,784.45, 25-Feb-2022
1551,Revenue,CAHD,Covid - ASC - Infection Control,Grants to Voluntary Bodies,Edgemont House Ltd,1565.62, 18-Feb-2022
1552,Revenue,CAHD,Central - Commissioned Services,Permanent Residential,Edgemont House Ltd,3200.00, 08-Feb-2022
1553,Revenue,CAHD,Central - Commissioned Services,Fees & Charges Income - General,Edgemont House Ltd,-838.08, 08-Feb-2022
1554,Revenue,CAHD,South - Commissioned Services,Permanent Residential,Edgemont House Ltd,3273.60, 08-Feb-2022
1555,Revenue,CAHD,South - Commissioned Services,Fees & Charges Income - General,Edgemont House Ltd,-1663.44, 08-Feb-2022
1556,Revenue,CAHD,South - Commissioned Services,Permanent Residential,Edgemont House Ltd,3339.08, 08-Feb-2022
1557,Revenue,CAHD,South - Commissioned Services,Fees & Charges Income - General,Edgemont House Ltd,-611.51, 08-Feb-2022
1558,Revenue,CAHD,South - Commissioned Services,Permanent Residential,Edgemont House Ltd,3000.00, 08-Feb-2022
1559,Revenue,CAHD,South - Commissioned Services,Fees & Charges Income - General,Edgemont House Ltd,-922.88, 08-Feb-2022
1560,Revenue,CAHD,South - Commissioned Services,Permanent Residential,Edgemont House Ltd,3200.00, 08-Feb-2022
1561,Revenue,CAHD,South - Commissioned Services,Fees & Charges Income - General,Edgemont House Ltd,-1317.24, 08-Feb-2022
1562,Revenue,CAHD,ASC Rapid Testing Fund,Grants to Voluntary Bodies,Edgemont House Ltd,1112.44, 18-Feb-2022
1563,Revenue,CAHD,South - Commissioned Services,Respite Planned - Nursing,Edgemont View Ltd,2500.00, 22-Feb-2022
1564,Revenue,CAHD,Covid 19- Spend on behalf of NHS,Respite Planned - Nursing,Edgemont View Ltd,3400.00, 22-Feb-2022
1565,Revenue,CAHD,Covid - ASC - Infection Control,Grants to Voluntary Bodies,Edgemont View Ltd,2348.42, 18-Feb-2022
1566,Revenue,CAHD,South Glos Users in South Glos Homes,Permanent Nursing,Edgemont View Ltd,750.40, 08-Feb-2022
1567,Revenue,CAHD,South Glos Users in South Glos Homes,Permanent Nursing,Edgemont View Ltd,750.40, 08-Feb-2022
1568,Revenue,CAHD,South - Commissioned Services,Permanent Nursing,Edgemont View Ltd,3739.76, 08-Feb-2022
1569,Revenue,CAHD,South - Commissioned Services,Fees & Charges Income - General,Edgemont View Ltd,-720.80, 08-Feb-2022
1570,Revenue,CAHD,South Glos Users in South Glos Homes,Permanent Nursing,Edgemont View Ltd,750.40, 08-Feb-2022
1571,Revenue,CAHD,South - Commissioned Services,Permanent Nursing,Edgemont View Ltd,3580.52, 08-Feb-2022
1572,Revenue,CAHD,South - Commissioned Services,Fees & Charges Income - General,Edgemont View Ltd,-670.32, 08-Feb-2022
1573,Revenue,CAHD,South Glos Users in South Glos Homes,Permanent Nursing,Edgemont View Ltd,750.40, 08-Feb-2022
1574,Revenue,CAHD,South - Commissioned Services,Permanent Nursing,Edgemont View Ltd,3478.20, 08-Feb-2022
1575,Revenue,CAHD,South - Commissioned Services,Fees & Charges Income - General,Edgemont View Ltd,-680.96, 08-Feb-2022
1576,Revenue,CAHD,South Glos Users in South Glos Homes,Permanent Nursing,Edgemont View Ltd,750.40, 08-Feb-2022
1577,Revenue,CAHD,South - Commissioned Services,Permanent Nursing,Edgemont View Ltd,3547.76, 08-Feb-2022
1578,Revenue,CAHD,South - Commissioned Services,Fees & Charges Income - General,Edgemont View Ltd,-821.68, 08-Feb-2022
1579,Revenue,CAHD,South Glos Users in South Glos Homes,Permanent Nursing,Edgemont View Ltd,750.40, 08-Feb-2022
1580,Revenue,CAHD,South Glos Users in South Glos Homes,Permanent Nursing,Edgemont View Ltd,750.40, 08-Feb-2022
1581,Revenue,CAHD,South - Commissioned Services,Permanent Nursing,Edgemont View Ltd,3478.20, 08-Feb-2022
1582,Revenue,CAHD,South - Commissioned Services,Fees & Charges Income - General,Edgemont View Ltd,-1051.80, 08-Feb-2022
1583,Revenue,CAHD,South Glos Users in South Glos Homes,Permanent Nursing,Edgemont View Ltd,750.40, 08-Feb-2022
1584,Revenue,CAHD,South - Commissioned Services,Permanent Nursing,Edgemont View Ltd,3500.00, 08-Feb-2022
1585,Revenue,CAHD,South - Commissioned Services,Fees & Charges Income - General,Edgemont View Ltd,-1124.80, 08-Feb-2022
1586,Revenue,CAHD,South Glos Users in South Glos Homes,Permanent Nursing,Edgemont View Ltd,750.40, 08-Feb-2022
1587,Revenue,CAHD,South - Commissioned Services,Permanent Nursing,Edgemont View Ltd,3682.80, 08-Feb-2022
1588,Revenue,CAHD,South - Commissioned Services,Fees & Charges Income - General,Edgemont View Ltd,-516.00, 08-Feb-2022
1589,Revenue,CAHD,South Glos Users in South Glos Homes,Permanent Nursing,Edgemont View Ltd,750.40, 08-Feb-2022
1590,Revenue,CAHD,South - Commissioned Services,Permanent Nursing,Edgemont View Ltd,3580.52, 08-Feb-2022
1591,Revenue,CAHD,South Glos Users in South Glos Homes,Permanent Nursing,Edgemont View Ltd,750.40, 08-Feb-2022
1592,Revenue,CAHD,South Glos Users in South Glos Homes,Permanent Nursing,Edgemont View Ltd,750.40, 08-Feb-2022
1593,Revenue,CAHD,South - Commissioned Services,Permanent Nursing,Edgemont View Ltd,3547.76, 08-Feb-2022
1594,Revenue,CAHD,South - Commissioned Services,Fees & Charges Income - General,Edgemont View Ltd,-608.80, 08-Feb-2022
1595,Revenue,CAHD,South Glos Users in South Glos Homes,Permanent Nursing,Edgemont View Ltd,750.40, 08-Feb-2022
1596,Revenue,CAHD,South - Commissioned Services,Permanent Nursing,Edgemont View Ltd,3500.00, 08-Feb-2022
1597,Revenue,CAHD,South - Commissioned Services,Fees & Charges Income - General,Edgemont View Ltd,-997.64, 08-Feb-2022
1598,Revenue,CAHD,South Glos Users in South Glos Homes,Permanent Nursing,Edgemont View Ltd,750.40, 08-Feb-2022
1599,Revenue,CAHD,South - Commissioned Services,Permanent Nursing,Edgemont View Ltd,3989.72, 08-Feb-2022
1600,Revenue,CAHD,South - Commissioned Services,Fees & Charges Income - General,Edgemont View Ltd,-1043.64, 08-Feb-2022
1601,Revenue,CAHD,South Glos Users in South Glos Homes,Permanent Nursing,Edgemont View Ltd,750.40, 08-Feb-2022
1602,Revenue,CAHD,ASC Rapid Testing Fund,Grants to Voluntary Bodies,Edgemont View Ltd,1668.67, 18-Feb-2022
1603,Revenue,CAHD,Virtual School for Looked After Children,Computer Equipment - Purchase,EGOV SOLUTIONS LTD,26849.00, 07-Feb-2022
1604,Revenue,CAHD,CSC - Special Guardianship Orders,Legal Fees,Ehsan Oarith,600.00, 15-Feb-2022
1605,Revenue,CAHD,Planning and Partnerships Procurement,Other Supplies & Services,Eldercare,2601.95, 04-Feb-2022
1606,Revenue,CAHD,Planning and Partnerships Procurement,Other Supplies & Services,Eldercare,450.00, 08-Feb-2022
1607,Revenue,CAHD,Planning and Partnerships Procurement,Other Supplies & Services,Eldercare,2772.00, 04-Feb-2022
1608,Revenue,CAHD,Supporting People Programme,Grants to Voluntary Bodies,Elim Housing Association Limited,5362.00, 01-Feb-2022
1609,Revenue,CAHD,Social Lettings Agency,Rent,Individual,1321.36, 11-Feb-2022
1610,Revenue,CAHD,Social Lettings Agency,Fees & Charges Income - General,Individual,-79.30, 11-Feb-2022
1611,Revenue,CAHD,North - Community based support,Permanent Residential,Ellsworth House,10016.24, 08-Feb-2022
1612,Revenue,CAHD,North - Community based support,Fees & Charges Income - General,Ellsworth House,-425.60, 08-Feb-2022
1613,Revenue,CAHD,Placements OLA Special Schools and RB,Other L.A.s - General,Elmfield School for Deaf Children,1145.32, 23-Feb-2022
1614,Revenue,CAHD,Placements OLA Special Schools and RB,Other L.A.s - General,Elmfield School for Deaf Children,715.72, 23-Feb-2022
1615,Revenue,CAHD,Placements OLA Special Schools and RB,Other L.A.s - General,Elmfield School for Deaf Children,1145.32, 23-Feb-2022
1616,Revenue,CAHD,Placements OLA Special Schools and RB,Other L.A.s - General,Elmfield School for Deaf Children,1145.32, 23-Feb-2022
1617,Revenue,CAHD,Placements OLA Special Schools and RB,Other L.A.s - General,Elmfield School for Deaf Children,715.72, 23-Feb-2022
1618,Revenue,CAHD,Placements OLA Special Schools and RB,Other L.A.s - General,Elmfield School for Deaf Children,1145.32, 23-Feb-2022
1619,Revenue,CAHD,Placements OLA Special Schools and RB,Other L.A.s - General,Elmfield School for Deaf Children,1145.32, 23-Feb-2022
1620,Revenue,CAHD,Drug and Alcohol Programme,Other Small Contracts,Emersons Green Medical Centre,1624.00, 01-Feb-2022
1621,Revenue,CAHD,CSC - Age Related Allowances,Foster Parent Allowances,Individual,202.00, 18-Feb-2022
1622,Revenue,CAHD,CSC - Age Related Allowances,Respite Care,Individual,49.43, 18-Feb-2022
1623,Revenue,CAHD,CSC - Professional Fees Foster Carers,Band 1 Foster Care,Individual,168.00, 18-Feb-2022
1624,Revenue,CAHD,CSC - Professional Fees Foster Carers,Therapeutic Fostering Fee,Individual,214.29, 18-Feb-2022
1625,Revenue,CAHD,CSC - Legal Fees,Legal Fees,Individual,500.00, 07-Feb-2022
1626,Revenue,CAHD,Special ISB,Other Public Bodies,Enable Trust,7671.20, 21-Feb-2022
1627,Revenue,CAHD,Special ISB,Other Public Bodies,Enable Trust,1062.08, 21-Feb-2022
1628,Revenue,CAHD,Special ISB,Other Public Bodies,Enable Trust,1062.08, 21-Feb-2022
1629,Revenue,CAHD,Special ISB,Other Public Bodies,Enable Trust,1391.72, 21-Feb-2022
1630,Revenue,CAHD,Special ISB,Other Public Bodies,Enable Trust,1062.08, 21-Feb-2022
1631,Revenue,CAHD,Special ISB,Other Public Bodies,Enable Trust,805.72, 21-Feb-2022
1632,Revenue,CAHD,Special ISB,Other Public Bodies,Enable Trust,1062.08, 21-Feb-2022
1633,Revenue,CAHD,Special ISB,Other Public Bodies,Enable Trust,1062.08, 21-Feb-2022
1634,Revenue,CAHD,Special ISB,Other Public Bodies,Enable Trust,805.72, 21-Feb-2022
1635,Revenue,CAHD,Special ISB,Other Public Bodies,Enable Trust,1391.72, 21-Feb-2022
1636,Revenue,CAHD,Special ISB,Other Public Bodies,Enable Trust,1062.08, 21-Feb-2022
1637,Revenue,CAHD,Special ISB,Other Public Bodies,Enable Trust,1062.08, 21-Feb-2022
1638,Revenue,CAHD,Special ISB,Other Public Bodies,Enable Trust,1391.72, 21-Feb-2022
1639,Revenue,CAHD,Special ISB,Other Public Bodies,Enable Trust,1391.72, 21-Feb-2022
1640,Revenue,CAHD,Special ISB,Other Public Bodies,Enable Trust,1977.64, 21-Feb-2022
1641,Revenue,CAHD,Special ISB,Other Public Bodies,Enable Trust,1062.08, 21-Feb-2022
1642,Revenue,CAHD,Special ISB,Other Public Bodies,Enable Trust,1062.08, 21-Feb-2022
1643,Revenue,CAHD,Special ISB,Other Public Bodies,Enable Trust,1062.08, 21-Feb-2022
1644,Revenue,CAHD,Special ISB,Other Public Bodies,Enable Trust,1062.08, 21-Feb-2022
1645,Revenue,CAHD,Special ISB,Other Public Bodies,Enable Trust,585.92, 21-Feb-2022
1646,Revenue,CAHD,Special ISB,Other Public Bodies,Enable Trust,805.72, 21-Feb-2022
1647,Revenue,CAHD,Special ISB,Other Public Bodies,Enable Trust,805.72, 21-Feb-2022
1648,Revenue,CAHD,Special ISB,Other Public Bodies,Enable Trust,1977.64, 21-Feb-2022
1649,Revenue,CAHD,Special ISB,Other Public Bodies,Enable Trust,1062.08, 21-Feb-2022
1650,Revenue,CAHD,Special ISB,Other Public Bodies,Enable Trust,1062.08, 21-Feb-2022
1651,Revenue,CAHD,Special ISB,Other Public Bodies,Enable Trust,1062.08, 21-Feb-2022
1652,Revenue,CAHD,Special ISB,Other Public Bodies,Enable Trust,1062.08, 21-Feb-2022
1653,Revenue,CAHD,Special ISB,Other Public Bodies,Enable Trust,1062.08, 21-Feb-2022
1654,Revenue,CAHD,Special ISB,Other Public Bodies,Enable Trust,1062.08, 21-Feb-2022
1655,Revenue,CAHD,Special ISB,Other Public Bodies,Enable Trust,1391.72, 21-Feb-2022
1656,Revenue,CAHD,Special ISB,Other Public Bodies,Enable Trust,1391.72, 21-Feb-2022
1657,Revenue,CAHD,Special ISB,Other Public Bodies,Enable Trust,1062.08, 21-Feb-2022
1658,Revenue,CAHD,Special ISB,Other Public Bodies,Enable Trust,1062.08, 21-Feb-2022
1659,Revenue,CAHD,Special ISB,Other Public Bodies,Enable Trust,1977.64, 21-Feb-2022
1660,Revenue,CAHD,Special ISB,Other Public Bodies,Enable Trust,1977.64, 21-Feb-2022
1661,Revenue,CAHD,Special ISB,Other Public Bodies,Enable Trust,1062.08, 21-Feb-2022
1662,Revenue,CAHD,Special ISB,Other Public Bodies,Enable Trust,1062.08, 21-Feb-2022
1663,Revenue,CAHD,Special ISB,Other Public Bodies,Enable Trust,1062.08, 21-Feb-2022
1664,Revenue,CAHD,Special ISB,Other Public Bodies,Enable Trust,805.72, 21-Feb-2022
1665,Revenue,CAHD,Special ISB,Other Public Bodies,Enable Trust,585.92, 21-Feb-2022
1666,Revenue,CAHD,Special ISB,Other Public Bodies,Enable Trust,1977.64, 21-Feb-2022
1667,Revenue,CAHD,Special ISB,Other Public Bodies,Enable Trust,1391.72, 21-Feb-2022
1668,Revenue,CAHD,Special ISB,Other Public Bodies,Enable Trust,1062.08, 21-Feb-2022
1669,Revenue,CAHD,Special ISB,Other Public Bodies,Enable Trust,805.72, 21-Feb-2022
1670,Revenue,CAHD,Special ISB,Other Public Bodies,Enable Trust,1062.08, 21-Feb-2022
1671,Revenue,CAHD,Special ISB,Other Public Bodies,Enable Trust,1062.08, 21-Feb-2022
1672,Revenue,CAHD,Special ISB,Other Public Bodies,Enable Trust,805.72, 21-Feb-2022
1673,Revenue,CAHD,Special ISB,Other Public Bodies,Enable Trust,1977.64, 21-Feb-2022
1674,Revenue,CAHD,Special ISB,Other Public Bodies,Enable Trust,1062.08, 21-Feb-2022
1675,Revenue,CAHD,Special ISB,Other Public Bodies,Enable Trust,1062.08, 21-Feb-2022
1676,Revenue,CAHD,Special ISB,Other Public Bodies,Enable Trust,805.72, 21-Feb-2022
1677,Revenue,CAHD,Special ISB,Other Public Bodies,Enable Trust,1062.08, 21-Feb-2022
1678,Revenue,CAHD,Special ISB,Other Public Bodies,Enable Trust,805.72, 21-Feb-2022
1679,Revenue,CAHD,Special ISB,Other Public Bodies,Enable Trust,1391.72, 21-Feb-2022
1680,Revenue,CAHD,Special ISB,Other Public Bodies,Enable Trust,1391.72, 21-Feb-2022
1681,Revenue,CAHD,Special ISB,Other Public Bodies,Enable Trust,1538.16, 21-Feb-2022
1682,Revenue,CAHD,Special ISB,Other Public Bodies,Enable Trust,1391.72, 21-Feb-2022
1683,Revenue,CAHD,Special ISB,Other Public Bodies,Enable Trust,805.72, 21-Feb-2022
1684,Revenue,CAHD,Special ISB,Other Public Bodies,Enable Trust,1391.72, 21-Feb-2022
1685,Revenue,CAHD,Special ISB,Other Public Bodies,Enable Trust,1062.08, 21-Feb-2022
1686,Revenue,CAHD,Special ISB,Other Public Bodies,Enable Trust,585.92, 21-Feb-2022
1687,Revenue,CAHD,Special ISB,Other Public Bodies,Enable Trust,1062.08, 21-Feb-2022
1688,Revenue,CAHD,Special ISB,Other Public Bodies,Enable Trust,1062.08, 21-Feb-2022
1689,Revenue,CAHD,Special ISB,Other Public Bodies,Enable Trust,1062.08, 21-Feb-2022
1690,Revenue,CAHD,Special ISB,Other Public Bodies,Enable Trust,805.72, 21-Feb-2022
1691,Revenue,CAHD,Special ISB,Other Public Bodies,Enable Trust,805.72, 21-Feb-2022
1692,Revenue,CAHD,Special ISB,Other Public Bodies,Enable Trust,2270.60, 21-Feb-2022
1693,Revenue,CAHD,Special ISB,Other Public Bodies,Enable Trust,1977.64, 21-Feb-2022
1694,Revenue,CAHD,Special ISB,Other Public Bodies,Enable Trust,585.92, 21-Feb-2022
1695,Revenue,CAHD,Special ISB,Other Public Bodies,Enable Trust,585.92, 21-Feb-2022
1696,Revenue,CAHD,Special ISB,Other Public Bodies,Enable Trust,1391.72, 21-Feb-2022
1697,Revenue,CAHD,Special ISB,Other Public Bodies,Enable Trust,1977.64, 21-Feb-2022
1698,Revenue,CAHD,Special ISB,Other Public Bodies,Enable Trust,1391.72, 21-Feb-2022
1699,Revenue,CAHD,Special ISB,Other Public Bodies,Enable Trust,1062.08, 21-Feb-2022
1700,Revenue,CAHD,Special ISB,Other Public Bodies,Enable Trust,1062.08, 21-Feb-2022
1701,Revenue,CAHD,Special ISB,Other Public Bodies,Enable Trust,1977.64, 21-Feb-2022
1702,Revenue,CAHD,Special ISB,Other Public Bodies,Enable Trust,1062.08, 21-Feb-2022
1703,Revenue,CAHD,Special ISB,Other Public Bodies,Enable Trust,1062.08, 21-Feb-2022
1704,Revenue,CAHD,Special ISB,Other Public Bodies,Enable Trust,1391.72, 21-Feb-2022
1705,Revenue,CAHD,Special ISB,Other Public Bodies,Enable Trust,1062.08, 21-Feb-2022
1706,Revenue,CAHD,Special ISB,Other Public Bodies,Enable Trust,805.72, 21-Feb-2022
1707,Revenue,CAHD,Special ISB,Other Public Bodies,Enable Trust,1062.08, 21-Feb-2022
1708,Revenue,CAHD,Special ISB,Other Public Bodies,Enable Trust,1391.72, 21-Feb-2022
1709,Revenue,CAHD,Special ISB,Other Public Bodies,Enable Trust,6136.96, 21-Feb-2022
1710,Revenue,CAHD,Special ISB,Other Public Bodies,Enable Trust,1062.08, 21-Feb-2022
1711,Revenue,CAHD,Special ISB,Other Public Bodies,Enable Trust,1062.08, 21-Feb-2022
1712,Revenue,CAHD,Special ISB,Other Public Bodies,Enable Trust,1538.16, 21-Feb-2022
1713,Revenue,CAHD,Special ISB,Other Public Bodies,Enable Trust,805.72, 21-Feb-2022
1714,Revenue,CAHD,Special ISB,Other Public Bodies,Enable Trust,805.72, 21-Feb-2022
1715,Revenue,CAHD,Special ISB,Other Public Bodies,Enable Trust,1062.08, 21-Feb-2022
1716,Revenue,CAHD,Special ISB,Other Public Bodies,Enable Trust,1391.72, 21-Feb-2022
1717,Revenue,CAHD,Special ISB,Other Public Bodies,Enable Trust,1062.08, 21-Feb-2022
1718,Revenue,CAHD,Special ISB,Other Public Bodies,Enable Trust,585.92, 21-Feb-2022
1719,Revenue,CAHD,Special ISB,Other Public Bodies,Enable Trust,1062.08, 21-Feb-2022
1720,Revenue,CAHD,Special ISB,Other Public Bodies,Enable Trust,1538.16, 21-Feb-2022
1721,Revenue,CAHD,Special ISB,Other Public Bodies,Enable Trust,1538.16, 21-Feb-2022
1722,Revenue,CAHD,Special ISB,Other Public Bodies,Enable Trust,1538.16, 21-Feb-2022
1723,Revenue,CAHD,Special ISB,Other Public Bodies,Enable Trust,1062.08, 21-Feb-2022
1724,Revenue,CAHD,Special ISB,Other Public Bodies,Enable Trust,1538.16, 21-Feb-2022
1725,Revenue,CAHD,Special ISB,Other Public Bodies,Enable Trust,1538.16, 21-Feb-2022
1726,Revenue,CAHD,Special ISB,Other Public Bodies,Enable Trust,1538.16, 21-Feb-2022
1727,Revenue,CAHD,Special ISB,Other Public Bodies,Enable Trust,1538.16, 21-Feb-2022
1728,Revenue,CAHD,Special ISB,Other Public Bodies,Enable Trust,1062.08, 21-Feb-2022
1729,Revenue,CAHD,Special ISB,Other Public Bodies,Enable Trust,1062.08, 21-Feb-2022
1730,Revenue,CAHD,Special ISB,Other Public Bodies,Enable Trust,1538.16, 21-Feb-2022
1731,Revenue,CAHD,Special ISB,Other Public Bodies,Enable Trust,1977.64, 21-Feb-2022
1732,Revenue,CAHD,Special ISB,Other Public Bodies,Enable Trust,1977.64, 21-Feb-2022
1733,Revenue,CAHD,Special ISB,Other Public Bodies,Enable Trust,1977.64, 21-Feb-2022
1734,Revenue,CAHD,Special ISB,Other Public Bodies,Enable Trust,805.72, 21-Feb-2022
1735,Revenue,CAHD,Special ISB,Other Public Bodies,Enable Trust,1062.08, 21-Feb-2022
1736,Revenue,CAHD,Special ISB,Other Public Bodies,Enable Trust,1062.08, 21-Feb-2022
1737,Revenue,CAHD,Special ISB,Other Public Bodies,Enable Trust,805.72, 21-Feb-2022
1738,Revenue,CAHD,Special ISB,Other Public Bodies,Enable Trust,805.72, 21-Feb-2022
1739,Revenue,CAHD,Special ISB,Other Public Bodies,Enable Trust,1538.16, 21-Feb-2022
1740,Revenue,CAHD,Special ISB,Other Public Bodies,Enable Trust,805.72, 21-Feb-2022
1741,Revenue,CAHD,Special ISB,Other Public Bodies,Enable Trust,805.72, 21-Feb-2022
1742,Revenue,CAHD,Special ISB,Other Public Bodies,Enable Trust,1538.16, 21-Feb-2022
1743,Revenue,CAHD,Special ISB,Other Public Bodies,Enable Trust,1062.08, 21-Feb-2022
1744,Revenue,CAHD,Special ISB,Other Public Bodies,Enable Trust,1538.16, 21-Feb-2022
1745,Revenue,CAHD,Special ISB,Other Public Bodies,Enable Trust,805.72, 21-Feb-2022
1746,Revenue,CAHD,Special ISB,Other Public Bodies,Enable Trust,1062.08, 21-Feb-2022
1747,Revenue,CAHD,Special ISB,Other Public Bodies,Enable Trust,1062.08, 21-Feb-2022
1748,Revenue,CAHD,Special ISB,Other Public Bodies,Enable Trust,805.72, 21-Feb-2022
1749,Revenue,CAHD,Special ISB,Other Public Bodies,Enable Trust,1538.16, 21-Feb-2022
1750,Revenue,CAHD,Special ISB,Other Public Bodies,Enable Trust,2270.60, 21-Feb-2022
1751,Revenue,CAHD,Special ISB,Other Public Bodies,Enable Trust,1538.16, 21-Feb-2022
1752,Revenue,CAHD,Special ISB,Other Public Bodies,Enable Trust,1538.16, 21-Feb-2022
1753,Revenue,CAHD,Special ISB,Other Public Bodies,Enable Trust,805.72, 21-Feb-2022
1754,Revenue,CAHD,Special ISB,Other Public Bodies,Enable Trust,1062.08, 21-Feb-2022
1755,Revenue,CAHD,Special ISB,Other Public Bodies,Enable Trust,1062.08, 21-Feb-2022
1756,Revenue,CAHD,Special ISB,Other Public Bodies,Enable Trust,1062.08, 21-Feb-2022
1757,Revenue,CAHD,Special ISB,Other Public Bodies,Enable Trust,805.72, 21-Feb-2022
1758,Revenue,CAHD,Special ISB,Other Public Bodies,Enable Trust,1538.16, 21-Feb-2022
1759,Revenue,CAHD,Special ISB,Other Public Bodies,Enable Trust,1362.36, 21-Feb-2022
1760,Revenue,CAHD,Special ISB,Other Public Bodies,Enable Trust,1062.08, 21-Feb-2022
1761,Revenue,CAHD,Special ISB,Other Public Bodies,Enable Trust,1538.16, 21-Feb-2022
1762,Revenue,CAHD,Special ISB,Other Public Bodies,Enable Trust,1977.64, 21-Feb-2022
1763,Revenue,CAHD,Special ISB,Other Public Bodies,Enable Trust,1062.08, 21-Feb-2022
1764,Revenue,CAHD,Special ISB,Other Public Bodies,Enable Trust,1186.60, 21-Feb-2022
1765,Revenue,CAHD,Special ISB,Other Public Bodies,Enable Trust,805.72, 21-Feb-2022
1766,Revenue,CAHD,Special ISB,Other Public Bodies,Enable Trust,1062.08, 21-Feb-2022
1767,Revenue,CAHD,Special ISB,Other Public Bodies,Enable Trust,1538.16, 21-Feb-2022
1768,Revenue,CAHD,Special ISB,Other Public Bodies,Enable Trust,585.92, 21-Feb-2022
1769,Revenue,CAHD,Special ISB,Other Public Bodies,Enable Trust,1062.08, 21-Feb-2022
1770,Revenue,CAHD,Special ISB,Other Public Bodies,Enable Trust,1062.08, 21-Feb-2022
1771,Revenue,CAHD,Special ISB,Other Public Bodies,Enable Trust,1062.08, 21-Feb-2022
1772,Revenue,CAHD,Special ISB,Other Public Bodies,Enable Trust,805.72, 21-Feb-2022
1773,Revenue,CAHD,Special ISB,Other Public Bodies,Enable Trust,1391.72, 21-Feb-2022
1774,Revenue,CAHD,Special ISB,Other Public Bodies,Enable Trust,1538.16, 21-Feb-2022
1775,Revenue,CAHD,Special ISB,Other Public Bodies,Enable Trust,1062.08, 21-Feb-2022
1776,Revenue,CAHD,Special ISB,Other Public Bodies,Enable Trust,1538.16, 21-Feb-2022
1777,Revenue,CAHD,Special ISB,Other Public Bodies,Enable Trust,1977.64, 21-Feb-2022
1778,Revenue,CAHD,Special ISB,Other Public Bodies,Enable Trust,1538.16, 21-Feb-2022
1779,Revenue,CAHD,Special ISB,Other Public Bodies,Enable Trust,1538.16, 21-Feb-2022
1780,Revenue,CAHD,Special ISB,Other Public Bodies,Enable Trust,1538.16, 21-Feb-2022
1781,Revenue,CAHD,Special ISB,Other Public Bodies,Enable Trust,1391.72, 21-Feb-2022
1782,Revenue,CAHD,Special ISB,Other Public Bodies,Enable Trust,1538.16, 21-Feb-2022
1783,Revenue,CAHD,Special ISB,Other Public Bodies,Enable Trust,1062.08, 21-Feb-2022
1784,Revenue,CAHD,Special ISB,Other Public Bodies,Enable Trust,1977.64, 21-Feb-2022
1785,Revenue,CAHD,Special ISB,Other Public Bodies,Enable Trust,1062.08, 21-Feb-2022
1786,Revenue,CAHD,Special ISB,Other Public Bodies,Enable Trust,805.72, 21-Feb-2022
1787,Revenue,CAHD,Special ISB,Other Public Bodies,Enable Trust,1977.64, 21-Feb-2022
1788,Revenue,CAHD,Special ISB,Other Public Bodies,Enable Trust,805.72, 21-Feb-2022
1789,Revenue,CAHD,Special ISB,Other Public Bodies,Enable Trust,1062.08, 21-Feb-2022
1790,Revenue,CAHD,Special ISB,Other Public Bodies,Enable Trust,1062.08, 21-Feb-2022
1791,Revenue,CAHD,Special ISB,Other Public Bodies,Enable Trust,1538.16, 21-Feb-2022
1792,Revenue,CAHD,Special ISB,Other Public Bodies,Enable Trust,1538.16, 21-Feb-2022
1793,Revenue,CAHD,Special ISB,Other Public Bodies,Enable Trust,1062.08, 21-Feb-2022
1794,Revenue,CAHD,Special ISB,Other Public Bodies,Enable Trust,2270.60, 21-Feb-2022
1795,Revenue,CAHD,Special ISB,Other Public Bodies,Enable Trust,1538.16, 21-Feb-2022
1796,Revenue,CAHD,Special ISB,Other Public Bodies,Enable Trust,1062.08, 21-Feb-2022
1797,Revenue,CAHD,Special ISB,Other Public Bodies,Enable Trust,1538.16, 21-Feb-2022
1798,Revenue,CAHD,Special ISB,Other Public Bodies,Enable Trust,805.72, 21-Feb-2022
1799,Revenue,CAHD,Special ISB,Other Public Bodies,Enable Trust,1538.16, 21-Feb-2022
1800,Revenue,CAHD,Special ISB,Other Public Bodies,Enable Trust,2270.60, 21-Feb-2022
1801,Revenue,CAHD,Special ISB,Other Public Bodies,Enable Trust,1538.16, 21-Feb-2022
1802,Revenue,CAHD,Special ISB,Other Public Bodies,Enable Trust,1538.16, 21-Feb-2022
1803,Revenue,CAHD,Special ISB,Other Public Bodies,Enable Trust,1062.08, 21-Feb-2022
1804,Revenue,CAHD,Special ISB,Other Public Bodies,Enable Trust,805.72, 21-Feb-2022
1805,Revenue,CAHD,Special ISB,Other Public Bodies,Enable Trust,1977.64, 21-Feb-2022
1806,Revenue,CAHD,Special ISB,Other Public Bodies,Enable Trust,1538.16, 21-Feb-2022
1807,Revenue,CAHD,Special ISB,Other Public Bodies,Enable Trust,1062.08, 21-Feb-2022
1808,Revenue,CAHD,Special ISB,Other Public Bodies,Enable Trust,849.32, 21-Feb-2022
1809,Revenue,CAHD,CSC - Agency Fostering,Foster Parent Allowances,Enhanced Foster Care Limited,4839.10, 16-Feb-2022
1810,Revenue,CAHD,CSC - Agency Fostering,Foster Parent Allowances,Enhanced Foster Care Limited,4839.10, 16-Feb-2022
1811,Revenue,CAHD,North - Community based support,Other Small Contracts,Epiphany In Care,1072.72, 28-Feb-2022
1812,Revenue,CAHD,18-25 Year Olds,Other Small Contracts,Epiphany In Care,971.52, 14-Feb-2022
1813,Revenue,CAHD,18-25 Year Olds,Other Small Contracts,Epiphany In Care,971.52, 14-Feb-2022
1814,Revenue,CAHD,18-25 Year Olds,Other Small Contracts,Epiphany In Care,728.64, 14-Feb-2022
1815,Revenue,CAHD,18-25 Year Olds,Other Small Contracts,Epiphany In Care,607.20, 14-Feb-2022
1816,Revenue,CAHD,South - Commissioned Services,Other Small Contracts,Epiphany In Care,3660.48, 28-Feb-2022
1817,Revenue,CAHD,Central - Commissioned Services,Other Small Contracts,Epiphany In Care,1214.40, 28-Feb-2022
1818,Revenue,CAHD,Central - Commissioned Services,Permanent Residential,Epworth House,3280.00, 08-Feb-2022
1819,Revenue,CAHD,Central - Commissioned Services,Fees & Charges Income - General,Epworth House,-728.80, 08-Feb-2022
1820,Revenue,CAHD,North - S117,Permanent Residential,Evolve House,3490.20, 08-Feb-2022
1821,Revenue,CAHD,Placements OLA Special Schools and RB,Other L.A.s - General,Excalibur Academies Trust T/A,2022.12, 23-Feb-2022
1822,Revenue,CAHD,Statemented Support Equipment,Educational Supplies & Equipment,Excalibur Academies Trust T/A,1872.00, 24-Feb-2022
1823,Revenue,CAHD,Covid - ASC - Infection Control,Grants to Voluntary Bodies,Excel Living Limited,708.77, 18-Feb-2022
